{"text_format":"1","workbook":"xlsx","n_sheets":25,"sheets":["MEC LICENCE10","MEC MASTER12","GC LICENCE10","GC MASTER12","EAI LICENCE10","EAI MASTER12","MAT MASTER12","MAT LICENCE10","DGPI LICENCE10","TA LICENCE10","ENV MASTER12","TA MASTER12","MI LICENCE10","MI MASTER12","EN LICENCE10","EN MASTER12","TC S31","TC S32","TC S34","TC S35","TC S33","TC S36","TC S38","TC S310","TC S39"],"not_rendered":{"charts":0,"images":0,"macros":1,"external_links":2,"defined_names":131,"comments":0,"pivot_tables":0},"unopened":[],"bounds":{"document_bytes":16777216,"sheet_cells":100000,"rows_first":2000,"rows_last":500,"rows_between":2000,"halvings":0,"cell_chars":16384,"cell_head_chars":4096},"cells_cut":0,"cells_raw":0,"read":"whole","date_system":"1900"}

{"sheet":"MEC LICENCE10","index":0,"n_rows":36,"n_cols":18,"rows_kept":36,"cut":false,"hidden":false,"merged":[[21,0,26,0],[27,0,32,0],[33,0,35,0],[0,0,0,1],[3,0,8,0],[9,0,14,0],[15,0,20,0]]}
[null,null,null,null,null,null,null,null,null,"Filière:Construction Mécanique",null,null,null,"Spécialite:Construction Mécanique"]
[null,"Section:",null,null,null,"Licence 3ème année",null,null,null,null,null,null,null,{"$f":"NOW()","v":"2019-05-21T11:37:17.090"}]
["Jour","SEANCES","LCM-16/A","Enseignant","Salle","LCM-16/A","LCM-16/B","Enseignant","Salle","LCM-16/B","LCM-16/C","Enseignant","Salle","LCM-16/C","LCM-16/D","Enseignant","Salle","LCM-16/D"]
["Dimanche","8h 00                     9h 30","THEORIE DES MECANISMES©","AGUIB","AP6","THEORIE DES MECANISMES© AGUIB AP6","THEORIE DES MECANISMES©","AGUIB","AP6","THEORIE DES MECANISMES© AGUIB AP6","THEORIE DES MECANISMES©","AGUIB","AP6","THEORIE DES MECANISMES© AGUIB AP6","THEORIE DES MECANISMES©","AGUIB","AP6","THEORIE DES MECANISMES© AGUIB AP6"]
[null,"9h 40                 11h 10","CONSTRUCTION MECANIQUEII©","BOUDIEB","AP6","CONSTRUCTION MECANIQUEII© BOUDIEB AP6","CONSTRUCTION MECANIQUEII©","BOUDIEB","AP6","CONSTRUCTION MECANIQUEII© BOUDIEB AP6","CONSTRUCTION MECANIQUEII©","BOUDIEB","AP6","CONSTRUCTION MECANIQUEII© BOUDIEB AP6","CONSTRUCTION MECANIQUEII©","BOUDIEB","AP6","CONSTRUCTION MECANIQUEII© BOUDIEB AP6"]
[null,"11h20                 12h 50","CONSTRUCTION MECANIQUEII(TD)","BOUDIEB","C45","CONSTRUCTION MECANIQUEII(TD) BOUDIEB C45",null,null,null,null,"THEORIE DES MECANISMES(TD)","ZERROUNI","C412","THEORIE DES MECANISMES(TD) ZERROUNI C412","MOTEUR A COMBUTION(TP)","MOUGARI","RC5","MOTEUR A COMBUTION(TP) MOUGARI RC5"]
[null,"13h 00              14h 30","PROJET FIN DE CYCLE(TP)","MAIZA","C17","PROJET FIN DE CYCLE(TP) MAIZA C17","CONSTRUCTION MECANIQUEII(TD)","BOUDIEB","C45","CONSTRUCTION MECANIQUEII(TD) BOUDIEB C45","MOTEUR A COMBUTION(TP)","MOUGARI","RC5","MOTEUR A COMBUTION(TP) MOUGARI RC5","THEORIE DES MECANISMES(TD)","ZERROUNI","A15","THEORIE DES MECANISMES(TD) ZERROUNI A15"]
[null,"14h 40              16h 10","PROJET FIN DE CYCLE(TP)","MAIZA","C17","PROJET FIN DE CYCLE(TP) MAIZA C17","MOTEUR A COMBUTION(TP)","MOUGARI","RC5","MOTEUR A COMBUTION(TP) MOUGARI RC5","TRANSF-THERM(TD)","MERAH","A15","TRANSF-THERM(TD) MERAH A15"]
[null,"16h 20              17h 50"]
["Lundi","8h 00                    9h 30","TRANSFERT THERMIQUE©","MERAH","A12","TRANSFERT THERMIQUE© MERAH A12","TRANSFERT THERMIQUE©","MERAH","A12","TRANSFERT THERMIQUE© MERAH A12","TRANSFERT THERMIQUE©","MERAH","A12","TRANSFERT THERMIQUE© MERAH A12","TRANSFERT THERMIQUE©","MERAH","A12","TRANSFERT THERMIQUE© MERAH A12"]
[null,"9h 40                  11h 10","MOTEUR A COMBUTION©","MERAH","AP2","MOTEUR A COMBUTION© MERAH AP2","MOTEUR A COMBUTION©","MERAH","AP2","MOTEUR A COMBUTION© MERAH AP2","MOTEUR A COMBUTION©","MERAH","AP2","MOTEUR A COMBUTION© MERAH AP2","MOTEUR A COMBUTION©","MERAH","AP2","MOTEUR A COMBUTION© MERAH AP2"]
[null,"11h20                12h 50","SYSTEMES HYDRAULIQUE ET PNEU©","SEMMOUD","AP4","SYSTEMES HYDRAULIQUE ET PNEU© SEMMOUD AP4","SYSTEMES HYDRAULIQUE ET PNEU©","SEMMOUD","AP4","SYSTEMES HYDRAULIQUE ET PNEU© SEMMOUD AP4","SYSTEMES HYDRAULIQUE ET PNEU©","SEMMOUD","AP4","SYSTEMES HYDRAULIQUE ET PNEU© SEMMOUD AP4","SYSTEMES HYDRAULIQUE ET PNEU©","SEMMOUD","AP4","SYSTEMES HYDRAULIQUE ET PNEU© SEMMOUD AP4"]
[null,"13h 00              14h 30",null,null,null,null,null,null,null,null,null,null,null,null,"TRANSF-THERM(TD)","MERAH","B46","TRANSF-THERM(TD) MERAH B46"]
[null,"14h 40              16h 10","MATERIAUX NON METALIQUE©","SAFI","AP6","MATERIAUX NON METALIQUE© SAFI AP6","MATERIAUX NON METALIQUE©","SAFI","AP6","MATERIAUX NON METALIQUE© SAFI AP6","MATERIAUX NON METALIQUE©","SAFI","AP6","MATERIAUX NON METALIQUE© SAFI AP6","MATERIAUX NON METALIQUE©","SAFI","AP6","MATERIAUX NON METALIQUE© SAFI AP6"]
[null,"16h 20              17h 50"]
["Mardi","8h 00                    9h 30"]
[null,"9h 40                 11h 10"]
[null,"11h20                12h 50"]
[null,"13h 00              14h 30"]
[null,"14h 40              16h 10"]
[null,"16h 20              17h 50"]
["Mercredi","8h 00                    9h 30","THEORIE DES MECANISMES(TD)","ZERROUNI","B313","THEORIE DES MECANISMES(TD) ZERROUNI B313","TRANSF-THERM(TD)","MERAH","B36","TRANSF-THERM(TD) MERAH B36","TRANSF-THERM(TP)","CHERFAOUI","C35","TRANSF-THERM(TP) CHERFAOUI C35","DDS(TD)","CHIKH","B32","DDS(TD) CHIKH B32"]
[null,"9h 40                 11h 10","DDS(TD)","CHIKH","B313","DDS(TD) CHIKH B313","THEORIE DES MECANISMES(TD)","ZERROUNI","B31","THEORIE DES MECANISMES(TD) ZERROUNI B31","CONSTRUCTION MECANIQUEII(TD)","BOUDIEB","B44","CONSTRUCTION MECANIQUEII(TD) BOUDIEB B44","TRANSF-THERM(TP)","CHERFAOUI","C35","TRANSF-THERM(TP) CHERFAOUI C35"]
[null,"11h20                12h 50","TRANSF-THERM(TD)","MERAH","B311","TRANSF-THERM(TD) MERAH B311",null,null,null,null,"DDS(TD)","CHIKH","B417","DDS(TD) CHIKH B417","CONSTRUCTION MECANIQUEII(TD)","BOUDIEB","B414","CONSTRUCTION MECANIQUEII(TD) BOUDIEB B414"]
[null,"13h 00              14h 30","CONSTRUCTION MECANIQUEII©","BOUDIEB","AP6","CONSTRUCTION MECANIQUEII© BOUDIEB AP6","CONSTRUCTION MECANIQUEII©","BOUDIEB","AP6","CONSTRUCTION MECANIQUEII© BOUDIEB AP6","CONSTRUCTION MECANIQUEII©","BOUDIEB","AP6","CONSTRUCTION MECANIQUEII© BOUDIEB AP6","CONSTRUCTION MECANIQUEII©","BOUDIEB","AP6","CONSTRUCTION MECANIQUEII© BOUDIEB AP6"]
[null,"14h 40              16h 10","PROJET PROFESSIONNEL ET PED©","GUERRACHE","AP6","PROJET PROFESSIONNEL ET PED© GUERRACHE AP6","PROJET PROFESSIONNEL ET PED©","GUERRACHE","AP6","PROJET PROFESSIONNEL ET PED© GUERRACHE AP6",null,null,null,null,"PROJET PROFESSIONNEL ET PED©","GUERRACHE","AP6","PROJET PROFESSIONNEL ET PED© GUERRACHE AP6"]
[null,"16h 20              17h 50"]
["Jeudi","8h 00                     9h 30","DYN-DES STRUCTURES©","CHIKH","B416","DYN-DES STRUCTURES© CHIKH B416","DYN-DES STRUCTURES©","CHIKH","B416","DYN-DES STRUCTURES© CHIKH B416","DYN-DES STRUCTURES©","CHIKH","B416","DYN-DES STRUCTURES© CHIKH B416","DYN-DES STRUCTURES©","CHIKH","B416","DYN-DES STRUCTURES© CHIKH B416"]
[null,"9h 40                  11h 10","TRANSF-THERM(TP)","CHERFAOUI","C35","TRANSF-THERM(TP) CHERFAOUI C35","DDS(TD)","CHIKH","B416","DDS(TD) CHIKH B416","TRANSF-THERM(TP)","CHERFAOUI","C35","TRANSF-THERM(TP) CHERFAOUI C35","PROJET FIN DE CYCLE(TP)","DILMI","A16","PROJET FIN DE CYCLE(TP) DILMI A16"]
[null,"11h20                 12h 50","MOTEUR A COMBUTION(TP)","MOUGARI","RC5","MOTEUR A COMBUTION(TP) MOUGARI RC5","TRANSF-THERM(TP)","CHERFAOUI","C35","TRANSF-THERM(TP) CHERFAOUI C35",null,null,null,null,"PROJET FIN DE CYCLE(TP)","DILMI","A16","PROJET FIN DE CYCLE(TP) DILMI A16"]
[null,"13h 00              14h 30",null,null,null,null,"PROJET FIN DE CYCLE(TP)","CHEBBAB","A16","PROJET FIN DE CYCLE(TP) CHEBBAB A16","PROJET FIN DE CYCLE(TP)","BOUAMRENE","C310","PROJET FIN DE CYCLE(TP) BOUAMRENE C310"]
[null,"14h 40              16h 10",null,null,null,null,"PROJET FIN DE CYCLE(TP)","CHEBBAB","A16","PROJET FIN DE CYCLE(TP) CHEBBAB A16","PROJET FIN DE CYCLE(TP)","BOUAMRENE","C310","PROJET FIN DE CYCLE(TP) BOUAMRENE C310"]
[null,"16h 20              17h 50"]
["Samedi","8h 00                     9h 30"]
[null,"9h 40                  11h 10"]
[null,"11h20                 12h 50"]

{"sheet":"MEC MASTER12","index":1,"n_rows":36,"n_cols":18,"rows_kept":36,"cut":false,"hidden":false,"merged":[[33,0,35,0],[0,0,0,1],[3,0,8,0],[9,0,14,0],[15,0,20,0],[21,0,26,0],[27,0,32,0]]}
[" ",null,null,null,null,null,null,null,null,"Spécialité:Construction-fabrication",null,null,null,"G Matériaux-construction-fabrication"]
[null,"Section:",null,null,null,"Mastre 1ère année",null,null,null,null,null,null,null,{"$f":"NOW()","v":"2019-05-21T11:37:17.090"}]
["Jour","SEANCES","MCM-18","Enseignant","Salle","MCM-18","MFMP-18","Enseignant","Salle","MFMP-18","MOCP18/A","Enseignant","Salle","MOCP18/A","MOCP18/B","Enseignant","Salle","MOCP18/B"]
["Dimanche","8h 00                     9h 30","M-E-F©","BOUTOUTAOU","B416","M-E-F© BOUTOUTAOU B416","M-E-F©","BOUTOUTAOU","B416","M-E-F© BOUTOUTAOU B416","TUYAUTERIEII(TD) ","REGUEB","A15","TUYAUTERIEII(TD)  REGUEB A15"]
[null,"9h 40                 11h 10","M-E-F(TD)","BOUTOUTAOU","B419","M-E-F(TD) BOUTOUTAOU B419",null,null,null,null,"TUYAUTERIEII©","REGUEB","B37","TUYAUTERIEII© REGUEB B37","TUYAUTERIEII©","REGUEB","B37","TUYAUTERIEII© REGUEB B37"]
[null,"11h20                 12h 50","OPTIMISATION©","REGUEB","B419","OPTIMISATION© REGUEB B419","OPTIMISATION©","REGUEB","B419","OPTIMISATION© REGUEB B419","M-E-F-PROG©","BOUTOUTAOU","B418","M-E-F-PROG© BOUTOUTAOU B418","M-E-F-PROG©","BOUTOUTAOU","B418","M-E-F-PROG© BOUTOUTAOU B418"]
[null,"13h 00              14h 30"]
[null,"14h 40              16h 10",null,null,null,null,"OPTIMISATION(TP)","REGUEB","RC9/A","OPTIMISATION(TP) REGUEB RC9/A","CHAUDRONNERIE©","CHEBBAB","B419","CHAUDRONNERIE© CHEBBAB B419","CHAUDRONNERIE©","CHEBBAB","B419","CHAUDRONNERIE© CHEBBAB B419"]
[null,"16h 20              17h 50"]
["Lundi","8h 00                    9h 30",null,null,null,null,null,null,null,null,"CHADRONNERIE©","CHEBBAB","B37","CHADRONNERIE© CHEBBAB B37","CHADRONNERIE©","CHEBBAB","B37","CHADRONNERIE© CHEBBAB B37"]
[null,"9h 40                  11h 10","C-N-D(TP);C-N-D©","BRIHMET;LECHEB","AT16;RC14","C-N-D(TP) BRIHMET AT16\nC-N-D© LECHEB RC14","COUPE DES METAUXII©","CHALLALI","A13","COUPE DES METAUXII© CHALLALI A13","CHADRONNERIE(TD) ","CHEBBAB","B48","CHADRONNERIE(TD)  CHEBBAB B48","TUYAUTERIEII(TD) ","REGUEB","B413","TUYAUTERIEII(TD)  REGUEB B413"]
[null,"11h20                12h 50","OPTIMISATION(TP)","REGUEB","A26","OPTIMISATION(TP) REGUEB A26","COUPE DES METAUXII(TD)","CHALLALI","A13","COUPE DES METAUXII(TD) CHALLALI A13","THEORIE-PLAQUE-COQUE(TD) ","HACHEMANE","B48","THEORIE-PLAQUE-COQUE(TD)  HACHEMANE B48"]
[null,"13h 00              14h 30","C-F-A-O©","BELAIDI-I","A12","C-F-A-O© BELAIDI-I A12",null,null,null,null,null,null,null,null,"THEORIE-PLAQUE-COQUE(TD) ","HACHEMANE","B48","THEORIE-PLAQUE-COQUE(TD)  HACHEMANE B48"]
[null,"14h 40              16h 10","CAFO(TP)(1/2G)","BELAIDI-I","RC9/A","CAFO(TP)(1/2G) BELAIDI-I RC9/A","TRIBOLOGIE-MEC-CONC©","ATMANI","AP2","TRIBOLOGIE-MEC-CONC© ATMANI AP2","CHAUDRONNERIE©","CHEBBAB","A15","CHAUDRONNERIE© CHEBBAB A15","CHAUDRONNERIE©","CHEBBAB","A15","CHAUDRONNERIE© CHEBBAB A15"]
[null,"16h 20              17h 50"]
["Mardi","8h 00                    9h 30","SYST-MEC-ART-ROB©","HEDEILI-F","A11","SYST-MEC-ART-ROB© HEDEILI-F A11","ELEM-MACH-OUT©","IKKACHE","B32","ELEM-MACH-OUT© IKKACHE B32"]
[null,"9h 40                 11h 10","SYST-MEC-ART-ROB(TD)","HEDEILI-F","A11","SYST-MEC-ART-ROB(TD) HEDEILI-F A11","ELEM-MACH-OUT(TD)","IKKACHE","B32","ELEM-MACH-OUT(TD) IKKACHE B32","CHARPENT-MET©","MESKINE","B37","CHARPENT-MET© MESKINE B37","CHARPENT-MET©","MESKINE","B37","CHARPENT-MET© MESKINE B37"]
[null,"11h20                12h 50",null,null,null,null,null,null,null,null,null,null,null,null,"CHARPENT-MEC(TD) ","MESKINE","B35","CHARPENT-MEC(TD)  MESKINE B35"]
[null,"13h 00              14h 30","M-E-F(TP)","BENDJEDDOU","AB12","M-E-F(TP) BENDJEDDOU AB12"]
[null,"14h 40              16h 10","M-E-F(TP)","BENDJEDDOU","AB12","M-E-F(TP) BENDJEDDOU AB12"]
[null,"16h 20              17h 50"]
["Mercredi","8h 00                    9h 30","D-D-S AVAN©","NOUR","RC13","D-D-S AVAN© NOUR RC13","M-E-F(TP);CFAO(TP)","BENDJEDDOU;RAHMAOUI","A27;RC9/B","M-E-F(TP) BENDJEDDOU A27\nCFAO(TP) RAHMAOUI RC9/B","TRAçAGE©","IFRAH","C48","TRAçAGE© IFRAH C48","TRAçAGE©","IFRAH","C48","TRAçAGE© IFRAH C48"]
[null,"9h 40                 11h 10","D-D-S AVAN(TD)","NOUR","RC13","D-D-S AVAN(TD) NOUR RC13","M-E-F(TP);CFAO(TP)","BENDJEDDOU;RAHMAOUI","A27;RC9/B","M-E-F(TP) BENDJEDDOU A27\nCFAO(TP) RAHMAOUI RC9/B","TRAçAGE(TD) ","IFRAH","C48","TRAçAGE(TD)  IFRAH C48","M-E-F-PROG(TD) ","BOUTOUTAOU","B38","M-E-F-PROG(TD)  BOUTOUTAOU B38"]
[null,"11h20                12h 50",null,null,null,null,null,null,null,null,null,null,null,null,"TRAçAGE(TD) ","IFRAH","C48","TRAçAGE(TD)  IFRAH C48"]
[null,"13h 00              14h 30","FIABILITE©","BENAMMAR","A12","FIABILITE© BENAMMAR A12","FIABILITE©","BENAMMAR","A12","FIABILITE© BENAMMAR A12","M-E-F-PROG©","BOUTOUTAOU","B311","M-E-F-PROG© BOUTOUTAOU B311","M-E-F-PROG©","BOUTOUTAOU","B311","M-E-F-PROG© BOUTOUTAOU B311"]
[null,"14h 40              16h 10",null,null,null,null,null,null,null,null,"M-E-F-PROG(TD) ","BOUTOUTAOU","B311","M-E-F-PROG(TD)  BOUTOUTAOU B311"]
[null,"16h 20              17h 50"]
["Jeudi","8h 00                     9h 30","M-E-F©","BOUTOUTAOU","B44","M-E-F© BOUTOUTAOU B44","M-E-F©","BOUTOUTAOU","B44","M-E-F© BOUTOUTAOU B44","TECHN-FAB©","MESKINE","B417","TECHN-FAB© MESKINE B417","TECHN-FAB©","MESKINE","B417","TECHN-FAB© MESKINE B417"]
[null,"9h 40                  11h 10","CONCEPT-SYST-MEC©","HACHEMANE","B413","CONCEPT-SYST-MEC© HACHEMANE B413","M-E-F(TD)","BOUTOUTAOU","B32","M-E-F(TD) BOUTOUTAOU B32","TECHN-FAB(TD) ","MESKINE","B48","TECHN-FAB(TD)  MESKINE B48","CHADRONNERIE(TD) ","CHEBBAB","B415","CHADRONNERIE(TD)  CHEBBAB B415"]
[null,"11h20                 12h 50","ETHIQUE-DEONT-PROP-INT©","ALEM","AP2","ETHIQUE-DEONT-PROP-INT© ALEM AP2","ETHIQUE-DEONT-PROP-INT©","ALEM","AP2","ETHIQUE-DEONT-PROP-INT© ALEM AP2","THEORIE-PLAQUE-COQUE©","HACHEMANE","B417","THEORIE-PLAQUE-COQUE© HACHEMANE B417","THEORIE-PLAQUE-COQUE©","HACHEMANE","B417","THEORIE-PLAQUE-COQUE© HACHEMANE B417"]
[null,"13h 00              14h 30","CONCEPT-SYST-MEC(TD)","HACHEMANE","A11","CONCEPT-SYST-MEC(TD) HACHEMANE A11","PROGRAM-MOCN©","BOUMEDINE","A26","PROGRAM-MOCN© BOUMEDINE A26","CHARPENT-MEC(TD) ","MESKINE","AP4","CHARPENT-MEC(TD)  MESKINE AP4","CHARPENT-MEC(TD) ","MESKINE","AP4","CHARPENT-MEC(TD)  MESKINE AP4"]
[null,"14h 40              16h 10",null,null,null,null,"PROGRAM-MOCN(TD)","BOUMEDINE","A26","PROGRAM-MOCN(TD) BOUMEDINE A26"]
[null,"16h 20              17h 50"]
["Samedi","8h 00                     9h 30",null,null,null,null,"ELEMENTS DES MAO(TP)","IKKACHE","RC14","ELEMENTS DES MAO(TP) IKKACHE RC14"]
[null,"9h 40                  11h 10",null,null,null,null,"ELEMENTS DES MAO(TP)","IKKACHE","RC14","ELEMENTS DES MAO(TP) IKKACHE RC14"]
[null,"11h20                 12h 50"]

{"sheet":"GC LICENCE10","index":2,"n_rows":36,"n_cols":18,"rows_kept":36,"cut":false,"hidden":false,"merged":[[33,0,34,0],[3,0,8,0],[9,0,14,0],[0,0,0,1],[21,0,26,0],[15,0,20,0],[27,0,32,0]]}
["Departement:",null,null,null,null,"génie civil",null,null,null,"Filière:G-civil",null,null,null,"Spécialite:G-civil"]
[null,"Section:",null,null,null,"Licence 3ème année",null,null,null,null,null,null,null,null,null,null,null,{"$f":"NOW()","v":"2019-05-21T11:37:17.090"}]
["Jour","SEANCES","LGC-16/A","Enseignant","Salle","LGC-16/A","LGC-16/B","Enseignant","Salle","LGC-16/B","LGC-16/C","Enseignant","Salle","LGC-16/C","LGC-16/D","Enseignant","Salle","LGC-16/D"]
["Dimanche","8h 00                     9h 30",null,null,null,null,null,null,null,null,"CONSTRUCTION METTALIQUES(TD)","BEDAOUI","B35","CONSTRUCTION METTALIQUES(TD) BEDAOUI B35"]
[null,"9h 40                 11h 10","CONSTRUCTION METTALIQUES©","BEDAOUI","AP4","CONSTRUCTION METTALIQUES© BEDAOUI AP4","CONSTRUCTION METTALIQUES©","BEDAOUI","AP4","CONSTRUCTION METTALIQUES© BEDAOUI AP4","CONSTRUCTION METTALIQUES©","BEDAOUI","AP4","CONSTRUCTION METTALIQUES© BEDAOUI AP4","CONSTRUCTION METTALIQUES©","BEDAOUI","AP4","CONSTRUCTION METTALIQUES© BEDAOUI AP4"]
[null,"11h20                 12h 50","CALCUL DES STRUCTURES©","BOUDJELOUDE","AP3","CALCUL DES STRUCTURES© BOUDJELOUDE AP3","CALCUL DES STRUCTURES©","BOUDJELOUDE","AP3","CALCUL DES STRUCTURES© BOUDJELOUDE AP3","CALCUL DES STRUCTURES©","BOUDJELOUDE","AP3","CALCUL DES STRUCTURES© BOUDJELOUDE AP3","CALCUL DES STRUCTURES©","BOUDJELOUDE","AP3","CALCUL DES STRUCTURES© BOUDJELOUDE AP3"]
[null,"13h 00              14h 30","CALCUL ASSISTE PAR ORDINATEUR (TP)","BEDDIAR","B210","CALCUL ASSISTE PAR ORDINATEUR (TP) BEDDIAR B210","CALCUL ASSISTE PAR ORDINATEUR (TP)","BEDDIAR","B210","CALCUL ASSISTE PAR ORDINATEUR (TP) BEDDIAR B210",null,null,null,null,"CONSTRUCTION METTALIQUES(TD)","BEDAOUI","B415","CONSTRUCTION METTALIQUES(TD) BEDAOUI B415"]
[null,"14h 40              16h 10","CALCUL ASSISTE PAR ORDINATEUR (TP)","BEDDIAR","B210","CALCUL ASSISTE PAR ORDINATEUR (TP) BEDDIAR B210","CALCUL ASSISTE PAR ORDINATEUR (TP)","BEDDIAR","B210","CALCUL ASSISTE PAR ORDINATEUR (TP) BEDDIAR B210"]
[null,"16h 20              17h 50"]
["Lundi","8h 00                    9h 30","FONDATIONS ET OUVRAGE GEOTECHNIQUES(TD)","KECHOUANE","B414","FONDATIONS ET OUVRAGE GEOTECHNIQUES(TD) KECHOUANE B414",null,null,null,null,"CALCUL ASSISTE PAR ORDINATEUR (TP)","BEDDIAR","B210","CALCUL ASSISTE PAR ORDINATEUR (TP) BEDDIAR B210","CALCUL ASSISTE PAR ORDINATEUR (TP)","BEDDIAR","B210","CALCUL ASSISTE PAR ORDINATEUR (TP) BEDDIAR B210"]
[null,"9h 40                  11h 10","CONSTRUCTION METTALIQUES(TD)","BEDAOUI","B414","CONSTRUCTION METTALIQUES(TD) BEDAOUI B414","FONDATIONS ET OUVRAGE GEOTECHNIQUES(TD)","KECHOUANE","B415","FONDATIONS ET OUVRAGE GEOTECHNIQUES(TD) KECHOUANE B415","CALCUL ASSISTE PAR ORDINATEUR (TP)","BEDDIAR","B210","CALCUL ASSISTE PAR ORDINATEUR (TP) BEDDIAR B210","CALCUL ASSISTE PAR ORDINATEUR (TP)","BEDDIAR","B210","CALCUL ASSISTE PAR ORDINATEUR (TP) BEDDIAR B210"]
[null,"11h20                12h 50",null,null,null,null,"CONSTRUCTION METTALIQUES(TD)","BEDAOUI","B414","CONSTRUCTION METTALIQUES(TD) BEDAOUI B414",null,null,null,null,"B-A(TD)","BENOUN","B41","B-A(TD) BENOUN B41"]
[null,"13h 00              14h 30","BETON ARMEEII©","BENOUN","AP5","BETON ARMEEII© BENOUN AP5","BETON ARMEEII©","BENOUN","AP5","BETON ARMEEII© BENOUN AP5","BETON ARMEEII©","BENOUN","AP5","BETON ARMEEII© BENOUN AP5","BETON ARMEEII©","BENOUN","AP5","BETON ARMEEII© BENOUN AP5"]
[null,"14h 40              16h 10",null,null,null,null,null,null,null,null,"B-A(TD)","BENOUN","B41","B-A(TD) BENOUN B41"]
[null,"16h 20              17h 50"]
["Mardi","8h 00                    9h 30"]
[null,"9h 40                 11h 10"]
[null,"11h20                12h 50"]
[null,"13h 00              14h 30"]
[null,"14h 40              16h 10"]
[null,"16h 20              17h 50"]
["Mercredi","8h 00                    9h 30",null,null,null,null,"C-D-S(TD)","BOUDJELOUDE","B414","C-D-S(TD) BOUDJELOUDE B414","FONDATIONS ET OUVRAGE GEOTECHNIQUES(TD)","KECHOUANE","B415","FONDATIONS ET OUVRAGE GEOTECHNIQUES(TD) KECHOUANE B415"]
[null,"9h 40                 11h 10",null,null,null,null,"B-A(TD)","BENOUN","B414","B-A(TD) BENOUN B414","C-D-S(TD)","BOUDJELOUDE","B415","C-D-S(TD) BOUDJELOUDE B415","FONDATIONS ET OUVRAGE GEOTECHNIQUES(TD)","KECHOUANE","B41","FONDATIONS ET OUVRAGE GEOTECHNIQUES(TD) KECHOUANE B41"]
[null,"11h20                12h 50","BETON ARMEEII©","BENOUN","AP3","BETON ARMEEII© BENOUN AP3","BETON ARMEEII©","BENOUN","AP3","BETON ARMEEII© BENOUN AP3","BETON ARMEEII©","BENOUN","AP3","BETON ARMEEII© BENOUN AP3","BETON ARMEEII©","BENOUN","AP3","BETON ARMEEII© BENOUN AP3"]
[null,"13h 00              14h 30","B-A(TD)","BENOUN","B38","B-A(TD) BENOUN B38","PROJET FIN DE CYCLE (TP)","RAHLI","B418","PROJET FIN DE CYCLE (TP) RAHLI B418","PROJET FIN DE CYCLE (TP)","RAHLI","B418","PROJET FIN DE CYCLE (TP) RAHLI B418","C-D-S(TD)","BOUDJELOUDE","B310","C-D-S(TD) BOUDJELOUDE B310"]
[null,"14h 40              16h 10","C-D-S(TD)","BOUDJELOUDE","B38","C-D-S(TD) BOUDJELOUDE B38","PROJET FIN DE CYCLE  (TP)","RAHLI","B418","PROJET FIN DE CYCLE  (TP) RAHLI B418","PROJET FIN DE CYCLE  (TP)","RAHLI","B418","PROJET FIN DE CYCLE  (TP) RAHLI B418"]
[null,"16h 20              17h 50"]
["Jeudi","8h 00                     9h 30","VOIRIE ET RESEAUX DIVERS©","X","AP5","VOIRIE ET RESEAUX DIVERS© X AP5","VOIRIE ET RESEAUX DIVERS©","X","AP5","VOIRIE ET RESEAUX DIVERS© X AP5","VOIRIE ET RESEAUX DIVERS©","X","AP5","VOIRIE ET RESEAUX DIVERS© X AP5","VOIRIE ET RESEAUX DIVERS©","X","AP5","VOIRIE ET RESEAUX DIVERS© X AP5"]
[null,"9h 40                  11h 10","FONDATIONS ET OUVRAGE GEOTECHNIQUES©","KECHOUANE","AP5","FONDATIONS ET OUVRAGE GEOTECHNIQUES© KECHOUANE AP5","FONDATIONS ET OUVRAGE GEOTECHNIQUES©","KECHOUANE","AP5","FONDATIONS ET OUVRAGE GEOTECHNIQUES© KECHOUANE AP5","BETON ARMEEII©","FONDATIONS ET OUVRAGE GEOTECHNIQUES©","KECHOUANE","BETON ARMEEII© FONDATIONS ET OUVRAGE GEOTECHNIQUES© KECHOUANE","FONDATIONS ET OUVRAGE GEOTECHNIQUES©","KECHOUANE","AP5","FONDATIONS ET OUVRAGE GEOTECHNIQUES© KECHOUANE AP5"]
[null,"11h20                 12h 50","ORGANISATION DES CHANTIERS©","BERKANI","AP5","ORGANISATION DES CHANTIERS© BERKANI AP5","ORGANISATION DES CHANTIERS©","BERKANI","AP5","ORGANISATION DES CHANTIERS© BERKANI AP5","ORGANISATION DES CHANTIERS©","BERKANI","AP5","ORGANISATION DES CHANTIERS© BERKANI AP5","ORGANISATION DES CHANTIERS©","BERKANI","AP5","ORGANISATION DES CHANTIERS© BERKANI AP5"]
[null,"13h 00              14h 30","PROJET FIN DE CYCLE (TP)","RAHLI","B47","PROJET FIN DE CYCLE (TP) RAHLI B47",null,null,null,null,null,null,null,null,"PROJET FIN DE CYCLE (TP)","RAHLI","B47","PROJET FIN DE CYCLE (TP) RAHLI B47"]
[null,"14h 40              16h 10","PROJET FIN DE CYCLE  (TP)","RAHLI","B47","PROJET FIN DE CYCLE  (TP) RAHLI B47",null,null,null,null,null,null,null,null,"PROJET FIN DE CYCLE  (TP)","RAHLI","B47","PROJET FIN DE CYCLE  (TP) RAHLI B47"]
[null,"16h 20              17h 50"]
["Samedi","8h 00                     9h 30","PROJET PROFESSIONNEL ET GESTION ENTREP©","DJEDDI","B418","PROJET PROFESSIONNEL ET GESTION ENTREP© DJEDDI B418","PROJET PROFESSIONNEL ET GESTION ENTREP©","DJEDDI","B418","PROJET PROFESSIONNEL ET GESTION ENTREP© DJEDDI B418","PROJET PROFESSIONNEL ET GESTION ENTREP©","DJEDDI","B418","PROJET PROFESSIONNEL ET GESTION ENTREP© DJEDDI B418","PROJET PROFESSIONNEL ET GESTION ENTREP©","DJEDDI","B418","PROJET PROFESSIONNEL ET GESTION ENTREP© DJEDDI B418"]
[null,"9h 40                  11h 10","METRE ET ESTIMATION DES PRIX©","DJEDDI","B418","METRE ET ESTIMATION DES PRIX© DJEDDI B418","METRE ET ESTIMATION DES PRIX©","DJEDDI","B418","METRE ET ESTIMATION DES PRIX© DJEDDI B418","METRE ET ESTIMATION DES PRIX©","DJEDDI","B418","METRE ET ESTIMATION DES PRIX© DJEDDI B418","METRE ET ESTIMATION DES PRIX©","DJEDDI","B418","METRE ET ESTIMATION DES PRIX© DJEDDI B418"]
[null,"11h20                 12h 50"]

{"sheet":"GC MASTER12","index":3,"n_rows":36,"n_cols":18,"rows_kept":36,"cut":false,"hidden":false,"merged":[[33,0,35,0],[0,0,0,1],[3,0,8,0],[9,0,14,0],[15,0,20,0],[21,0,26,0],[27,0,32,0]]}
["Filière:génie civil",null,null,null,null,"Spécialité:",null,null,null,"structures-geotechnique"]
[null,"Section:",null,null,null,"Master 1ème année",null,null,null,null,null,null,null,null,null,null,null,{"$f":"NOW()","v":"2019-05-21T11:37:17.090"}]
["Jour","SEANCES","MGCP18/A","Enseignant","Salle","MGCP18/A","MGCP18/B","Enseignant","Salle","MGCP18/B","MGCP18-GE","Enseignant","Salle","MGCP18-GE","MGC18-ST","Enseignant","Salle","MGC18-ST"]
["Dimanche","8h 00                     9h 30","GESTION DE PROJET©","BEDDIAR","B37","GESTION DE PROJET© BEDDIAR B37","GESTION DE PROJET©","BEDDIAR","B37","GESTION DE PROJET© BEDDIAR B37",null,null,null,null,"FOND-SOUT©","LAZZALI","B415","FOND-SOUT© LAZZALI B415"]
[null,"9h 40                 11h 10","CALCUL-STR-B©","GUIROUS","B417","CALCUL-STR-B© GUIROUS B417","CALCUL-STR-B©","GUIROUS","B417","CALCUL-STR-B© GUIROUS B417","GEO-PHYS©","KAB","B38","GEO-PHYS© KAB B38","PAT-REABILITI©","BEDDIAR","B415","PAT-REABILITI© BEDDIAR B415"]
[null,"11h20                 12h 50","C-S-B(TD)","GUIROUS","B41","C-S-B(TD) GUIROUS B41","G-P-S(TD)","SERIDI","B38","G-P-S(TD) SERIDI B38","ESSAIS GEOT(TP)","KAB","C05","ESSAIS GEOT(TP) KAB C05","FOND-SOUT(TD)","LAZZALI","B415","FOND-SOUT(TD) LAZZALI B415"]
[null,"13h 00              14h 30",null,null,null,null,"M-E-F(TD)","TOUKAL","B417","M-E-F(TD) TOUKAL B417","PGC-GEST©","BELARBI-GC","B47","PGC-GEST© BELARBI-GC B47","ELASTICITE©","HAMADOUCHE","B312","ELASTICITE© HAMADOUCHE B312"]
[null,"14h 40              16h 10","GENIE PAR SISMIQUE©","SERIDI","B418","GENIE PAR SISMIQUE© SERIDI B418","GENIE PAR SISMIQUE©","SERIDI","B418","GENIE PAR SISMIQUE© SERIDI B418","NORME-G-EOT©","BELARBI-GC","B47","NORME-G-EOT© BELARBI-GC B47","ELASTICITE(TD)","HAMADOUCHE","B312","ELASTICITE(TD) HAMADOUCHE B312"]
[null,"16h 20              17h 50"]
["Lundi","8h 00                    9h 30","M-E-F©","KADRI","B418","M-E-F© KADRI B418","M-E-F©","KADRI","B417","M-E-F© KADRI B417",null,null,null,null,"D-D-SII©","MEZAZIGH","B38","D-D-SII© MEZAZIGH B38"]
[null,"9h 40                  11h 10","GENIE PAR SISMIQUE©","SERIDI","B417","GENIE PAR SISMIQUE© SERIDI B417","GENIE PAR SISMIQUE©","SERIDI","B417","GENIE PAR SISMIQUE© SERIDI B417","MEC-SOL-DEF©","HAMZA","B418","MEC-SOL-DEF© HAMZA B418","M-E-FII©","KADRI","B38","M-E-FII© KADRI B38"]
[null,"11h20                12h 50","G-P-S(TD)","SERIDI","B415","G-P-S(TD) SERIDI B415","CHARPENT-METTALIQUE(TD)","LABDAOUI","B419","CHARPENT-METTALIQUE(TD) LABDAOUI B419","MEC-SOL-DEF(TD)","HAMZA","B47","MEC-SOL-DEF(TD) HAMZA B47","STR-B-A(TD)","MECHKARINI","B413","STR-B-A(TD) MECHKARINI B413"]
[null,"13h 00              14h 30","CHARPENT-METTALIQUE©","LABDAOUI","B43","CHARPENT-METTALIQUE© LABDAOUI B43","CHARPENT-METTALIQUE©","LABDAOUI","B43","CHARPENT-METTALIQUE© LABDAOUI B43","D-D-S©","MESSAFER","B416","D-D-S© MESSAFER B416","PAT-REABIL(TD)","BEDDIAR","B310","PAT-REABIL(TD) BEDDIAR B310"]
[null,"14h 40              16h 10","CH-MET(TD)","LABDAOUI","B414","CH-MET(TD) LABDAOUI B414",null,null,null,null,"D-D-S(TD)","MESSAFER","B416","D-D-S(TD) MESSAFER B416"]
[null,"16h 20              17h 50"]
["Mardi","8h 00                    9h 30"]
[null,"9h 40                 11h 10"]
[null,"11h20                12h 50"]
[null,"13h 00              14h 30"]
[null,"14h 40              16h 10"]
[null,"16h 20              17h 50"]
["Mercredi","8h 00                    9h 30","M-E-F©","KADRI","B419","M-E-F© KADRI B419","M-E-F©","KADRI","B419","M-E-F© KADRI B419","RHEOLOGIE-S©","HAMADOUCHE","B38","RHEOLOGIE-S© HAMADOUCHE B38","M-E-F(TD)","TOUKAL","B312","M-E-F(TD) TOUKAL B312"]
[null,"9h 40                 11h 10","CALCUL-STR-B©","GUIROUS","B419","CALCUL-STR-B© GUIROUS B419","CALCUL-STR-B©","GUIROUS","B419","CALCUL-STR-B© GUIROUS B419","M-E-F©","KADRI","B36","M-E-F© KADRI B36","ELASTICITE©","HAMADOUCHE","B35","ELASTICITE© HAMADOUCHE B35"]
[null,"11h20                12h 50",null,null,null,null,"C-S-B(TD)","GUIROUS","B415","C-S-B(TD) GUIROUS B415","RHEOLOGIE-SOL(TD)","HAMADOUCHE","B36","RHEOLOGIE-SOL(TD) HAMADOUCHE B36"]
[null,"13h 00              14h 30","M-E-F(TD)","TOUKAL","B41","M-E-F(TD) TOUKAL B41",null,null,null,null,null,null,null,null,"D-D-SII(TD)","MEZAZIGH","B36","D-D-SII(TD) MEZAZIGH B36"]
[null,"14h 40              16h 10",null,null,null,null,null,null,null,null,"M-E-F(TD)","TOUKAL","B41","M-E-F(TD) TOUKAL B41","STR-B-AII©","GUIROUS","B36","STR-B-AII© GUIROUS B36"]
[null,"16h 20              17h 50"]
["Jeudi","8h 00                     9h 30","CHARPENT-METTALIQUE©","LABDAOUI","B419","CHARPENT-METTALIQUE© LABDAOUI B419","CHARPENT-METTALIQUE©","LABDAOUI","B419","CHARPENT-METTALIQUE© LABDAOUI B419","MEC-ROCHES©","HAMZA","B46","MEC-ROCHES© HAMZA B46","PROJET-CONST-MET(TP)","LABDAOUI","B313","PROJET-CONST-MET(TP) LABDAOUI B313"]
[null,"9h 40                  11h 10","ELASTICITE©","ABED-ZIANE","B419","ELASTICITE© ABED-ZIANE B419","ELASTICITE©","ABED-ZIANE","B419","ELASTICITE© ABED-ZIANE B419","MEC-SOL-DEF(©","HAMZA","B47","MEC-SOL-DEF(© HAMZA B47","PROJET-CONST-MET(TP)","LABDAOUI","B47","PROJET-CONST-MET(TP) LABDAOUI B47"]
[null,"11h20                 12h 50","ELASTICITE(TD)","ABED-ZIANE","B415","ELASTICITE(TD) ABED-ZIANE B415",null,null,null,null,"ETHIQUE-DEO-PROP©","ALEM","AP2","ETHIQUE-DEO-PROP© ALEM AP2","ETHIQUE-DEO-PROP©","ALEM","AP2","ETHIQUE-DEO-PROP© ALEM AP2"]
[null,"13h 00              14h 30",null,null,null,null,"ELASTICITE(TD)","ABED-ZIANE","B35","ELASTICITE(TD) ABED-ZIANE B35","MEC-ROCHES(TD)","HAMZA","B414","MEC-ROCHES(TD) HAMZA B414"]
[null,"14h 40              16h 10"]
[null,"16h 20              17h 50"]
["Samedi","8h 00                     9h 30"]
[null,"9h 40                  11h 10"]
[null,"11h20                 12h 50"]

{"sheet":"EAI LICENCE10","index":4,"n_rows":37,"n_cols":18,"rows_kept":37,"cut":false,"hidden":false,"merged":[[0,0,0,1],[3,0,8,0],[33,0,36,0],[27,0,32,0],[21,0,26,0],[15,0,20,0],[9,0,14,0]]}
["Departement:",null,null,null,null,null,null,null,null,"Filière:electrotech-auto-electron",null,null,null,"Spécialite:electrotech-auto-electron"]
[null,"Section:",null,null,null,"Licence 3ème année",null,null,null,null,null,null,null,{"$f":"NOW()","v":"2019-05-21T11:37:17.090"}]
["Jour","SEANCES","LELEC N-16","Enseignant","Salle","LELECN-16","LAUT-16","Enseignant","Salle","LAUT-16","LELECT-16/A","Enseignant","Salle","LELECT-16/A","LELECT-16/B","Enseignant","Salle","LELECT-16/B"]
["Dimanche","8h 00                     9h 30","PROJET-PROF-GEST©","HAMIANE","AP5","PROJET-PROF-GEST© HAMIANE AP5","PROJET PROF-GEST-ENT©","HAMIANE","AP5","PROJET PROF-GEST-ENT© HAMIANE AP5","PROJET PROF-GEST-ENT©","HAMIANE","AP5","PROJET PROF-GEST-ENT© HAMIANE AP5","PROJET PROF-GEST-ENT©","HAMIANE","AP5","PROJET PROF-GEST-ENT© HAMIANE AP5"]
[null,"9h 40                 11h 10","ELECTRONIQUE-PUISS(TP);ELECTRO-IMPUL(TP)","BENACHOUR;HAMDANI","B211;B211","ELECTRONIQUE-PUISS(TP) BENACHOUR B211\nELECTRO-IMPUL(TP) HAMDANI B211","BUS DE COMM-RES-IND©","NAFAA","C48","BUS DE COMM-RES-IND© NAFAA C48","REGULATION-INDUST©","BENABDALLAH","B44","REGULATION-INDUST© BENABDALLAH B44","REGULATION-INDUST©","BENABDALLAH","B44","REGULATION-INDUST© BENABDALLAH B44"]
[null,"11h20                 12h 50","ELECTRONIQUE-PUISS(TP);ELECTRO-IMPUL(TP)","BENACHOUR;HAMDANI","B211;B211","ELECTRONIQUE-PUISS(TP) BENACHOUR B211\nELECTRO-IMPUL(TP) HAMDANI B211","CAPTEURS-CHAIN-MES©","MILOUDI","C49","CAPTEURS-CHAIN-MES© MILOUDI C49","AUTOMATISMES INDUST©","NAFAA","B416","AUTOMATISMES INDUST© NAFAA B416","AUTOMATISMES INDUST©","NAFAA","B416","AUTOMATISMES INDUST© NAFAA B416"]
[null,"13h 00              14h 30","ASSERV-REGULA©","IDIR","B412","ASSERV-REGULA© IDIR B412","LES AUTO PROG INDUST(TP);CAPTEURS(TP)","RIACHE;MILOUDI","AT15;AT11","LES AUTO PROG INDUST(TP) RIACHE AT15\nCAPTEURS(TP) MILOUDI AT11","AUTOMATISMES INDUST(TD)","NAFAA","B411","AUTOMATISMES INDUST(TD) NAFAA B411","REGUL-INDUST(TP)","BENABDALLAH","C312","REGUL-INDUST(TP) BENABDALLAH C312"]
[null,"14h 40              16h 10","ASSERV-REGULA(TD)","IDIR","B412","ASSERV-REGULA(TD) IDIR B412","LES AUTO PROG INDUST(TP);CAPTEURS(TP)","RIACHE;MILOUDI","AT15;AT11","LES AUTO PROG INDUST(TP) RIACHE AT15\nCAPTEURS(TP) MILOUDI AT11",null,null,null,null,"REGUL-INDUST(TP)","BENABDALLAH","C312","REGUL-INDUST(TP) BENABDALLAH C312"]
[null,"16h 20              17h 50"]
["Lundi","8h 00                    9h 30","ASSERV-REGULA©","IDIR","C42","ASSERV-REGULA© IDIR C42","ACTIONNEURS(TP);BUS-COM-RES-IND(TP)","AOUZELAG;NAFAA","RC9/A;RC9/B","ACTIONNEURS(TP) AOUZELAG RC9/A\nBUS-COM-RES-IND(TP) NAFAA RC9/B","MAINTENANCE-IND©","LARBANI","B44","MAINTENANCE-IND© LARBANI B44","MAINTENANCE-IND©","LARBANI","B44","MAINTENANCE-IND© LARBANI B44"]
[null,"9h 40                  11h 10","CAPTEURS-INSTRUM©","MOUATSI","C42","CAPTEURS-INSTRUM© MOUATSI C42","ACTIONNEURS(TP);BUS-COM-RES-IND(TP)","AOUZELAG;NAFAA","AB12;RC9/B","ACTIONNEURS(TP) AOUZELAG AB12\nBUS-COM-RES-IND(TP) NAFAA RC9/B","COMMANDE-MACH©","BOUDOUDA","B416","COMMANDE-MACH© BOUDOUDA B416","COMMANDE-MACH©","BOUDOUDA","B416","COMMANDE-MACH© BOUDOUDA B416"]
[null,"11h20                12h 50","CAPTEURS-INSTRUM(TD)","MOUATSI","C42","CAPTEURS-INSTRUM(TD) MOUATSI C42","INST-ELECT-AUT©","HARFOUCHI","C48","INST-ELECT-AUT© HARFOUCHI C48","COMMANDE-MACH(TD)","BOUDOUDA","B412","COMMANDE-MACH(TD) BOUDOUDA B412","AUTOMATISMES INDUST(TD)","NAFAA","B47","AUTOMATISMES INDUST(TD) NAFAA B47"]
[null,"13h 00              14h 30","ASSERV-REGUL(TP);PROJET-FIN-CYCLE(TP)","IDIR;MOHGUEN","C312;C48","ASSERV-REGUL(TP) IDIR C312\nPROJET-FIN-CYCLE(TP) MOHGUEN C48","MAINT-FIABILITE©","ACHAB","C32","MAINT-FIABILITE© ACHAB C32","MATERIAUX-INTR(TP)","NICHE","AB12","MATERIAUX-INTR(TP) NICHE AB12","MATERIAUX-INTR(TP)","NICHE","AB12","MATERIAUX-INTR(TP) NICHE AB12"]
[null,"14h 40              16h 10","ASSERV-REGUL(TP);PROJET-FIN-CYCLE(TP)","IDIR;MOHGUEN","C312;C48","ASSERV-REGUL(TP) IDIR C312\nPROJET-FIN-CYCLE(TP) MOHGUEN C48","ACTIONNEURS(TD)","AOUZELAG","C32","ACTIONNEURS(TD) AOUZELAG C32","MATERIAUX-INTR(TP)","NICHE","AB12","MATERIAUX-INTR(TP) NICHE AB12","MATERIAUX-INTR(TP)","NICHE","AB12","MATERIAUX-INTR(TP) NICHE AB12"]
[null,"16h 20              17h 50"]
["Mardi","8h 00                    9h 30",null,null,null,null,"ACTIONNEURS©","AOUZELAG","B44","ACTIONNEURS© AOUZELAG B44","AUTO-IND(TP)","CHEBI","C42","AUTO-IND(TP) CHEBI C42","MATERIAUX-INTRO-HT(TD)","MZIOU","B417","MATERIAUX-INTRO-HT(TD) MZIOU B417"]
[null,"9h 40                 11h 10",null,null,null,null,null,null,null,null,"MATERIAUX-INTRO-HT(TD)","MZIOU","B41","MATERIAUX-INTRO-HT(TD) MZIOU B41","AUTO-IND(TP)","CHEBI","C42","AUTO-IND(TP) CHEBI C42"]
[null,"11h20                12h 50"]
[null,"13h 00              14h 30",null,null,null,null,null,null,null,null,"PROJET-FIN-CYCLE(TP)","AIBECHE","C48","PROJET-FIN-CYCLE(TP) AIBECHE C48","PROJET-FIN-CYCLE(TP)","AIBECHE","C48","PROJET-FIN-CYCLE(TP) AIBECHE C48"]
[null,"14h 40              16h 10",null,null,null,null,null,null,null,null,"PROJET-FIN-CYCLE(TP)","AIBECHE","C48","PROJET-FIN-CYCLE(TP) AIBECHE C48","PROJET-FIN-CYCLE(TP)","AIBECHE","C48","PROJET-FIN-CYCLE(TP) AIBECHE C48"]
[null,"16h 20              17h 50"]
["Mercredi","8h 00                    9h 30","CAPTEURS(TP)","YAKHLEF","C312","CAPTEURS(TP) YAKHLEF C312","COM-SYS-LIN(S5)©","MILOUDI","B417","COM-SYS-LIN(S5)© MILOUDI B417","COMMANDE-MACH©","BOUDOUDA","B43","COMMANDE-MACH© BOUDOUDA B43","COMMANDE-MACH©","BOUDOUDA","B43","COMMANDE-MACH© BOUDOUDA B43"]
[null,"9h 40                 11h 10","CAPTEURS(TP)","YAKHLEF","C312","CAPTEURS(TP) YAKHLEF C312","COM-SYS-LIN(S5)(TD)","MILOUDI","B417","COM-SYS-LIN(S5)(TD) MILOUDI B417","REGULATION-INDUST(TD)","BENABDALLAH","B411","REGULATION-INDUST(TD) BENABDALLAH B411","COMMANDE-MACH(TD)","BOUDOUDA","B43","COMMANDE-MACH(TD) BOUDOUDA B43"]
[null,"11h20                12h 50",null,null,null,null,"AUTO-PROG-IND©","GAHLOUZ","A12","AUTO-PROG-IND© GAHLOUZ A12","MATERIAUX-INTRO-HT©","MZIOU","B43","MATERIAUX-INTRO-HT© MZIOU B43","MATERIAUX-INTRO-HT©","MZIOU","B43","MATERIAUX-INTRO-HT© MZIOU B43"]
[null,"13h 00              14h 30","ELECTRO-IMPUL©","HARRAR","C48","ELECTRO-IMPUL© HARRAR C48",null,null,null,null,"COMMANDES DES MACHINES(TP)","ABDSLAME","A26","COMMANDES DES MACHINES(TP) ABDSLAME A26","REGULATION-INDUST(TD)","BENABDALLAH","B42","REGULATION-INDUST(TD) BENABDALLAH B42"]
[null,"14h 40              16h 10","ELECTRO-IMPUL(TD)","HARRAR","C48","ELECTRO-IMPUL(TD) HARRAR C48","AUT-PROG-IND(TD)","BENSNOUSSI","C412","AUT-PROG-IND(TD) BENSNOUSSI C412","COMMANDES DES MACHINES(TP)","ABDSLAME","A26","COMMANDES DES MACHINES(TP) ABDSLAME A26"]
[null,"16h 20              17h 50"]
["Jeudi","8h 00                     9h 30","DISPOSITIF-OPTDEL©","HARFOUCHI","C45","DISPOSITIF-OPTDEL© HARFOUCHI C45","SYST-ASSERV-ECHANT©","KHELOUAT","B32","SYST-ASSERV-ECHANT© KHELOUAT B32"]
[null,"9h 40                  11h 10","DISPOSITIF-OPTDEL©","HARFOUCHI","C45","DISPOSITIF-OPTDEL© HARFOUCHI C45","AUTOM-PROG-IND©","GAHLOUZ","A14","AUTOM-PROG-IND© GAHLOUZ A14","REGUL-INDUST(TP)","BENABDALLAH","RC9/A","REGUL-INDUST(TP) BENABDALLAH RC9/A","COMMANDES DES MACHINES(TP)","ABDSLAME","C312","COMMANDES DES MACHINES(TP) ABDSLAME C312"]
[null,"11h20                 12h 50","ELECTRONIQUE-PUISS©","AHRICHE","C17","ELECTRONIQUE-PUISS© AHRICHE C17","SYST-ASSERV-ECHA(TD)","KHELOUAT","B36","SYST-ASSERV-ECHA(TD) KHELOUAT B36","REGUL-INDUST(TP)","BENABDALLAH","RC9/A","REGUL-INDUST(TP) BENABDALLAH RC9/A","COMMANDES DES MACHINES(TP)","ABDSLAME","C312","COMMANDES DES MACHINES(TP) ABDSLAME C312"]
[null,"13h 00              14h 30","ELECTRONIQUE-PUISS(TD)","AHRICHE","C17","ELECTRONIQUE-PUISS(TD) AHRICHE C17","COM-SYS-LIN(S5)(TP)","MILOUDI","B210","COM-SYS-LIN(S5)(TP) MILOUDI B210","PROTEC  RESEAUX-ELECT©","AIBECHE","B416","PROTEC  RESEAUX-ELECT© AIBECHE B416","PROTEC  RESEAUX-ELECT©","AIBECHE","B416","PROTEC  RESEAUX-ELECT© AIBECHE B416"]
[null,"14h 40              16h 10",null,null,null,null,"COM-SYS-LIN(S5)(TP)","MILOUDI","B210","COM-SYS-LIN(S5)(TP) MILOUDI B210"]
[null,"16h 20              17h 50"]
["Samedi","8h 00                     9h 30",null,null,null,null,"PROJET-FIN-CYCLE(TP)","CHEBI","C43","PROJET-FIN-CYCLE(TP) CHEBI C43"]
[null,"9h 40                  11h 10",null,null,null,null,"PROJET-FIN-CYCLE(TP)","CHEBI","C43","PROJET-FIN-CYCLE(TP) CHEBI C43"]
[null,"13h 00              14h 30"]
[null,"14h 40              16h 10"]

{"sheet":"EAI MASTER12","index":5,"n_rows":36,"n_cols":14,"rows_kept":36,"cut":false,"hidden":false,"merged":[[33,0,35,0],[0,0,0,1],[3,0,8,0],[9,0,14,0],[15,0,20,0],[21,0,26,0],[27,0,32,0]]}
["Filière:Automatique",null,null,null,null,"Filière:electronique-electrotechnique",null,null,null,"Spécialité:Automatique et informatique-",null,null,null,"Spécialité:machines electriques"]
[null,"Section:",null,null,null,"Master 1ère année",null,null,null,"Spécialité:electronique systemes embarques",null,null,null,{"$f":"NOW()","v":"2019-05-21T11:37:17.090"}]
["Jour","SEANCES","MAI-I8","Enseignant","Salle","MAI-I8","MESE18","Enseignant","Salle","MESE18","MME18","Enseignant","Salle","MME18"]
["Dimanche","8h 00                     9h 30","LES SYSTEMES-N-LINEAIRES©","HAMDAOUI","B43","LES SYSTEMES-N-LINEAIRES© HAMDAOUI B43","CAPTEURS INTELLIG©","MOUATSI","C45","CAPTEURS INTELLIG© MOUATSI C45","ASSERV-ECHAN-REG©","KHELOUAT","C49","ASSERV-ECHAN-REG© KHELOUAT C49"]
[null,"9h 40                 11h 10","LES SYST NON LINEAIRE(TD)","HAMDAOUI","B43","LES SYST NON LINEAIRE(TD) HAMDAOUI B43","CAPTEURS INTELLIG(TD)","MOUATSI","C45","CAPTEURS INTELLIG(TD) MOUATSI C45","ASSERV-ECHAN-REG(TD)","KHELOUAT","C49","ASSERV-ECHAN-REG(TD) KHELOUAT C49"]
[null,"11h20                 12h 50","CONCEPT-ORIENTE OBJET©","NEKKAA","B37","CONCEPT-ORIENTE OBJET© NEKKAA B37",null,null,null,null,"CONSTRUCTION DES ME©","GROUNI","B310","CONSTRUCTION DES ME© GROUNI B310"]
[null,"13h 00              14h 30","SYS-N-L(TP)","HAMDAOUI","AB12","SYS-N-L(TP) HAMDAOUI AB12","CAPT-INTEL(TP)","MOUATSI","A27","CAPT-INTEL(TP) MOUATSI A27","ASSOCIATION-MACH-CONVERT©","GROUNI","C49","ASSOCIATION-MACH-CONVERT© GROUNI C49"]
[null,"14h 40              16h 10","SYS-N-L(TP)","HAMDAOUI","AB12","SYS-N-L(TP) HAMDAOUI AB12","CAPT-INTEL(TP)","MOUATSI","A27","CAPT-INTEL(TP) MOUATSI A27","CONSTRUCTION DES ME(TD)","GROUNI","B310","CONSTRUCTION DES ME(TD) GROUNI B310"]
[null,"16h 20              17h 50"]
["Lundi","8h 00                    9h 30","SYST-EMB-SYST-TEMPS-REELS(TD)","RIACHE","B43","SYST-EMB-SYST-TEMPS-REELS(TD) RIACHE B43","PROC-SIG-NUM(TP);ETUDE-REAL DES PROJET(TP)","NICHE;MOHGUEN","B211;A27","PROC-SIG-NUM(TP) NICHE B211\nETUDE-REAL DES PROJET(TP) MOHGUEN A27","MATERIAUX-ELECTRO©","BOUDOUDA","C49","MATERIAUX-ELECTRO© BOUDOUDA C49"]
[null,"9h 40                  11h 10","BASE DE DONNEE©","NEKKAA","B43","BASE DE DONNEE© NEKKAA B43","PROC-SIG-NUM(TP);ETUDE-REAL DES PROJET(TP)","NICHE;MOHGUEN","B211;A27","PROC-SIG-NUM(TP) NICHE B211\nETUDE-REAL DES PROJET(TP) MOHGUEN A27","MOD-MACH-ELECT©","BOUZIDA","C49","MOD-MACH-ELECT© BOUZIDA C49"]
[null,"11h20                12h 50","CAPTEUR INTELLIGENT©","MOHGUEN","C45","CAPTEUR INTELLIGENT© MOHGUEN C45","RESEAUX IND COMM©","MESSAOUDI-NE","B311","RESEAUX IND COMM© MESSAOUDI-NE B311"]
[null,"13h 00              14h 30","SYST-EMBARQ-SYST-TEMPS REELS(TP);CONCEPT ORIENTEE OBJET(TP)","RIACHE;NEKKAA","A26;A27","SYST-EMBARQ-SYST-TEMPS REELS(TP) RIACHE A26\nCONCEPT ORIENTEE OBJET(TP) NEKKAA A27","ETUDE-REAL DES PROJET©","MOHGUEN","C45","ETUDE-REAL DES PROJET© MOHGUEN C45","MOD-MACH-ELECT(TD)","BOUZIDA","C49","MOD-MACH-ELECT(TD) BOUZIDA C49"]
[null,"14h 40              16h 10","SYST-EMBARQ-SYST-TEMPS REELS(TP);CONCEPT ORIENTEE OBJET(TP)","RIACHE;NEKKAA","A26;A27","SYST-EMBARQ-SYST-TEMPS REELS(TP) RIACHE A26\nCONCEPT ORIENTEE OBJET(TP) NEKKAA A27",null,null,null,null,"MAINT-SURETE-FON©","ACHAB","C49","MAINT-SURETE-FON© ACHAB C49"]
[null,"16h 20              17h 50"]
["Mardi","8h 00                    9h 30",null,null,null,null,null,null,null,null,"MOD-MACH-ELECT(TP)","BOUZIDA","RC9/A","MOD-MACH-ELECT(TP) BOUZIDA RC9/A"]
[null,"9h 40                 11h 10",null,null,null,null,"PROCESSEURS-SIGNAUX(TD)","LANI","B312","PROCESSEURS-SIGNAUX(TD) LANI B312","MOD-MACH-ELECT(TP)","BOUZIDA","RC9/A","MOD-MACH-ELECT(TP) BOUZIDA RC9/A"]
[null,"11h20                12h 50"]
[null,"13h 00              14h 30","PROGRAMMATION AVACEE(TP)","BOUMEDINE","A26","PROGRAMMATION AVACEE(TP) BOUMEDINE A26"]
[null,"14h 40              16h 10","PROGRAMMATION AVACEE(TP)","BOUMEDINE","A26","PROGRAMMATION AVACEE(TP) BOUMEDINE A26"]
[null,"16h 20              17h 50"]
["Mercredi","8h 00                    9h 30","ELECTRONIQUE-APP(TP)","HAMDANI","B211","ELECTRONIQUE-APP(TP) HAMDANI B211","SYSTEMES-MICRO-CON©","SMAANI","B42","SYSTEMES-MICRO-CON© SMAANI B42","CHAMP-MACH DANS MACH ELECT©","HAMEL","C42","CHAMP-MACH DANS MACH ELECT© HAMEL C42"]
[null,"9h 40                 11h 10","ELECTRONIQUE-APP(TP)","HAMDANI","B211","ELECTRONIQUE-APP(TP) HAMDANI B211","SYSTEMES-MICRO-CON(TD)","SMAANI","B42","SYSTEMES-MICRO-CON(TD) SMAANI B42","CHAMP-MACH DANS MACH ELECT(TD)","HAMEL","C42","CHAMP-MACH DANS MACH ELECT(TD) HAMEL C42"]
[null,"11h20                12h 50","ETHIQUE DEONTOLOGIE-PRO-UP INT©","SAADSAOUD","AP2","ETHIQUE DEONTOLOGIE-PRO-UP INT© SAADSAOUD AP2","ETHIQUE DEONTOLOGIE-PRO-UP INT©","SAADSAOUD","AP2","ETHIQUE DEONTOLOGIE-PRO-UP INT© SAADSAOUD AP2","ETHIQUE DEONTOLOGIE-PRO-UP INT©","SAADSAOUD","AP2","ETHIQUE DEONTOLOGIE-PRO-UP INT© SAADSAOUD AP2"]
[null,"13h 00              14h 30","SYST EMBARQUE SYST TEMPS REELS©","SAADSAOUD","B43","SYST EMBARQUE SYST TEMPS REELS© SAADSAOUD B43","PROCESSEURS-SIGNAUX©","LANI","B417","PROCESSEURS-SIGNAUX© LANI B417","ASSERV-ECHANG-REG(TP)","YAKHLEF","C42","ASSERV-ECHANG-REG(TP) YAKHLEF C42"]
[null,"14h 40              16h 10","LES SYSTEMES-N-LINEAIRES©","HAMDAOUI","B31","LES SYSTEMES-N-LINEAIRES© HAMDAOUI B31","RESEAUX IND COMM(TD)","MESSAOUDI-NE","B417","RESEAUX IND COMM(TD) MESSAOUDI-NE B417","ASSERV-ECHANG-REG(TP)","YAKHLEF","C42","ASSERV-ECHANG-REG(TP) YAKHLEF C42"]
[null,"16h 20              17h 50"]
["Jeudi","8h 00                     9h 30","PROGRAMMATION AVACEE DES API©","BOUMEDINE","A22","PROGRAMMATION AVACEE DES API© BOUMEDINE A22","RES-IND-COM(TP);SYSTEMES-MICRO-CON(TP)","NICHE;SMAANI","A27;B211","RES-IND-COM(TP) NICHE A27\nSYSTEMES-MICRO-CON(TP) SMAANI B211","CAL-CHAMP-ELECTRO-MACH(TP)","HAMEL","C412","CAL-CHAMP-ELECTRO-MACH(TP) HAMEL C412"]
[null,"9h 40                  11h 10","PROGRAMMATION AVACEE DES API(TD)","BOUMEDINE","A22","PROGRAMMATION AVACEE DES API(TD) BOUMEDINE A22","RES-IND-COM(TP);SYSTEMES-MICRO-CON(TP)","NICHE;SMAANI","A27;B211","RES-IND-COM(TP) NICHE A27\nSYSTEMES-MICRO-CON(TP) SMAANI B211","CAL-CHAMP-ELECTRO-MACH(TP)","HAMEL","C412","CAL-CHAMP-ELECTRO-MACH(TP) HAMEL C412"]
[null,"11h20                 12h 50",null,null,null,null,"PROCESSEUR-SIGNAUX©","LANI","B32","PROCESSEUR-SIGNAUX© LANI B32","SECU-IND-ABI©","AIBECHE","C49","SECU-IND-ABI© AIBECHE C49"]
[null,"13h 00              14h 30","ELECTRONIQUE-APP©","HARRAR","B417","ELECTRONIQUE-APP© HARRAR B417","SYST-EMBARQUE-AUTO©","KHALFI","C43","SYST-EMBARQUE-AUTO© KHALFI C43","ASSOCIATION-MACH-ELECT(TP)","ABDSLAME","AB12","ASSOCIATION-MACH-ELECT(TP) ABDSLAME AB12"]
[null,"14h 40              16h 10","ELECTRONIQUE-APP(TD)","HARRAR","B417","ELECTRONIQUE-APP(TD) HARRAR B417","SYST-EXP-SYS-EMB©","KHALFI","C43","SYST-EXP-SYS-EMB© KHALFI C43","ASSOCIATION-MACH-ELECT(TP)","ABDSLAME","AB12","ASSOCIATION-MACH-ELECT(TP) ABDSLAME AB12"]
[null,"16h 20              17h 50"]
["Samedi","8h 00                     9h 30"]
[null,"9h 40                  11h 10"]
[null,"11h20                 12h 50"]

{"sheet":"MAT MASTER12","index":6,"n_rows":36,"n_cols":14,"rows_kept":36,"cut":false,"hidden":false,"merged":[[0,0,0,1],[3,0,8,0],[33,0,35,0],[27,0,32,0],[21,0,26,0],[15,0,20,0],[9,0,14,0]]}
[null,null,null,null,null,"Spécialité: matérieux gc-G Matérieaux"]
[null,"Section:",null,null,null,"Master 1ère année",null,null,null,{"$f":"NOW()","v":"2019-05-21T11:37:17.090"}]
["Jour","SEANCES","MMGC-18","Enseignant","Salle","MMGC-18","MGM-18/A","Enseignant","Salle","MGM-18/A","MGM-18/B","Enseignant","Salle","MGM-18/B"]
["Dimanche","8h 00                     9h 30","RHEOLOGIE DES MATEIAUX©","BENMOUNAH","B41","RHEOLOGIE DES MATEIAUX© BENMOUNAH B41"]
[null,"9h 40                 11h 10","BETONS INNOVANTS©","GHERNOUTI-H","B41","BETONS INNOVANTS© GHERNOUTI-H B41","MECANIQUE DE LA RUPTURE(TD)","ZERIZER","B310","MECANIQUE DE LA RUPTURE(TD) ZERIZER B310"]
[null,"11h20                 12h 50","BETONS INOVANTS©","GHERNOUTI-H","B313","BETONS INOVANTS© GHERNOUTI-H B313",null,null,null,null,"MECANIQUE DE LA RUPTURE(TD)","ZERIZER","B39","MECANIQUE DE LA RUPTURE(TD) ZERIZER B39"]
[null,"13h 00              14h 30","MEC DES MATERIAUX(TP)","SAFI","B19","MEC DES MATERIAUX(TP) SAFI B19","TRAITEMENT THERMIQUE©","AITSAADA","B37","TRAITEMENT THERMIQUE© AITSAADA B37","TRAITEMENT THERMIQUE©","AITSAADA","B37","TRAITEMENT THERMIQUE© AITSAADA B37"]
[null,"14h 40              16h 10","MEC DES MATERIAUX(TP)","SAFI","B19","MEC DES MATERIAUX(TP) SAFI B19","TRAITEMENT THERMIQUE(TD)","AITSAADA","B36","TRAITEMENT THERMIQUE(TD) AITSAADA B36","ELABO-CARACT-MATER-COMP(TP)","BOUCHOUIKA","C08","ELABO-CARACT-MATER-COMP(TP) BOUCHOUIKA C08"]
[null,"16h 20              17h 50"]
["Lundi","8h 00                    9h 30","ETIQUE DEONTOLOGIE-PROP-INT©","HAMIANE","B416","ETIQUE DEONTOLOGIE-PROP-INT© HAMIANE B416","ETIQUE DEONTOLOGIE-PROP-INT©","HAMIANE","B416","ETIQUE DEONTOLOGIE-PROP-INT© HAMIANE B416","ETIQUE DEONTOLOGIE-PROP-INT©","HAMIANE","B416","ETIQUE DEONTOLOGIE-PROP-INT© HAMIANE B416"]
[null,"9h 40                  11h 10","METHODES EXPRIMENTALE©","BOUMCHEDDA","B41","METHODES EXPRIMENTALE© BOUMCHEDDA B41","MECANIQUE DE LA RUPTURE©","ZERIZER","B44","MECANIQUE DE LA RUPTURE© ZERIZER B44","MECANIQUE DE LA RUPTURE©","ZERIZER","B44","MECANIQUE DE LA RUPTURE© ZERIZER B44"]
[null,"11h20                12h 50","METHODES EXPRIMENTALE(TP) ","BOUMCHEDDA","B46","METHODES EXPRIMENTALE(TP)  BOUMCHEDDA B46","ELABO-CARACT-MATER-COMP(TP)","BOUCHOUIKA","C08","ELABO-CARACT-MATER-COMP(TP) BOUCHOUIKA C08"]
[null,"13h 00              14h 30","PLASTICITE ENDOMAGEMENT©","TAZROUT","B313","PLASTICITE ENDOMAGEMENT© TAZROUT B313","NANOTECHNOLOGIE-NANOMATERAIUX©","CHEMANI-F","B417","NANOTECHNOLOGIE-NANOMATERAIUX© CHEMANI-F B417","NANOTECHNOLOGIE-NANOMATERAIUX©","CHEMANI-F","B417","NANOTECHNOLOGIE-NANOMATERAIUX© CHEMANI-F B417"]
[null,"14h 40              16h 10","PLAST ENDOM(TD) ","TAZROUT","B313","PLAST ENDOM(TD)  TAZROUT B313"]
[null,"16h 20              17h 50"]
["Mardi","8h 00                    9h 30",null,null,null,null,"DIFFUSION DANS LES SOLIDES©","DJEBBILI","B37","DIFFUSION DANS LES SOLIDES© DJEBBILI B37","DIFFUSION DANS LES SOLIDES©","DJEBBILI","B37","DIFFUSION DANS LES SOLIDES© DJEBBILI B37"]
[null,"9h 40                 11h 10"]
[null,"11h20                12h 50"]
[null,"13h 00              14h 30",null,null,null,null,"MODELISATION-SIMULATION -MAT©","ROUABHI","B37","MODELISATION-SIMULATION -MAT© ROUABHI B37","MODELISATION-SIMULATION -MAT©","ROUABHI","B37","MODELISATION-SIMULATION -MAT© ROUABHI B37"]
[null,"14h 40              16h 10",null,null,null,null,null,null,null,null,"MODELISATION-SIMULATION -MAT(TP)","ROUABHI","B210","MODELISATION-SIMULATION -MAT(TP) ROUABHI B210"]
[null,"16h 20              17h 50"]
["Mercredi","8h 00                    9h 30","MATERIAUX DE CONSTRUCTION©","RABEHI","B416","MATERIAUX DE CONSTRUCTION© RABEHI B416","MODELISATION-SIMULATION -MAT(TP)","ROUABHI","A26","MODELISATION-SIMULATION -MAT(TP) ROUABHI A26","TRAITEMENT THERMIQUE(TD)","AITSAADA","B31","TRAITEMENT THERMIQUE(TD) AITSAADA B31"]
[null,"9h 40                 11h 10",null,null,null,null,"PROP-PHYS-CH-MEC-POLY©","BENOTHMANE","B37","PROP-PHYS-CH-MEC-POLY© BENOTHMANE B37","PROP-PHYS-CH-MEC-POLY©","BENOTHMANE","B37","PROP-PHYS-CH-MEC-POLY© BENOTHMANE B37"]
[null,"11h20                12h 50","INFORMATIQUE APPLIQUE(TP)","BENGRAB","RC9/A","INFORMATIQUE APPLIQUE(TP) BENGRAB RC9/A"]
[null,"13h 00              14h 30","INFORMATIQUE APPLIQUE(TP)","BENGRAB","RC9/A","INFORMATIQUE APPLIQUE(TP) BENGRAB RC9/A","COMP-MEC-MAT-COMP-MUL©","BEZZAZI","AP4","COMP-MEC-MAT-COMP-MUL© BEZZAZI AP4","COMP-MEC-MAT-COMP-MUL©","BEZZAZI","AP4","COMP-MEC-MAT-COMP-MUL© BEZZAZI AP4"]
[null,"14h 40              16h 10",null,null,null,null,"COMP-MEC-MAT-COMP-MUL©","BEZZAZI","AP4","COMP-MEC-MAT-COMP-MUL© BEZZAZI AP4","COMP-MEC-MAT-COMP-MUL©","BEZZAZI","AP4","COMP-MEC-MAT-COMP-MUL© BEZZAZI AP4"]
[null,"16h 20              17h 50"]
["Jeudi","8h 00                     9h 30","HYDRATATION ET STRUCT PAT-CIM©","RABEHI","B41","HYDRATATION ET STRUCT PAT-CIM© RABEHI B41","RECYCLAGE DES MATERIAUX©","BENMOUNAH","B37","RECYCLAGE DES MATERIAUX© BENMOUNAH B37","RECYCLAGE DES MATERIAUX©","BENMOUNAH","B37","RECYCLAGE DES MATERIAUX© BENMOUNAH B37"]
[null,"9h 40                  11h 10","MATERIAUX DE CONSTRUCTION©","RABEHI","B41","MATERIAUX DE CONSTRUCTION© RABEHI B41","DIFFUSION DANS LES SOLIDES(TD)","DJEBBILI","B37","DIFFUSION DANS LES SOLIDES(TD) DJEBBILI B37","PROP-PHYS-CH-MEC-POLY(TD)","BENOTHMANE","B42","PROP-PHYS-CH-MEC-POLY(TD) BENOTHMANE B42"]
[null,"11h20                 12h 50",null,null,null,null,"PROP-PHYS-CH-MEC-POLY(TD)","BENOTHMANE","B37","PROP-PHYS-CH-MEC-POLY(TD) BENOTHMANE B37","DIFFUSION DANS LES SOLIDES(TD)","DJEBBILI","B42","DIFFUSION DANS LES SOLIDES(TD) DJEBBILI B42"]
[null,"13h 00              14h 30","OUVRAGES EN ACIE©","BENGRAB","B419","OUVRAGES EN ACIE© BENGRAB B419",null,null,null,null,"COMP-MEC-MAT-COMP-MUL(TD)","BEZZAZI","AP5","COMP-MEC-MAT-COMP-MUL(TD) BEZZAZI AP5"]
[null,"14h 40              16h 10","OUVRAGE EN ACIE(TD) ","BENGRAB","B419","OUVRAGE EN ACIE(TD)  BENGRAB B419","COMP-MEC-MAT-COMP-MUL(TD)","BEZZAZI","AP5","COMP-MEC-MAT-COMP-MUL(TD) BEZZAZI AP5"]
[null,"16h 20              17h 50"]
["Samedi","8h 00                     9h 30"]
[null,"9h 40                  11h 10"]
[null,"11h20                 12h 50"]

{"sheet":"MAT LICENCE10","index":7,"n_rows":36,"n_cols":18,"rows_kept":36,"cut":false,"hidden":false,"merged":[[0,0,0,1],[3,0,8,0],[33,0,35,0],[27,0,32,0],[21,0,26,0],[15,0,20,0],[9,0,14,0]]}
[null,null,null,null,null,"Filière:G-Mécanique",null,null,null,"Spécialité:G-matérieaux"]
[null,"Section:",null,null,null,"licence 3ème année",null,null,null,{"$f":"NOW()","v":"2019-05-21T11:37:17.090"}]
["Jour","SEANCES","LGM-16/A","Enseignant","Salle","LGM-16/A",null,null,null,null,"LGM-15/C","Enseignant","Salle","LGM-15/C","LSTM11","Enseignant","Salle","LSTM11"]
["Dimanche","8h 00                     9h 30","RHEOLOGIE DES MATERIAUX©","SAFI","B418","RHEOLOGIE DES MATERIAUX© SAFI B418",null,null,null,null,"POLYMERS©","XXX","XXX","POLYMERS© XXX XXX","METROLOGIE©","XXX","XXX","METROLOGIE© XXX XXX"]
[null,"9h 40                 11h 10","INITIATION AUX BIOMATERIAUX©","CHEMANI-F","B418","INITIATION AUX BIOMATERIAUX© CHEMANI-F B418",null,null,null,null,"INITIATION AUX BIOMATERIAUX©","XXX","XXX","INITIATION AUX BIOMATERIAUX© XXX XXX","METAUX ET ALLIAGE©","XXX","XXX","METAUX ET ALLIAGE© XXX XXX"]
[null,"11h20                 12h 50",null,null,null,null,null,null,null,null,"POLYMERS(TD) ","XXX","XXX","POLYMERS(TD)  XXX XXX","MATH ASSIST PAR ORD©","XXX","XXX","MATH ASSIST PAR ORD© XXX XXX"]
[null,"13h 00              14h 30","MATERIAUX COMPOSITES(TP) ","BOUCHOUIKA","B39","MATERIAUX COMPOSITES(TP)  BOUCHOUIKA B39"]
[null,"14h 40              16h 10","PROJET PROFESSIONNEL ET GESTION DE L'ENTREPRISE©","GUERRACHE","AP1","PROJET PROFESSIONNEL ET GESTION DE L'ENTREPRISE© GUERRACHE AP1",null,null,null,null,"DEGRADATION ET PROTECTION DES MATERIAUX(TD) ","XXX","XXX","DEGRADATION ET PROTECTION DES MATERIAUX(TD)  XXX XXX","METAUX ET ALLIAGE(TD)","XXX","XXX","METAUX ET ALLIAGE(TD) XXX XXX"]
[null,"16h 20              17h 50"]
["Lundi","8h 00                    9h 30","LES BOIS ET LES MOUSSE©","ZERIZER","B31","LES BOIS ET LES MOUSSE© ZERIZER B31",null,null,null,null,"RHEOLOGIE DES MATERIAUX(TD) ","XXX","XXX","RHEOLOGIE DES MATERIAUX(TD)  XXX XXX","LES LIANTS MINEREAUX©","XXX","XXX","LES LIANTS MINEREAUX© XXX XXX"]
[null,"9h 40                  11h 10","MAT-COMP(TD) ","DILMI","B31","MAT-COMP(TD)  DILMI B31",null,null,null,null,"MATERIAUX COMPOSITES(TP) ","XXX","XXX","MATERIAUX COMPOSITES(TP)  XXX XXX","LES BETONS©","XXX","XXX","LES BETONS© XXX XXX"]
[null,"11h20                12h 50","POLYMERS(TP) ","TOUBAL","B22","POLYMERS(TP)  TOUBAL B22",null,null,null,null,null,null,null,null,"MATH ASSIST PAR ORD(TD)","XXX","XXX","MATH ASSIST PAR ORD(TD) XXX XXX"]
[null,"13h 00              14h 30","POLYMERS©","BENOUADAH","B419","POLYMERS© BENOUADAH B419",null,null,null,null,"DEGRADATION ET PROTECTION DES MATERIAUX©","XXX","XXX","DEGRADATION ET PROTECTION DES MATERIAUX© XXX XXX"]
[null,"14h 40              16h 10","POLYMERS(TD) ","BENOUADAH","B419","POLYMERS(TD)  BENOUADAH B419",null,null,null,null,"LES BOIS ET LES MOUSSE©","XXX","XXX","LES BOIS ET LES MOUSSE© XXX XXX"]
[null,"16h 20              17h 50"]
["Mardi","8h 00                    9h 30","IMPACT DES MAT SUR L'ENVIRONNEMENT©","DILMI","B39","IMPACT DES MAT SUR L'ENVIRONNEMENT© DILMI B39",null,null,null,null,"MAT-COMP(TD) ","XXX","XXX","MAT-COMP(TD)  XXX XXX","POLYMERES ET MAT COMP©","XXX","XXX","POLYMERES ET MAT COMP© XXX XXX"]
[null,"9h 40                 11h 10","MAT-COMP© ","DILMI","B39","MAT-COMP©  DILMI B39",null,null,null,null,"MAT-COMP© ","XXX","XXX","MAT-COMP©  XXX XXX","LES LIANTS MINERAUX(TP)(1/2G);LES BETON(TP)((1/2G)","XXX;XXX","XXX;XXX","LES LIANTS MINERAUX(TP)(1/2G) XXX XXX\nLES BETON(TP)((1/2G) XXX XXX"]
[null,"11h20                12h 50",null,null,null,null,null,null,null,null,"FABRICATION MECANIQUE© ","XXX","XXX","FABRICATION MECANIQUE©  XXX XXX","LES LIANTS MINERAUX(TP)(1/2G);LES BETON(TP)((1/2G)","XXX;XXX","XXX;XXX","LES LIANTS MINERAUX(TP)(1/2G) XXX XXX\nLES BETON(TP)((1/2G) XXX XXX"]
[null,"13h 00              14h 30"]
[null,"14h 40              16h 10",null,null,null,null,null,null,null,null,null,null,null,null,"ANGLAIS©","XXX","XXX","ANGLAIS© XXX XXX"]
[null,"16h 20              17h 50"]
["Mercredi","8h 00                    9h 30","DEGRADATION ET PROTECTION DES MATERIAUX(TD) ","ABOUTALEB","B39","DEGRADATION ET PROTECTION DES MATERIAUX(TD)  ABOUTALEB B39",null,null,null,null,null,null,null,null,"VERRES©","XXX","XXX","VERRES© XXX XXX"]
[null,"9h 40                 11h 10","RHEOLOGIE DES MATERIAUX(TD) ","SAFI","B311","RHEOLOGIE DES MATERIAUX(TD)  SAFI B311",null,null,null,null,"POLYMERS(TP)","XXX","XXX","POLYMERS(TP) XXX XXX","CERAMIQUE©","XXX","XXX","CERAMIQUE© XXX XXX"]
[null,"11h20                12h 50","CORROSION(TP) ","KHARBOUCHE","B44","CORROSION(TP)  KHARBOUCHE B44"]
[null,"13h 00              14h 30",null,null,null,null,null,null,null,null,"PROJET PROFESSIONNEL ET GESTION DE L'ENTREPRISE©","XXX","XXX","PROJET PROFESSIONNEL ET GESTION DE L'ENTREPRISE© XXX XXX","POLYMERES ET MAT COMP©","XXX","XXX","POLYMERES ET MAT COMP© XXX XXX"]
[null,"14h 40              16h 10",null,null,null,null,null,null,null,null,"IMPACT DES MAT SUR L'ENVIRONNEMENT©","XXX","XXX","IMPACT DES MAT SUR L'ENVIRONNEMENT© XXX XXX","POLYMERES ET MAT COMP©","XXX","XXX","POLYMERES ET MAT COMP© XXX XXX"]
[null,"16h 20              17h 50"]
["Jeudi","8h 00                     9h 30","DEGRADATION ET PROTECTION DES MATERIAUX©","ABOUTALEB","B47","DEGRADATION ET PROTECTION DES MATERIAUX© ABOUTALEB B47",null,null,null,null,"RHEOLOGIE DES MATERIAUX©","XXX","XXX","RHEOLOGIE DES MATERIAUX© XXX XXX","CRISTALLOGRAPHIE©","XXX","XXX","CRISTALLOGRAPHIE© XXX XXX"]
[null,"9h 40                  11h 10","PROJET FIN DE CYCLE(TP) ","SAFI","B35","PROJET FIN DE CYCLE(TP)  SAFI B35",null,null,null,null,"THERMODYNAMIQUEII©","XXX","XXX","THERMODYNAMIQUEII© XXX XXX","CERAMIQUE(TP)(1/2G);VERRES(TP)(1/2G)","XXX;XXX","XXX;XXX","CERAMIQUE(TP)(1/2G) XXX XXX\nVERRES(TP)(1/2G) XXX XXX"]
[null,"11h20                 12h 50","PROJET FIN DE CYCLE(TP) ","SAFI","B35","PROJET FIN DE CYCLE(TP)  SAFI B35",null,null,null,null,null,null,null,null,"CERAMIQUE(TP)(1/2G);VERRES(TP)(1/2G)","XXX;XXX","XXX;XXX","CERAMIQUE(TP)(1/2G) XXX XXX\nVERRES(TP)(1/2G) XXX XXX"]
[null,"13h 00              14h 30",null,null,null,null,null,null,null,null,"CORROSION(TP) ","XXX","XXX","CORROSION(TP)  XXX XXX"]
[null,"14h 40              16h 10",null,null,null,null,null,null,null,null,"THERMODYNAMIQUEII(TD) ","XXX","XXX","THERMODYNAMIQUEII(TD)  XXX XXX","METROLOGIE(TD)","XXX","XXX","METROLOGIE(TD) XXX XXX"]
[null,"16h 20              17h 50"]
["Samedi","8h 00                     9h 30",null,null,null,null,null,null,null,null,"PROJET FIN DE CYCLE(TP) ","XXX","XXX","PROJET FIN DE CYCLE(TP)  XXX XXX"]
[null,"9h 40                  11h 10",null,null,null,null,null,null,null,null,"PROJET FIN DE CYCLE(TP) ","XXX","XXX","PROJET FIN DE CYCLE(TP)  XXX XXX"]
[null,"11h20                 12h 50"]

{"sheet":"DGPI LICENCE10","index":8,"n_rows":36,"n_cols":18,"rows_kept":36,"cut":false,"hidden":false,"merged":[[33,0,35,0],[3,0,8,0],[9,0,14,0],[0,0,0,1],[15,0,20,0],[21,0,26,0],[27,0,32,0]]}
[null,null,null,null,null,null,null,null,null,"Filière:génie des procédés",null,null,null,"Spécialite:génie des procédés"]
[null,"Section:",null,null,null,"licence 3ème année",null,null,null,null,null,null,null,{"$f":"NOW()","v":"2019-05-21T11:37:17.090"}]
["Jour","SEANCES","LGP-16/A","Enseignant","Salle","LGP-16/A","LGP-16/B","Enseignant","Salle","LGP-16/B","LGP-16/C","Enseignant","Salle","LGP-16/C","LHSI-16","Enseignant","Salle","LHSI-16"]
["Dimanche","8h 00                     9h 30","THERMODYNAMIQUE DES EQUILIBRES©","AISSAT","AP3","THERMODYNAMIQUE DES EQUILIBRES© AISSAT AP3","THERMODYNAMIQUE DES EQUILIBRES©","AISSAT","AP3","THERMODYNAMIQUE DES EQUILIBRES© AISSAT AP3","THERMODYNAMIQUE DES EQUILIBRES©","AISSAT","AP3","THERMODYNAMIQUE DES EQUILIBRES© AISSAT AP3","ETUDES ET DANGERS ET ETUDES D'IMPACT©","ABDELLAOUI","C32","ETUDES ET DANGERS ET ETUDES D'IMPACT© ABDELLAOUI C32"]
[null,"9h 40                 11h 10","REACTEURS HOMOGENES©","NOURI","AP3","REACTEURS HOMOGENES© NOURI AP3","REACTEURS HOMOGENES©","NOURI","AP3","REACTEURS HOMOGENES© NOURI AP3","REACTEURS HOMOGENES©","NOURI","AP3","REACTEURS HOMOGENES© NOURI AP3","ETUDES ET DANGERS ET ETUDES D'IMPACT(TD) ","ABDELLAOUI","C32","ETUDES ET DANGERS ET ETUDES D'IMPACT(TD)  ABDELLAOUI C32"]
[null,"11h20                 12h 50",null,null,null,null,null,null,null,null,"REACTEURS HOMOGENES(TD)","BOUGHRARA","B44","REACTEURS HOMOGENES(TD) BOUGHRARA B44","PATHOLOG PROF ILLES ACCIDENTS DE TRAVAIL©","KORSO","C32","PATHOLOG PROF ILLES ACCIDENTS DE TRAVAIL© KORSO C32"]
[null,"13h 00              14h 30","[SI]CH-PHYSII-GENII(TP)","BANDOU","C02","[SI]CH-PHYSII-GENII(TP) BANDOU C02","REACTEURS HOMOGENES(TD)","BOUGHRARA","B44","REACTEURS HOMOGENES(TD) BOUGHRARA B44","[SP]CH-PHYSII-GENII(TP)","BANDOU","C02","[SP]CH-PHYSII-GENII(TP) BANDOU C02"]
[null,"14h 40              16h 10","[SI]CH-PHYSII-GENII(TP)","BANDOU","C02","[SI]CH-PHYSII-GENII(TP) BANDOU C02",null,null,null,null,"[SP]CH-PHYSII-GENII(TP)","BANDOU","C02","[SP]CH-PHYSII-GENII(TP) BANDOU C02"]
[null,"16h 20              17h 50"]
["Lundi","8h 00                    9h 30","CORROSION©","LOUHAB","AP3","CORROSION© LOUHAB AP3","CORROSION©","LOUHAB","AP3","CORROSION© LOUHAB AP3","CORROSION©","LOUHAB","AP3","CORROSION© LOUHAB AP3","METHODES QUAN ANALYSE RISQUES©","TIRECHE","B419","METHODES QUAN ANALYSE RISQUES© TIRECHE B419"]
[null,"9h 40                  11h 10","PHENOMENES DE SURFACE ET CATALYSE HETROGENNE©","ASSELAH","AP3","PHENOMENES DE SURFACE ET CATALYSE HETROGENNE© ASSELAH AP3","PHENOMENES DE SURFACE ET CATALYSE HETROGENNE©","ASSELAH","AP3","PHENOMENES DE SURFACE ET CATALYSE HETROGENNE© ASSELAH AP3","PHENOMENES DE SURFACE ET CATALYSE HETROGENNE©","ASSELAH","AP3","PHENOMENES DE SURFACE ET CATALYSE HETROGENNE© ASSELAH AP3","METHODES QUAN ANALYSE RISQUES(TD) ","TIRECHE","B419","METHODES QUAN ANALYSE RISQUES(TD)  TIRECHE B419"]
[null,"11h20                12h 50","PH EN-SUR-CAT-HET(TD)","ASSELAH","B44","PH EN-SUR-CAT-HET(TD) ASSELAH B44","THERMODYN-EQUIL(TD)","BOUNECHACHE","B312","THERMODYN-EQUIL(TD) BOUNECHACHE B312","PH EN-SUR-CAT-HET(TD)","ASSELAH","B44","PH EN-SUR-CAT-HET(TD) ASSELAH B44","TRAITEMENT DES DECHETS©","MEDJEDOUB","B36","TRAITEMENT DES DECHETS© MEDJEDOUB B36"]
[null,"13h 00              14h 30",null,null,null,null,"PH EN-SUR-CAT-HET(TD)","ASSELAH","B41","PH EN-SUR-CAT-HET(TD) ASSELAH B41","THERMODYN-EQUIL(TD)","BOUNECHACHE","B47","THERMODYN-EQUIL(TD) BOUNECHACHE B47","TRAITEMENT DES DECHETS(TD) ","MEDJEDOUB","B36","TRAITEMENT DES DECHETS(TD)  MEDJEDOUB B36"]
[null,"14h 40              16h 10","THERMODYN-EQUIL(TD)","BOUNECHACHE","B47","THERMODYN-EQUIL(TD) BOUNECHACHE B47"]
[null,"16h 20              17h 50"]
["Mardi","8h 00                    9h 30"]
[null,"9h 40                 11h 10"]
[null,"11h20                12h 50"]
[null,"13h 00              14h 30","PROJET DE FIN DE CYCLE(TP)","AKSAS","AP4","PROJET DE FIN DE CYCLE(TP) AKSAS AP4","PROJET DE FIN DE CYCLE(TP)","AKSAS","AP4","PROJET DE FIN DE CYCLE(TP) AKSAS AP4","PROJET DE FIN DE CYCLE(TP)","HADERBACHE","AP4","PROJET DE FIN DE CYCLE(TP) HADERBACHE AP4","PROJET DE FIN DE CYCLE(TP)","HADERBACHE","AP4","PROJET DE FIN DE CYCLE(TP) HADERBACHE AP4"]
[null,"14h 40              16h 10","PROJET DE FIN DE CYCLE(TP)","AKSAS","AP4","PROJET DE FIN DE CYCLE(TP) AKSAS AP4","PROJET DE FIN DE CYCLE(TP)","AKSAS","AP4","PROJET DE FIN DE CYCLE(TP) AKSAS AP4","PROJET DE FIN DE CYCLE(TP)","HADERBACHE","AP4","PROJET DE FIN DE CYCLE(TP) HADERBACHE AP4","PROJET DE FIN DE CYCLE(TP)","HADERBACHE","AP4","PROJET DE FIN DE CYCLE(TP) HADERBACHE AP4"]
[null,"16h 20              17h 50"]
["Mercredi","8h 00                    9h 30","OPERAT-UNITAIRES©","BOUTICHE","B418","OPERAT-UNITAIRES© BOUTICHE B418","OPERAT-UNITAIRES©","BOUTICHE","B418","OPERAT-UNITAIRES© BOUTICHE B418","OPERAT-UNITAIRES©","BOUTICHE","B418","OPERAT-UNITAIRES© BOUTICHE B418","GESTION DE CRISE©","ABDELHAK","C32","GESTION DE CRISE© ABDELHAK C32"]
[null,"9h 40                 11h 10","SIMULATEUR DE PROCEDES©","BENRACHEDI","AP3","SIMULATEUR DE PROCEDES© BENRACHEDI AP3","SIMULATEUR DE PROCEDES©","BENRACHEDI","AP3","SIMULATEUR DE PROCEDES© BENRACHEDI AP3","SIMULATEUR DE PROCEDES©","BENRACHEDI","AP3","SIMULATEUR DE PROCEDES© BENRACHEDI AP3","NOTION DE SIMULATION©","ABDELHAK","C32","NOTION DE SIMULATION© ABDELHAK C32"]
[null,"11h20                12h 50","REACTEURS HOMOGENES(TD)","BOUGHRARA","C412","REACTEURS HOMOGENES(TD) BOUGHRARA C412","OPERAT-UNITAIRES(TD)","BOUTICHE","B47","OPERAT-UNITAIRES(TD) BOUTICHE B47",null,null,null,null,"[SP]GESTION DE CRISE(TD)","ABDELHAK","C32","[SP]GESTION DE CRISE(TD) ABDELHAK C32"]
[null,"13h 00              14h 30","PROJET PROFESSINNEL ET GESTION D'ENTREPRISE©","KORSO","AP5","PROJET PROFESSINNEL ET GESTION D'ENTREPRISE© KORSO AP5","PROJET PROFESSINNEL ET GESTION D'ENTREPRISE©","KORSO","AP5","PROJET PROFESSINNEL ET GESTION D'ENTREPRISE© KORSO AP5","PROJET PROFESSINNEL ET GESTION D'ENTREPRISE©","KORSO","AP5","PROJET PROFESSINNEL ET GESTION D'ENTREPRISE© KORSO AP5","PROJET PROF GESTION ENTREPRISE©","KORSO","C32","PROJET PROF GESTION ENTREPRISE© KORSO C32"]
[null,"14h 40              16h 10"]
[null,"16h 20              17h 50"]
["Jeudi","8h 00                     9h 30","OPERAT-UNITAIRES©","BOUTICHE","B418","OPERAT-UNITAIRES© BOUTICHE B418","OPERAT-UNITAIRES©","BOUTICHE","B418","OPERAT-UNITAIRES© BOUTICHE B418","OPERAT-UNITAIRES©","BOUTICHE","B418","OPERAT-UNITAIRES© BOUTICHE B418","ASSURENCE ET TARIFICATION DES RISQUES©","ABDELHAK","B31","ASSURENCE ET TARIFICATION DES RISQUES© ABDELHAK B31"]
[null,"9h 40                  11h 10","PROCEDES CRYOGENIQUE©","BOUFELLAH","AP3","PROCEDES CRYOGENIQUE© BOUFELLAH AP3","PROCEDES CRYOGENIQUE©","BOUFELLAH","AP3","PROCEDES CRYOGENIQUE© BOUFELLAH AP3","PROCEDES CRYOGENIQUE©","BOUFELLAH","AP3","PROCEDES CRYOGENIQUE© BOUFELLAH AP3","ASSURENCE ET TARIFICATION DES RISQUES(TD) ","ABDELHAK","B31","ASSURENCE ET TARIFICATION DES RISQUES(TD)  ABDELHAK B31"]
[null,"11h20                 12h 50",null,null,null,null,null,null,null,null,"OPERAT-UNITAIRES(TD)","BOUTICHE","B44","OPERAT-UNITAIRES(TD) BOUTICHE B44","ASSURENCE ET TARIFICATION DES RISQUES©","ABDELHAK","B31","ASSURENCE ET TARIFICATION DES RISQUES© ABDELHAK B31"]
[null,"13h 00              14h 30","OPERAT-UNITAIRES(TD)","BOUTICHE","B44","OPERAT-UNITAIRES(TD) BOUTICHE B44","[SI]CH-PHYSII-GENII(TP)","MAHDI","C210","[SI]CH-PHYSII-GENII(TP) MAHDI C210",null,null,"C02",null,"ERGONOMIE INDUSTRIELLE©","TIRECHE","B43","ERGONOMIE INDUSTRIELLE© TIRECHE B43"]
[null,"14h 40              16h 10",null,null,null,null,"[SI]CH-PHYSII-GENII(TP)","MAHDI","C210","[SI]CH-PHYSII-GENII(TP) MAHDI C210",null,null,"C02"]
[null,"16h 20              17h 50"]
["Samedi","8h 00                     9h 30"]
[null,"9h 40                  11h 10"]
[null,"11h20                 12h 50"]

{"sheet":"TA LICENCE10","index":9,"n_rows":36,"n_cols":18,"rows_kept":36,"cut":false,"hidden":false,"merged":[[0,8,0,9],[1,8,1,9],[0,0,0,1],[33,0,35,0],[27,0,32,0],[3,0,8,0],[9,0,14,0],[15,0,20,0],[21,0,26,0],[1,1,1,2]]}
[" ",null,null,null,null,"génie des procédés",null,null,{"$f":"TODAY()","v":"2019-05-21"}]
[null,"Section:",null,null,null,"LICENCE 3ème année",null,null,"Section:"]
["Jour","SEANCES","LGP-16/D","Enseignant","Salle","LGP-16/D","LGP-16/E","Enseignant","Salle","LGP-16/E","LGP-16/F","Enseignant","Salle","LGP-16/F","LGP-16/G","Enseignant","Salle","LGP-16/G"]
["Dimanche","8h 00                     9h 30","THERMODYNAMIQUE DES EQUILIBRES©","AISSAT","AP3","THERMODYNAMIQUE DES EQUILIBRES© AISSAT AP3","THERMODYNAMIQUE DES EQUILIBRES©","AISSAT","AP3","THERMODYNAMIQUE DES EQUILIBRES© AISSAT AP3","THERMODYNAMIQUE DES EQUILIBRES©","AISSAT","AP3","THERMODYNAMIQUE DES EQUILIBRES© AISSAT AP3","THERMODYNAMIQUE DES EQUILIBRES©","AISSAT","AP3","THERMODYNAMIQUE DES EQUILIBRES© AISSAT AP3"]
[null,"9h 40                 11h 10","REACTEURS HOMOGENES©","NOURI","AP3","REACTEURS HOMOGENES© NOURI AP3","REACTEURS HOMOGENES©","NOURI","AP3","REACTEURS HOMOGENES© NOURI AP3","REACTEURS HOMOGENES©","NOURI","AP3","REACTEURS HOMOGENES© NOURI AP3","REACTEURS HOMOGENES©","NOURI","AP3","REACTEURS HOMOGENES© NOURI AP3"]
[null,"11h20                 12h 50","PH EN-SUR-CAT-HET(TD)","ASSELAH","B43","PH EN-SUR-CAT-HET(TD) ASSELAH B43","THERMODYN(TD)","AOUFI","C17","THERMODYN(TD) AOUFI C17","REACTEURS (TD)","BENMALEK","C43","REACTEURS (TD) BENMALEK C43","PH EN-SUR-CAT-HET(TD)","ASSELAH","B43","PH EN-SUR-CAT-HET(TD) ASSELAH B43"]
[null,"13h 00              14h 30","THERMODYN(TD)","AOUFI","C32","THERMODYN(TD) AOUFI C32","PH EN-SUR-CAT-HET(TD)","ASSELAH","B418","PH EN-SUR-CAT-HET(TD) ASSELAH B418","PH EN-SUR-CAT-HET(TD)","ASSELAH","B418","PH EN-SUR-CAT-HET(TD) ASSELAH B418","REACTEURS (TD)","BENMALEK","C42","REACTEURS (TD) BENMALEK C42"]
[null,"14h 40              16h 10",null,null,null,null,"REACTEURS (TD)","BENMALEK","C49","REACTEURS (TD) BENMALEK C49","THERMODYN(TD)","AOUFI","C32","THERMODYN(TD) AOUFI C32"]
[null,"16h 20              17h 50"]
["Lundi","8h 00                    9h 30","CORROSION©","LOUHAB","AP3","CORROSION© LOUHAB AP3","CORROSION©","LOUHAB","AP3","CORROSION© LOUHAB AP3","CORROSION©","LOUHAB","AP3","CORROSION© LOUHAB AP3","CORROSION©","LOUHAB","AP3","CORROSION© LOUHAB AP3"]
[null,"9h 40                  11h 10","PHENOMENES DE SURFACE ET CATALYSE HETROGENNE©","ASSELAH","AP3","PHENOMENES DE SURFACE ET CATALYSE HETROGENNE© ASSELAH AP3","PHENOMENES DE SURFACE ET CATALYSE HETROGENNE©","ASSELAH","AP3","PHENOMENES DE SURFACE ET CATALYSE HETROGENNE© ASSELAH AP3","PHENOMENES DE SURFACE ET CATALYSE HETROGENNE©","ASSELAH","AP3","PHENOMENES DE SURFACE ET CATALYSE HETROGENNE© ASSELAH AP3","PHENOMENES DE SURFACE ET CATALYSE HETROGENNE©","ASSELAH","AP3","PHENOMENES DE SURFACE ET CATALYSE HETROGENNE© ASSELAH AP3"]
[null,"11h20                12h 50","REACTEURS (TD)","BENMALEK","C32","REACTEURS (TD) BENMALEK C32",null,null,null,null,"OPERAT-UNITAIRES(TD)","SEKOUR","C32","OPERAT-UNITAIRES(TD) SEKOUR C32","OPERAT-UNITAIRES(TD)","SEKOUR","B417","OPERAT-UNITAIRES(TD) SEKOUR B417"]
[null,"13h 00              14h 30","PROJET DE FIN DE CYCLE(TP)","AKSAS","AP4","PROJET DE FIN DE CYCLE(TP) AKSAS AP4","PROJET DE FIN DE CYCLE(TP)","AKSAS","AP4","PROJET DE FIN DE CYCLE(TP) AKSAS AP4","PROJET DE FIN DE CYCLE(TP)","HADERBACHE","AP4","PROJET DE FIN DE CYCLE(TP) HADERBACHE AP4","PROJET DE FIN DE CYCLE(TP)","HADERBACHE","AP4","PROJET DE FIN DE CYCLE(TP) HADERBACHE AP4"]
[null,"14h 40              16h 10","PROJET DE FIN DE CYCLE(TP)","AKSAS","AP4","PROJET DE FIN DE CYCLE(TP) AKSAS AP4","PROJET DE FIN DE CYCLE(TP)","AKSAS","AP4","PROJET DE FIN DE CYCLE(TP) AKSAS AP4","PROJET DE FIN DE CYCLE(TP)","HADERBACHE","AP4","PROJET DE FIN DE CYCLE(TP) HADERBACHE AP4","PROJET DE FIN DE CYCLE(TP)","HADERBACHE","AP4","PROJET DE FIN DE CYCLE(TP) HADERBACHE AP4"]
[null,"16h 20              17h 50"]
["Mardi","8h 00                    9h 30"]
[null,"9h 40                 11h 10"]
[null,"11h20                12h 50"]
[null,"13h 00              14h 30"]
[null,"14h 40              16h 10"]
[null,"16h 20              17h 50"]
["Mercredi","8h 00                    9h 30","OPERAT-UNITAIRES©","SEKOUR","AP3","OPERAT-UNITAIRES© SEKOUR AP3","OPERAT-UNITAIRES©","SEKOUR","AP3","OPERAT-UNITAIRES© SEKOUR AP3","OPERAT-UNITAIRES©","SEKOUR","AP3","OPERAT-UNITAIRES© SEKOUR AP3","OPERAT-UNITAIRES©","SEKOUR","AP3","OPERAT-UNITAIRES© SEKOUR AP3"]
[null,"9h 40                 11h 10","SIMULATEUR DE PROCEDES©","BENRACHEDI","AP3","SIMULATEUR DE PROCEDES© BENRACHEDI AP3","SIMULATEUR DE PROCEDES©","BENRACHEDI","AP3","SIMULATEUR DE PROCEDES© BENRACHEDI AP3","SIMULATEUR DE PROCEDES©","BENRACHEDI","AP3","SIMULATEUR DE PROCEDES© BENRACHEDI AP3","SIMULATEUR DE PROCEDES©","BENRACHEDI","AP3","SIMULATEUR DE PROCEDES© BENRACHEDI AP3"]
[null,"11h20                12h 50",null,null,null,null,null,null,null,null,null,null,null,null,"THERMODYN(TD)","BOUNECHACHE","B39","THERMODYN(TD) BOUNECHACHE B39"]
[null,"13h 00              14h 30","PROJET PROFESSINNEL ET GESTION D'ENTREPRISE©","KORSO","AP5","PROJET PROFESSINNEL ET GESTION D'ENTREPRISE© KORSO AP5","PROJET PROFESSINNEL ET GESTION D'ENTREPRISE©","KORSO","AP5","PROJET PROFESSINNEL ET GESTION D'ENTREPRISE© KORSO AP5","PROJET PROFESSINNEL ET GESTION D'ENTREPRISE©","KORSO","AP5","PROJET PROFESSINNEL ET GESTION D'ENTREPRISE© KORSO AP5","PROJET PROFESSINNEL ET GESTION D'ENTREPRISE©","KORSO","AP5","PROJET PROFESSINNEL ET GESTION D'ENTREPRISE© KORSO AP5"]
[null,"14h 40              16h 10"]
[null,"16h 20              17h 50"]
["Jeudi","8h 00                     9h 30","OPERAT-UNITAIRES©","SEKOUR","AP3","OPERAT-UNITAIRES© SEKOUR AP3","OPERAT-UNITAIRES©","SEKOUR","AP3","OPERAT-UNITAIRES© SEKOUR AP3","OPERAT-UNITAIRES©","SEKOUR","AP3","OPERAT-UNITAIRES© SEKOUR AP3","OPERAT-UNITAIRES©","SEKOUR","AP3","OPERAT-UNITAIRES© SEKOUR AP3"]
[null,"9h 40                  11h 10","PROCEDES CRYOGENIQUE©","BOUFELLAH","AP3","PROCEDES CRYOGENIQUE© BOUFELLAH AP3","PROCEDES CRYOGENIQUE©","BOUFELLAH","AP3","PROCEDES CRYOGENIQUE© BOUFELLAH AP3","PROCEDES CRYOGENIQUE©","BOUFELLAH","AP3","PROCEDES CRYOGENIQUE© BOUFELLAH AP3","PROCEDES CRYOGENIQUE©","BOUFELLAH","AP3","PROCEDES CRYOGENIQUE© BOUFELLAH AP3"]
[null,"11h20                 12h 50","OPERAT-UNITAIRES(TD)","SEKOUR","B418","OPERAT-UNITAIRES(TD) SEKOUR B418","OPERAT-UNITAIRES(TD)","SEKOUR","B418","OPERAT-UNITAIRES(TD) SEKOUR B418"]
[null,"13h 00              14h 30","[SI]CH-PHYSII-GENII(TP)","BANDOU","C02","[SI]CH-PHYSII-GENII(TP) BANDOU C02","[SP]CH-PHYSII-GENII(TP)","MAHDI","C210","[SP]CH-PHYSII-GENII(TP) MAHDI C210","CH-PHYSII-GENII(TP)","BANDOU","C02","CH-PHYSII-GENII(TP) BANDOU C02","CH-PHYSII-GENII(TP)","MAHDI","C210","CH-PHYSII-GENII(TP) MAHDI C210"]
[null,"14h 40              16h 10","[SI]CH-PHYSII-GENII(TP)","BANDOU","C02","[SI]CH-PHYSII-GENII(TP) BANDOU C02","[SP]CH-PHYSII-GENII(TP)","MAHDI","C210","[SP]CH-PHYSII-GENII(TP) MAHDI C210","CH-PHYSII-GENII(TP)","BANDOU","C02","CH-PHYSII-GENII(TP) BANDOU C02","CH-PHYSII-GENII(TP)","MAHDI","C210","CH-PHYSII-GENII(TP) MAHDI C210"]
[null,"16h 20              17h 50"]
["Samedi","8h 00                     9h 30"]
[null,"9h 40                  11h 10"]
[null,"11h20                 12h 50"]

{"sheet":"ENV MASTER12","index":10,"n_rows":36,"n_cols":18,"rows_kept":36,"cut":false,"hidden":false,"merged":[[0,9,0,13],[0,0,0,1],[33,0,35,0],[3,0,8,0],[9,0,14,0],[15,0,20,0],[27,0,32,0],[21,0,26,0]]}
["Flière:G des procedes",null,null,null,null,"Spécialite:génie chimique-",null,null,null,"Spécialite:génie des procedes de l'environnement-HSI-POLYMERE"]
[null,"Section:",null,null,null,"master 1ère année",null,null,null,null,null,null,null,null,null,null,null,{"$f":"NOW()","v":"2019-05-21T11:37:17.090"}]
["Jour","SEANCES","MGCH-18","Enseignant","Salle","MGCH-18","MGEV-18","Enseignant","Salle","MGEV-18","MHSI-18","Enseignant","Salle","MHSI-18","MPOLY-18","Enseignant","Salle","MPOLY-18"]
["Dimanche","8h 00                     9h 30","ANALYSE-NUM©","AZZOUNI","C43","ANALYSE-NUM© AZZOUNI C43","OPTIMISATION-PROC©","BENOTHMANE","B46","OPTIMISATION-PROC© BENOTHMANE B46",null,null,null,null,"LOGICIEL APPLIQ(TP)","BENZAID","RC9/A","LOGICIEL APPLIQ(TP) BENZAID RC9/A"]
[null,"9h 40                 11h 10","ANALYSE-NUM(TD)","AZZOUNI","C43","ANALYSE-NUM(TD) AZZOUNI C43","OPTIMISATION-PROC(TP)","BENOTHMANE","B46","OPTIMISATION-PROC(TP) BENOTHMANE B46","RET-EXP-IND-VEILLE-INFO©","SOUAM","A16","RET-EXP-IND-VEILLE-INFO© SOUAM A16","ECO-MAT-POLY©","KORSO","B49","ECO-MAT-POLY© KORSO B49"]
[null,"11h20                 12h 50","OPERATIONS UNITAIRE©","BOUKHIAR","C48","OPERATIONS UNITAIRE© BOUKHIAR C48","MICROB-ENVIRONN©","BOUMECHHOUR","B49","MICROB-ENVIRONN© BOUMECHHOUR B49",null,null,null,null,"LOGICIEL APPLIQ©","BENZAID","B32","LOGICIEL APPLIQ© BENZAID B32"]
[null,"13h 00              14h 30","ETHIQ-DEO-PROP-INT©","BOUTICHE","AP3","ETHIQ-DEO-PROP-INT© BOUTICHE AP3","ETHIQ-DEO-PROP-INT©","BOUTICHE","AP3","ETHIQ-DEO-PROP-INT© BOUTICHE AP3","ETHIQ-DEO-PROP-INT©","BOUTICHE","AP3","ETHIQ-DEO-PROP-INT© BOUTICHE AP3","ETHIQ-DEO-PROP-INT©","BOUTICHE","AP3","ETHIQ-DEO-PROP-INT© BOUTICHE AP3"]
[null,"14h 40              16h 10","REACTEURS POLY PH©","NOURI","B31","REACTEURS POLY PH© NOURI B31"]
[null,"16h 20              17h 50"]
["Lundi","8h 00                    9h 30","OPERATION UNITAIRE©","BOUKHIAR","C43","OPERATION UNITAIRE© BOUKHIAR C43","MICROB-ENVIRONN(TP)","BOUMECHHOUR","C26","MICROB-ENVIRONN(TP) BOUMECHHOUR C26","SECURITE DES PROCEDES©","KEBBOUCHE","A24","SECURITE DES PROCEDES© KEBBOUCHE A24","MISE-OEUV-POLY©","BOUMERDASSI","B49","MISE-OEUV-POLY© BOUMERDASSI B49"]
[null,"9h 40                  11h 10","OPERATION UNITAIRE(TD)","BOUKHIAR","C43","OPERATION UNITAIRE(TD) BOUKHIAR C43","A-C-V©","LOUHAB","B46","A-C-V© LOUHAB B46","SECURITE DES PROCEDES(TD)","KEBBOUCHE","A24","SECURITE DES PROCEDES(TD) KEBBOUCHE A24","MISE-OEUV-POLY©","BOUMERDASSI","B49","MISE-OEUV-POLY© BOUMERDASSI B49"]
[null,"11h20                12h 50","REACTEURS POLY PH(TD)","NOURI","B35","REACTEURS POLY PH(TD) NOURI B35","CH-MAT-ENVIRONN©","SAHMOUNE","A24","CH-MAT-ENVIRONN© SAHMOUNE A24","ANALY-CYCL-VIE-ECO©","KIHAL","B38","ANALY-CYCL-VIE-ECO© KIHAL B38","MISE-OEUV-POLY(TD)","BOUMERDASSI","B49","MISE-OEUV-POLY(TD) BOUMERDASSI B49"]
[null,"13h 00              14h 30","PROCED-ADS-SP(2/3G)(TP)","MERIDJA","B22","PROCED-ADS-SP(2/3G)(TP) MERIDJA B22","G DE ENVIRONN(TP)","BOUMECHHOUR","B12","G DE ENVIRONN(TP) BOUMECHHOUR B12","ANALY-CYCL-VIE-ECO(TD)","KIHAL","B38","ANALY-CYCL-VIE-ECO(TD) KIHAL B38","MELLANGE-POLY©","BELLOUL","RC13","MELLANGE-POLY© BELLOUL RC13"]
[null,"14h 40              16h 10","PROCED-ADS-SP(2/3G)(TP)","MERIDJA","B22","PROCED-ADS-SP(2/3G)(TP) MERIDJA B22","G DE ENVIRONN(TP)","BOUMECHHOUR","B12","G DE ENVIRONN(TP) BOUMECHHOUR B12",null,null,null,null,"MELLANGE-POLY(TD)","BELLOUL","RC13","MELLANGE-POLY(TD) BELLOUL RC13"]
[null,"16h 20              17h 50"]
["Mardi","8h 00                    9h 30",null,null,null,null,null,null,null,null,"SURETE-FONCT-SYST©","BENMOKHTAR","C48","SURETE-FONCT-SYST© BENMOKHTAR C48"]
[null,"9h 40                 11h 10",null,null,null,null,null,null,null,null,"SURETE-FONCT-SYST(TD)","BENMOKHTAR","C48","SURETE-FONCT-SYST(TD) BENMOKHTAR C48"]
[null,"11h20                12h 50"]
[null,"13h 00              14h 30"]
[null,"14h 40              16h 10"]
[null,"16h 20              17h 50"]
["Mercredi","8h 00                    9h 30","PROCED-ADS-SP(1/3G)(TP)","MERIDJA","B22","PROCED-ADS-SP(1/3G)(TP) MERIDJA B22","TRAIT-EAUX-USEES©","BOUREGHDA","B46","TRAIT-EAUX-USEES© BOUREGHDA B46","ANALY-CYCL-VIE-ECO©","KIHAL","A24","ANALY-CYCL-VIE-ECO© KIHAL A24","MEMBRANCE-POLY©","ALIOUCHE","A11","MEMBRANCE-POLY© ALIOUCHE A11"]
[null,"9h 40                 11h 10","PROCED-ADS-SP(1/3G)(TP)","MERIDJA","B22","PROCED-ADS-SP(1/3G)(TP) MERIDJA B22","TRAIT -EAUX-USEES(TD)","BOUREGHDA","B46","TRAIT -EAUX-USEES(TD) BOUREGHDA B46","INTOXICATION-INDUST©","BOUGHRARA","A24","INTOXICATION-INDUST© BOUGHRARA A24","MEMBRANCE-POLY(TD)","ALIOUCHE","A11","MEMBRANCE-POLY(TD) ALIOUCHE A11"]
[null,"11h20                12h 50","REG-COMM©","RATNI","A24","REG-COMM© RATNI A24",null,null,null,null,"MIROB-BIOCH-SYST-INDUST©","KIHAL","A22","MIROB-BIOCH-SYST-INDUST© KIHAL A22","SECURITE IND©","MEGDOUD","C49","SECURITE IND© MEGDOUD C49"]
[null,"13h 00              14h 30","REG-COMM-PROC(TD)","RATNI","A24","REG-COMM-PROC(TD) RATNI A24","PROC-OXYD-AVANCEE©","BALLOUL","B48","PROC-OXYD-AVANCEE© BALLOUL B48","LOG-INFO-DEP-SEC-IND©","BENZAID","RC13","LOG-INFO-DEP-SEC-IND© BENZAID RC13","CARACT-POLY(TP)","KOUINI","B19","CARACT-POLY(TP) KOUINI B19"]
[null,"14h 40              16h 10",null,null,null,null,"PROC-OXYD-AVANCEE(TD)","BALLOUL","B48","PROC-OXYD-AVANCEE(TD) BALLOUL B48","LOG-INFO-DEP-SEC-IND(TP)","BENZAID","RC13","LOG-INFO-DEP-SEC-IND(TP) BENZAID RC13","CARACT-POLY(TP)","KOUINI","B19","CARACT-POLY(TP) KOUINI B19"]
[null,"16h 20              17h 50"]
["Jeudi","8h 00                     9h 30","PROC ADSORP SEP MEM©","BENRACHEDI","C17","PROC ADSORP SEP MEM© BENRACHEDI C17",null,null,null,null,null,null,null,null,"POLYMERS-COND©","BELLOUL","A15","POLYMERS-COND© BELLOUL A15"]
[null,"9h 40                  11h 10","PROC ADSORP SEP MEM©","BENRACHEDI","C17","PROC ADSORP SEP MEM© BENRACHEDI C17","TRAIT-EAUX-USEES©","BOUREGHDA","B46","TRAIT-EAUX-USEES© BOUREGHDA B46","SYSTÈME INFORMATION©","BELHABCHIA","A24","SYSTÈME INFORMATION© BELHABCHIA A24","POLYMERS-COND(TD)","BELLOUL","A15","POLYMERS-COND(TD) BELLOUL A15"]
[null,"11h20                 12h 50",null,null,null,null,null,null,null,null,"MANAGEMENT DU RISQUE©","KEBBOUCHE","A24","MANAGEMENT DU RISQUE© KEBBOUCHE A24"]
[null,"13h 00              14h 30","FOURS ET CHAUDIERES©","AISSAT","B418","FOURS ET CHAUDIERES© AISSAT B418","POLLUTION ATMOSPH©","BALLOUL","B46","POLLUTION ATMOSPH© BALLOUL B46",null,null,null,null,"CRACT-POLY©","KOUINI","B32","CRACT-POLY© KOUINI B32"]
[null,"14h 40              16h 10","FOURS ET CHAUDIERES(TD)","AISSAT","B418","FOURS ET CHAUDIERES(TD) AISSAT B418","POLLUTION ATMOSPH(TD)","BALLOUL","B46","POLLUTION ATMOSPH(TD) BALLOUL B46",null,null,null,null,"CRACT-POLY(TD)","KOUINI","B32","CRACT-POLY(TD) KOUINI B32"]
[null,"16h 20              17h 50"]
["Samedi","8h 00                     9h 30","ELECTROCHIMIEII©","LOUHAB","B37","ELECTROCHIMIEII© LOUHAB B37"]
[null,"9h 40                  11h 10","CONCEPTION ACV©","LOUHAB","B37","CONCEPTION ACV© LOUHAB B37","DECHETS SOLIDE©","BENRACHEDI","B35","DECHETS SOLIDE© BENRACHEDI B35","DIAG-DIF-SYST-IND©","RATNI","A12","DIAG-DIF-SYST-IND© RATNI A12"]
[null,"11h20                 12h 50",null,null,null,null,"DECHETS SOLIDES(TD)","BENRACHEDI","B35","DECHETS SOLIDES(TD) BENRACHEDI B35","DIAG-DIF-SYST-IND(TD)","RATNI","A12","DIAG-DIF-SYST-IND(TD) RATNI A12"]

{"sheet":"TA MASTER12","index":11,"n_rows":36,"n_cols":14,"rows_kept":36,"cut":false,"hidden":false,"merged":[[0,0,0,1],[21,0,26,0],[27,0,32,0],[33,0,35,0],[3,0,8,0],[9,0,14,0],[15,0,20,0]]}
["Departement:",null,null,null,null,"TECN        ALIMENTAIRE"]
[null,"Section:","master 1ère année",null,null,{"$f":"NOW()","v":"2019-05-21T11:37:17.090"}]
["Jour","SEANCES","MGA18","Enseignant","Salle","MGA18","MGIA16","Enseignant","Salle","MGIA16","IECM09","Enseignant","Salle","IECM09"]
["Dimanche","8h 00                     9h 30",null,null,null,null,null,null,null,null,"MEC DE REP©","XXXX","XXXX","MEC DE REP© XXXX XXXX"]
[null,"9h 40                 11h 10","PROCESSUS DE TRANSFORMATION©","NOUANI","B414","PROCESSUS DE TRANSFORMATION© NOUANI B414","CONSERVAT DES ALIMENTS©","X","X","CONSERVAT DES ALIMENTS© X X"]
[null,"11h20                 12h 50","PROCESSUS DE TRANSFORMATION(TD)","NOUANI","B414","PROCESSUS DE TRANSFORMATION(TD) NOUANI B414","TECN DES CEREAL ET DERIVES©","X","X","TECN DES CEREAL ET DERIVES© X X","MDR(TD)","XXXX","XXXX","MDR(TD) XXXX XXXX"]
[null,"13h 00              14h 30","ETHIQUE DE ONTOLOGIE ET PROPINT©","BOUTICHE","AP3","ETHIQUE DE ONTOLOGIE ET PROPINT© BOUTICHE AP3"]
[null,"14h 40              16h 10","BIOREACTEURS©","BOUKHIAR","C48","BIOREACTEURS© BOUKHIAR C48","ECO-GESTION©","X","X","ECO-GESTION© X X"]
[null,"16h 20              17h 50"]
["Lundi","8h 00                    9h 30","MICROBIOLOGIE ALIMENTAIRE©","TALANTIKIT","C48","MICROBIOLOGIE ALIMENTAIRE© TALANTIKIT C48",null,null,null,null,"METHODES FMS©","XXXX","XXXX","METHODES FMS© XXXX XXXX"]
[null,"9h 40                  11h 10","MICROBIOLOGIE ALIMENTAIRE(TD)","TALANTIKIT","C48","MICROBIOLOGIE ALIMENTAIRE(TD) TALANTIKIT C48","BIOCH-ALIM(TP)(1/4G);ANALY-DES CERALTP)(1/4G)","XX;XX","XX;XX","BIOCH-ALIM(TP)(1/4G) XX XX\nANALY-DES CERALTP)(1/4G) XX XX","METHODES FMS(TD)","XXXX","XXXX","METHODES FMS(TD) XXXX XXXX"]
[null,"11h20                12h 50","LOGICIEL ET SIMULATION NUMERIQUE©","BENZAID","A27","LOGICIEL ET SIMULATION NUMERIQUE© BENZAID A27","BIOCH-ALIM(TP)(1/4G);ANALY-DES CERALTP)(1/4G)","XX;XX","XX;XX","BIOCH-ALIM(TP)(1/4G) XX XX\nANALY-DES CERALTP)(1/4G) XX XX","CND©","XXXX","XXXX","CND© XXXX XXXX"]
[null,"13h 00              14h 30","OPERATION UNIT-GENIE-ALIM©","BENAMMARA","C17","OPERATION UNIT-GENIE-ALIM© BENAMMARA C17"]
[null,"14h 40              16h 10","OPERATION UNIT-GENIE-ALIM(TD)","BENAMMARA","C17","OPERATION UNIT-GENIE-ALIM(TD) BENAMMARA C17","TECN DES CEREAL ET DERIVES©","X","X","TECN DES CEREAL ET DERIVES© X X"]
[null,"16h 20              17h 50"]
["Mardi","8h 00                    9h 30",null,null,null,null,"OPER-UNIT-IAA1©","X","X","OPER-UNIT-IAA1© X X"]
[null,"9h 40                 11h 10",null,null,null,null,"OPER-UNIT-IAA1©","X","X","OPER-UNIT-IAA1© X X","METHODES FMS©","XXXX","XXXX","METHODES FMS© XXXX XXXX"]
[null,"11h20                12h 50",null,null,null,null,"TRAIT DES EAUX©","X","X","TRAIT DES EAUX© X X"]
[null,"13h 00              14h 30",null,null,null,null,null,null,null,null,"CONCEP-METALIQ©","XXXX","XXXX","CONCEP-METALIQ© XXXX XXXX"]
[null,"14h 40              16h 10",null,null,null,null,null,null,null,null,"CONCEP-METALIQ(TD)","XXXX","XXXX","CONCEP-METALIQ(TD) XXXX XXXX"]
[null,"16h 20              17h 50"]
["Mercredi","8h 00                    9h 30","HYG-SECURI DANS LE GENIE ALIM©","MEGDOUD","B44","HYG-SECURI DANS LE GENIE ALIM© MEGDOUD B44","ANGLAIS©","X","X","ANGLAIS© X X","TECH-SP©","XXXX","XXXX","TECH-SP© XXXX XXXX"]
[null,"9h 40                 11h 10","PROPRIETES PHYSICOCHIMIQUE DES ALIMENTS©","BENAKMOUM","B416","PROPRIETES PHYSICOCHIMIQUE DES ALIMENTS© BENAKMOUM B416","BIOCHIMIE ALIMENT©","X","X","BIOCHIMIE ALIMENT© X X","TECH-SP(TD)","XXXX","XXXX","TECH-SP(TD) XXXX XXXX"]
[null,"11h20                12h 50","INTRODUCTION AUX BIOTECHNOLOGIE©","ANNOU","B416","INTRODUCTION AUX BIOTECHNOLOGIE© ANNOU B416","BIOCHIMIE ALIMENT©","X","X","BIOCHIMIE ALIMENT© X X","MANAGEMENT©","XXXX","XXXX","MANAGEMENT© XXXX XXXX"]
[null,"13h 00              14h 30"]
[null,"14h 40              16h 10","PROPRIETES PHYSICOCHIMIQUE DES ALIMENTS(TD)","BENAKMOUM","C43","PROPRIETES PHYSICOCHIMIQUE DES ALIMENTS(TD) BENAKMOUM C43",null,null,null,null,"RECHERCHE OPERATIONNEL(TD)","XXXX","XXXX","RECHERCHE OPERATIONNEL(TD) XXXX XXXX"]
[null,"16h 20              17h 50"]
["Jeudi","8h 00                     9h 30","GENIE-FERMENTAIRE ET BIOTRANSF(TP)(1/2G);TECHNIQUE MICROBIOLOGIQUE(TP)(1/2G)","FERNANI;BOUAZIZ","B15;C26","GENIE-FERMENTAIRE ET BIOTRANSF(TP)(1/2G) FERNANI B15\nTECHNIQUE MICROBIOLOGIQUE(TP)(1/2G) BOUAZIZ C26","METHODOLOGIE RECHERCHE©","X","X","METHODOLOGIE RECHERCHE© X X","RECHERCHE OPERATIONNEL©","XXXX","XXXX","RECHERCHE OPERATIONNEL© XXXX XXXX"]
[null,"9h 40                  11h 10","GENIE-FERMENTAIRE ET BIOTRANSF(TP)(1/2G);TECHNIQUE MICROBIOLOGIQUE(TP)(1/2G)","FERNANI;BOUAZIZ","B15;C26","GENIE-FERMENTAIRE ET BIOTRANSF(TP)(1/2G) FERNANI B15\nTECHNIQUE MICROBIOLOGIQUE(TP)(1/2G) BOUAZIZ C26","METHODOLOGIE RECHERCHE©","X","X","METHODOLOGIE RECHERCHE© X X","CND©","XXXX","XXXX","CND© XXXX XXXX"]
[null,"11h20                 12h 50",null,null,null,null,null,null,null,null,"MANAGEMENT(TD)","XXXX","XXXX","MANAGEMENT(TD) XXXX XXXX"]
[null,"13h 00              14h 30","GENIE-FERMENTAIRE ET BIOTRANSF(TP)(1/2G);TECHNIQUE MICROBIOLOGIQUE(TP)(1/2G)","FERNANI;BOUAZIZ","B15;C26","GENIE-FERMENTAIRE ET BIOTRANSF(TP)(1/2G) FERNANI B15\nTECHNIQUE MICROBIOLOGIQUE(TP)(1/2G) BOUAZIZ C26"]
[null,"14h 40              16h 10","GENIE-FERMENTAIRE ET BIOTRANSF(TP)(1/2G);TECHNIQUE MICROBIOLOGIQUE(TP)(1/2G)","FERNANI;BOUAZIZ","B15;C26","GENIE-FERMENTAIRE ET BIOTRANSF(TP)(1/2G) FERNANI B15\nTECHNIQUE MICROBIOLOGIQUE(TP)(1/2G) BOUAZIZ C26"]
[null,"16h 20              17h 50"]
["Samedi","8h 00                     9h 30"]
[null,"9h 40                  11h 10"]
[null,"11h20                 12h 50"]

{"sheet":"MI LICENCE10","index":12,"n_rows":36,"n_cols":22,"rows_kept":36,"cut":false,"hidden":false,"merged":[[35,22,36,22],[35,23,36,23],[35,24,36,24],[35,25,36,25],[35,18,36,18],[35,19,36,19],[35,20,36,20],[35,21,36,21],[35,14,36,14],[35,15,36,15],[35,16,36,16],[35,17,36,17],[35,13,36,13],[35,9,36,9],[35,10,36,10],[35,11,36,11],[35,12,36,12],[27,0,32,0],[33,0,36,0],[35,1,36,1],[35,2,36,2],[35,3,36,3],[35,5,36,5],[35,6,36,6],[35,7,36,7],[35,8,36,8],[35,4,36,4],[0,21,0,22],[0,18,0,19],[0,0,0,1],[21,0,26,0],[15,0,20,0],[9,0,14,0],[3,0,8,0],[0,9,0,10]]}
[null,null,null,null,null,"Filière:electromecanique",null,null,null,"Spécialite:electromecanique",null,null,null,"Spécialite:electromecanique",null,null,null,null,null,null,null,"Spécialite:Maint indust"]
[null,"Section:",null,null,null,"licence3ème année",null,null,null,null,null,null,null,null,null,null,null,{"$f":"NOW()","v":"2019-05-21T11:37:17.090"}]
["Jour","SEANCES","LEM-16/A","Enseignant","Salle","LEM-16/A","LEM-16/B","Enseignant","Salle","LEM-16/B","LGI-16","Enseignant","Salle","LGI-16","LMI-16","Enseignant","Salle","LMI-16"]
["Dimanche","8h 00                     9h 30","PROJET PROFE-GES-EN©","MELLAL","A12","PROJET PROFE-GES-EN© MELLAL A12","PROJET PROFE-GES-EN©","MELLAL","A12","PROJET PROFE-GES-EN© MELLAL A12","PROJET PROFE-GES-EN©","MELLAL","A12","PROJET PROFE-GES-EN© MELLAL A12","MOT-COM-INTER©","DJEDDID","RC14","MOT-COM-INTER© DJEDDID RC14"]
[null,"9h 40                 11h 10","AUTO ET INFORM INDUST©","BENAZZOUZ","A24","AUTO ET INFORM INDUST© BENAZZOUZ A24","AUTO ET INFORM INDUST©","BENAZZOUZ","A24","AUTO ET INFORM INDUST© BENAZZOUZ A24",null,null,null,null,"TRAIT-SIGNAL©","DJEDDID","RC14","TRAIT-SIGNAL© DJEDDID RC14"]
[null,"11h20                 12h 50","INTROD A MOTEUR A COMBUSTION©","DJEDDID","A22","INTROD A MOTEUR A COMBUSTION© DJEDDID A22","INTROD A MOTEUR A COMBUSTION©","DJEDDID","A22","INTROD A MOTEUR A COMBUSTION© DJEDDID A22","RESEAUX-BASE-DONNES©","HARRAT","A23","RESEAUX-BASE-DONNES© HARRAT A23","REGUL-ASSERV©","MELLAL","A24","REGUL-ASSERV© MELLAL A24"]
[null,"13h 00              14h 30","PROJET(TP) ","BOUAMRENE","A22","PROJET(TP)  BOUAMRENE A22",null,null,null,null,"RESEAUX-BASE-DONNES(TP)","HARRAT","RC9/B","RESEAUX-BASE-DONNES(TP) HARRAT RC9/B"]
[null,"14h 40              16h 10","PROJET(TP) ","BOUAMRENE","A22","PROJET(TP)  BOUAMRENE A22",null,null,null,null,"RESEAUX-BASE-DONNES(TD)","HARRAT","A23","RESEAUX-BASE-DONNES(TD) HARRAT A23"]
[null,"16h 20              17h 50"]
["Lundi","8h 00                    9h 30","REGULATION INDUSTRIELLE©","DOUDAH","A14","REGULATION INDUSTRIELLE© DOUDAH A14","REGULATION INDUSTRIELLE©","DOUDAH","A14","REGULATION INDUSTRIELLE© DOUDAH A14","CHAINES DE MESURE©","MERAINANI","A23","CHAINES DE MESURE© MERAINANI A23","PROJET FIN DE CYCLE(TP)","ADJERID","A15","PROJET FIN DE CYCLE(TP) ADJERID A15"]
[null,"9h 40                  11h 10","COMMANDES DES ENTRAINEMENT ELECTROM©","MERAINANI","A12","COMMANDES DES ENTRAINEMENT ELECTROM© MERAINANI A12","COMMANDES DES ENTRAINEMENT ELECTROM©","MERAINANI","A12","COMMANDES DES ENTRAINEMENT ELECTROM© MERAINANI A12","GEST-PROD-FLUX©","OURARI","A15","GEST-PROD-FLUX© OURARI A15","PROJET FIN DE CYCLE(TP)","ADJERID","A15","PROJET FIN DE CYCLE(TP) ADJERID A15"]
[null,"11h20                12h 50",null,null,null,null,"AUTO-INF-IND(TD)","GOUGAM","A22","AUTO-INF-IND(TD) GOUGAM A22","GEST-PROD-FLUX(TD)","OURARI","A15","GEST-PROD-FLUX(TD) OURARI A15","PROJET-PROF-PRD©","LECHEB","RC14","PROJET-PROF-PRD© LECHEB RC14"]
[null,"13h 00              14h 30","MAINT DES SYST-MES ELECTROMECANIQUE©","ALEM","A24","MAINT DES SYST-MES ELECTROMECANIQUE© ALEM A24","MAINT DES SYST-MES ELECTROMECANIQUE©","ALEM","A24","MAINT DES SYST-MES ELECTROMECANIQUE© ALEM A24"]
[null,"14h 40              16h 10","DESSIN TECHNIQUE","HALFAOUI","A24","DESSIN TECHNIQUE HALFAOUI A24","DESSIN TECHNIQUE©","HALFAOUI","A24","DESSIN TECHNIQUE© HALFAOUI A24","CHAINES DE MESURE(TD)","MERAINANI","A16","CHAINES DE MESURE(TD) MERAINANI A16","D-D--S(TD)","AMARBOUZIDE","A12","D-D--S(TD) AMARBOUZIDE A12"]
[null,"16h 20              17h 50"]
["Mardi","8h 00                    9h 30","REGULATION-INDUST(TD)","DOUDAH","A22","REGULATION-INDUST(TD) DOUDAH A22","AUTOMATISME(TP) ","CHAMSA","AT15","AUTOMATISME(TP)  CHAMSA AT15"]
[null,"9h 40                 11h 10",null,null,null,null,"REGUL-INDUST(TD) ","DOUDAH","A12","REGUL-INDUST(TD)  DOUDAH A12","AUTOMAT-PRO-IND(TP)","CHAMSA","AT15","AUTOMAT-PRO-IND(TP) CHAMSA AT15","REPAR-INTERV(TP)","ATMANI","MER","REPAR-INTERV(TP) ATMANI MER"]
[null,"11h20                12h 50"]
[null,"13h 00              14h 30",null,null,null,null,"COMMANDE(TP) ","CHAMSA","B210","COMMANDE(TP)  CHAMSA B210"]
[null,"14h 40              16h 10",null,null,null,null,null,null,null,null,"CHAINES DE MESURE(TP)","OULMOKHTAR","AT15","CHAINES DE MESURE(TP) OULMOKHTAR AT15","TRAIT-SIGNAL(TD)","DJEDDID","A23","TRAIT-SIGNAL(TD) DJEDDID A23"]
[null,"16h 20              17h 50"]
["Mercredi","8h 00                    9h 30","TURBO MACHINES©","GUEDIFA","A14","TURBO MACHINES© GUEDIFA A14","TURBO MACHINES©","GUEDIFA","A14","TURBO MACHINES© GUEDIFA A14",null,null,null,null,"D-D--S©","CHELLIL","A16","D-D--S© CHELLIL A16"]
[null,"9h 40                 11h 10","TURBOMACHINES(TD)","GUEDIFA","A14","TURBOMACHINES(TD) GUEDIFA A14","COMMAND-ENT-ELE(TD)","MERAINANI","A15","COMMAND-ENT-ELE(TD) MERAINANI A15","INTRO-AUTOM-PROG©","GAHLOUZ","A25","INTRO-AUTOM-PROG© GAHLOUZ A25","OUTILES-MAINT-PRE©","AKNOUCHE","A21","OUTILES-MAINT-PRE© AKNOUCHE A21"]
[null,"11h20                12h 50","AUTO-INF-IND(TD)","GOUGAM","B35","AUTO-INF-IND(TD) GOUGAM B35","REGULATION(TP)","LOUNICI-H","A27","REGULATION(TP) LOUNICI-H A27","CODUITE DE PROJET©","SMAILI","A14","CODUITE DE PROJET© SMAILI A14","FIABILITE©","BENAMMAR","A21","FIABILITE© BENAMMAR A21"]
[null,"13h 00              14h 30","COMMAND-ENT-ELE(TD)","MERAINANI","A15","COMMAND-ENT-ELE(TD) MERAINANI A15","TURBOMACHINES(TD)","GUEDIFA","A14","TURBOMACHINES(TD) GUEDIFA A14","PROJET FIN DE CYCLE(TP)","ADJERID","A23","PROJET FIN DE CYCLE(TP) ADJERID A23","ROBOTIQUE-INDUST©","AGUIB","A21","ROBOTIQUE-INDUST© AGUIB A21"]
[null,"14h 40              16h 10","REGULATION(TP)","LOUNICI-H","RC9/A","REGULATION(TP) LOUNICI-H RC9/A",null,null,null,null,"PROJET FIN DE CYCLE(TP)","ADJERID","A23","PROJET FIN DE CYCLE(TP) ADJERID A23","REGUL-ASSERV(TD)","MELLAL","A12","REGUL-ASSERV(TD) MELLAL A12"]
[null,"16h 20              17h 50"]
["Jeudi","8h 00                     9h 30","CAPTEURS ET CONDITIONNEURS©","TOUATI","AP6","CAPTEURS ET CONDITIONNEURS© TOUATI AP6","CAPTEURS ET CONDITIONNEURS©","TOUATI","AP6","CAPTEURS ET CONDITIONNEURS© TOUATI AP6",null,null,null,null,"TECH-MACH-THERM-HYD©","ATMANI","A21","TECH-MACH-THERM-HYD© ATMANI A21"]
[null,"9h 40                  11h 10","CAPTEURS-COND(TP) ","TOUATI","AT15","CAPTEURS-COND(TP)  TOUATI AT15","PROJET(TP) ","BENAZZOUZ","B43","PROJET(TP)  BENAZZOUZ B43","GEST-FINAN-TECH©","SOUAM","A23","GEST-FINAN-TECH© SOUAM A23","TECH-MACH-THERM-HYD(TD)","ATMANI","A21","TECH-MACH-THERM-HYD(TD) ATMANI A21"]
[null,"11h20                 12h 50","COMMANDE(TP) ","CHAMSA","B210","COMMANDE(TP)  CHAMSA B210","PROJET(TP) ","BENAZZOUZ","B43","PROJET(TP)  BENAZZOUZ B43","INTRO-AUTOM-PROG(TD)","GAHLOUZ","A23","INTRO-AUTOM-PROG(TD) GAHLOUZ A23","D-D--S©","CHELLIL","A12","D-D--S© CHELLIL A12"]
[null,"13h 00              14h 30","AUTOMATISME(TP) ","CHAMSA","AT15","AUTOMATISME(TP)  CHAMSA AT15",null,null,null,null,"ERGOMIE-INDUST©","TIRECHE","B43","ERGOMIE-INDUST© TIRECHE B43","MOT-COM-INTER(TP)","OUALI","RC6","MOT-COM-INTER(TP) OUALI RC6"]
[null,"14h 40              16h 10",null,null,null,null,"CAPTEURS-COND(TP) ","TOUATI","AT15","CAPTEURS-COND(TP)  TOUATI AT15"]
[null,"16h 20              17h 50"]
["Samedi","8h 00                     9h 30"]
[null,"9h 40                  11h 10"]
[null,"11h20                 12h 50"]

{"sheet":"MI MASTER12","index":13,"n_rows":36,"n_cols":18,"rows_kept":36,"cut":false,"hidden":false,"merged":[[0,5,0,9],[0,0,0,1],[21,0,26,0],[27,0,32,0],[33,0,35,0],[3,0,8,0],[9,0,14,0],[15,0,20,0]]}
["Filière:electromécanique",null,null,null,null,"Spécialite:electromeca-mecatron-maint industr"]
[{"$f":"TODAY()","v":"2019-05-21"},"Section:",null,null,null,"Master 1ère année",null,null,null,null,null,null,null,null,null,null,null,{"$f":"NOW()","v":"2019-05-21T11:37:17.090"}]
["Jour","SEANCES","MMTR-18","Enseignant","Salle","MMTR-18","MEM-18","Enseignant","Salle","MEM-18","MGI-18","Enseignant","Salle","MGI-18","MMI-18","Enseignant","Salle","MMI-18"]
["Dimanche","8h 00                     9h 30","ATELIER ET PROGRAMMATION AVANCEE©","CHEBBOUBA","A14","ATELIER ET PROGRAMMATION AVANCEE© CHEBBOUBA A14","COMM-MACH-ELEC(TD)","RAHMOUNE","RC13","COMM-MACH-ELEC(TD) RAHMOUNE RC13","SYST-AUT-ORD©","RATNI","A21","SYST-AUT-ORD© RATNI A21"]
[null,"9h 40                 11h 10","ATELIER ET PROGRAMMATION AVANCEE(TP)","CHEBBOUBA","AB12","ATELIER ET PROGRAMMATION AVANCEE(TP) CHEBBOUBA AB12","COMM-HYD-PNEU(TP)","TABLIT","AT15","COMM-HYD-PNEU(TP) TABLIT AT15","SYST-AUT-ORD(TD)","RATNI","A21","SYST-AUT-ORD(TD) RATNI A21"]
[null,"11h20                 12h 50",null,null,null,null,null,null,null,null,"INTELLIG-ARTIF-INGEN(TP)","BERRAZOUANE","B210","INTELLIG-ARTIF-INGEN(TP) BERRAZOUANE B210","MACHINES OUTILS©","MECHAKRA","ATFMS","MACHINES OUTILS© MECHAKRA ATFMS"]
[null,"13h 00              14h 30","ROBOTIQUE ET COMMANDES©","TOUATI","A14","ROBOTIQUE ET COMMANDES© TOUATI A14","COMM-MACH-ELEC©","RAHMOUNE","A21","COMM-MACH-ELEC© RAHMOUNE A21","INTELLIG-ARTIF-INGEN©","BERRAZOUANE","B36","INTELLIG-ARTIF-INGEN© BERRAZOUANE B36","P.F.MACHINES OUTILS(TP)","MECHAKRA","ATFM","P.F.MACHINES OUTILS(TP) MECHAKRA ATFM"]
[null,"14h 40              16h 10","ROBOTIQUE ET COMMANDES(TD)","TOUATI","A14","ROBOTIQUE ET COMMANDES(TD) TOUATI A14","COMM-MACH-ELEC(TP)","LOUNICI-H","RC9/B","COMM-MACH-ELEC(TP) LOUNICI-H RC9/B",null,null,null,null,"P.F.MACHINES OUTILS(TP)","MECHAKRA","ATFM","P.F.MACHINES OUTILS(TP) MECHAKRA ATFM"]
[null,"16h 20              17h 50"]
["Lundi","8h 00                    9h 30","ARCHIT-AUT-PROG-IND(TP)","BENSNOUSSI","AT15","ARCHIT-AUT-PROG-IND(TP) BENSNOUSSI AT15","METHO-NUM-APP©","NOUR","RC13","METHO-NUM-APP© NOUR RC13","OPTIMISATION DES SYSTEMES-AIDE-INGEN©","ADICHE","B42","OPTIMISATION DES SYSTEMES-AIDE-INGEN© ADICHE B42"]
[null,"9h 40                  11h 10","THEORIE-MEC-SYS©","MECHAKRA","A16","THEORIE-MEC-SYS© MECHAKRA A16","METHO-NUM-APP(TP)(1/2G)","NOUR","RC9/A","METHO-NUM-APP(TP)(1/2G) NOUR RC9/A","OPTIMISATION DES SYSTEMES-AIDE-INGEN(TP)","ADICHE","B42","OPTIMISATION DES SYSTEMES-AIDE-INGEN(TP) ADICHE B42","CAPT-TECHNIQUE DE MESURES(TP)","ALEM","AT15","CAPT-TECHNIQUE DE MESURES(TP) ALEM AT15"]
[null,"11h20                12h 50",null,null,null,null,null,null,null,null,"SYST-AUT-ORD©","RATNI","B42","SYST-AUT-ORD© RATNI B42","CAPT-TECHNIQUE DE MESURES©","ALEM","A14","CAPT-TECHNIQUE DE MESURES© ALEM A14"]
[null,"13h 00              14h 30","C-E-N-D©;C-E-N-D(TP)","LECHEB;BRIHMET","RC14;AT16","C-E-N-D© LECHEB RC14\nC-E-N-D(TP) BRIHMET AT16","THRMO-APP©","SETTET","AP2","THRMO-APP© SETTET AP2",null,null,null,null,"CONSTR-MEC©","AKNOUCHE","A14","CONSTR-MEC© AKNOUCHE A14"]
[null,"14h 40              16h 10","C-E-N-D©;C-E-N-D(TP)","LECHEB;BRIHMET","RC14;AT16","C-E-N-D© LECHEB RC14\nC-E-N-D(TP) BRIHMET AT16","TRIBOLOGIE-MEC-CONT©","ATMANI","AP2","TRIBOLOGIE-MEC-CONT© ATMANI AP2",null,null,null,null,"METH-ELEM-FINIS(TD)","SETTET","A14","METH-ELEM-FINIS(TD) SETTET A14"]
[null,"16h 20              17h 50"]
["Mardi","8h 00                    9h 30","INFO-INDUSTRIELLE©","BENAZZOUZ","RC14","INFO-INDUSTRIELLE© BENAZZOUZ RC14",null,null,null,null,"MAINTENANCES DES SYSTEMES©","BENAMMAR","A25","MAINTENANCES DES SYSTEMES© BENAMMAR A25","METHOD-ELEM-FINIS©","SETTET","A14","METHOD-ELEM-FINIS© SETTET A14"]
[null,"9h 40                 11h 10","INFO-INDUSTRIELLE(TP)","BENAZZOUZ","AT11","INFO-INDUSTRIELLE(TP) BENAZZOUZ AT11",null,null,null,null,"MAINTENANCES DES SYSTEMES(TD)","BENAMMAR","A25","MAINTENANCES DES SYSTEMES(TD) BENAMMAR A25","METHOD-ELEM-FINIS(TP)","SETTET","RC9/B","METHOD-ELEM-FINIS(TP) SETTET RC9/B"]
[null,"11h20                12h 50"]
[null,"13h 00              14h 30",null,null,null,null,null,null,null,null,null,null,null,null,"G-MAO©","IKKACHE","A14","G-MAO© IKKACHE A14"]
[null,"14h 40              16h 10",null,null,null,null,"THERMO APPLIQUEE(TD)","SETTET","A16","THERMO APPLIQUEE(TD) SETTET A16",null,null,null,null,"GMAO(TD)","IKKACHE","A14","GMAO(TD) IKKACHE A14"]
[null,"16h 20              17h 50"]
["Mercredi","8h 00                    9h 30","ARCHIT-AUT-PROG-IND(TD)","GAHLOUZ","RC14","ARCHIT-AUT-PROG-IND(TD) GAHLOUZ RC14","DIAGNO-SURVEILLANCE©","MERAINANI","A13","DIAGNO-SURVEILLANCE© MERAINANI A13","MOD-SYST-EVEN-DIS©","X","B47","MOD-SYST-EVEN-DIS© X B47","FIAB-SYST-MEC©","BENAMMAR","A12","FIAB-SYST-MEC© BENAMMAR A12"]
[null,"9h 40                 11h 10","DIAGNOSTIQUE ANALYS VIB©","CHELLIL","RC14","DIAGNOSTIQUE ANALYS VIB© CHELLIL RC14","EXPLOIT-ENERGIE-RENOUV©","BERRAZOUANE","A13","EXPLOIT-ENERGIE-RENOUV© BERRAZOUANE A13","MOD-SYST-EVEN-DIS(TD)","X","B47","MOD-SYST-EVEN-DIS(TD) X B47","FIAB-SYST-MEC(TD)","BENAMMAR","A12","FIAB-SYST-MEC(TD) BENAMMAR A12"]
[null,"11h20                12h 50","DIAGNOSTIQUE ANALYS VIB(TD)","CHELLIL","RC14","DIAGNOSTIQUE ANALYS VIB(TD) CHELLIL RC14","THER-DY-APP-TEA-CH(TP)","GRABI","A13","THER-DY-APP-TEA-CH(TP) GRABI A13"]
[null,"13h 00              14h 30","ENERGIE RENOUV-MIC©","BERRAZOUANE","AP2","ENERGIE RENOUV-MIC© BERRAZOUANE AP2","COMM-HYD-PNEU©","MELLOUSSI","B419","COMM-HYD-PNEU© MELLOUSSI B419","SYST-AUTO-PROD(TP)","X","X","SYST-AUTO-PROD(TP) X X","ELECTRONIQUE-APP©","MELLAL","A22","ELECTRONIQUE-APP© MELLAL A22"]
[null,"14h 40              16h 10",null,null,null,null,"COMM-HYD-PNEU(TD)","MELLOUSSI","B419","COMM-HYD-PNEU(TD) MELLOUSSI B419","SYST-AUTO-PROD(TP)","X","X","SYST-AUTO-PROD(TP) X X","TURBOMACHINE©","GUEDIFA","A22","TURBOMACHINE© GUEDIFA A22"]
[null,"16h 20              17h 50"]
["Jeudi","8h 00                     9h 30","ARCHIT-AUT-PROG-IND©","GAHLOUZ","A14","ARCHIT-AUT-PROG-IND© GAHLOUZ A14","M-D-F-APP(TD)","GUEDIFA","RC14","M-D-F-APP(TD) GUEDIFA RC14","PANIER AU CHOIX©","HAOUANOH","RC13","PANIER AU CHOIX© HAOUANOH RC13","VIB-MACH-TOUR(TD)","BOUMEDINE-F","A12","VIB-MACH-TOUR(TD) BOUMEDINE-F A12"]
[null,"9h 40                  11h 10",null,null,null,null,"M-D-F-APP©","GUEDIFA","AP4","M-D-F-APP© GUEDIFA AP4","PANIER AU CHOIX","X","RC13","PANIER AU CHOIX X RC13","VIB-MACH-TOUR©","CHELLIL","A12","VIB-MACH-TOUR© CHELLIL A12"]
[null,"11h20                 12h 50","ETHIQ-DEONT-PROP©","ALEM","AP2","ETHIQ-DEONT-PROP© ALEM AP2","ETHIQ-DEONT-PROP©","ALEM","AP2","ETHIQ-DEONT-PROP© ALEM AP2","ETHIQ-DEONT-PROP©","ALEM","AP2","ETHIQ-DEONT-PROP© ALEM AP2","ETHIQ-DEONT-PROP©","ALEM","AP2","ETHIQ-DEONT-PROP© ALEM AP2"]
[null,"13h 00              14h 30"]
[null,"14h 40              16h 10","DIAGNOSTIQUE ANALYS VIB(TP)","CHELLIL-S","AT12","DIAGNOSTIQUE ANALYS VIB(TP) CHELLIL-S AT12"]
[null,"16h 20              17h 50"]
["Samedi","8h 00                     9h 30"]
[null,"9h 40                  11h 10",null,null,null,null,null,null,null,null,"PILOTAGE-FLUX-GEST-STOK©","OURARI","B32","PILOTAGE-FLUX-GEST-STOK© OURARI B32"]
[null,"11h20                 12h 50",null,null,null,null,null,null,null,null,"PILOTAGE-FLUX-GEST-STOK(TD)","OURARI","B32","PILOTAGE-FLUX-GEST-STOK(TD) OURARI B32"]

{"sheet":"EN LICENCE10","index":14,"n_rows":36,"n_cols":18,"rows_kept":36,"cut":false,"hidden":false,"merged":[[27,0,32,0],[33,0,35,0],[0,0,0,1],[3,0,8,0],[9,0,14,0],[15,0,20,0],[21,0,26,0]]}
["Departement:",null,null,null,null,null,null,null,null,"Filière:G-mec",null,null,null,"Spécialite:energetique"]
[null,"Section:",null,null,null,"LICENCE 3ème année",null,null,null,null,null,null,null,{"$f":"NOW()","v":"2019-05-21T11:37:17.090"}]
["Jour","SEANCES","LEN-16/A","Enseignant","Salle","LEN-16/A","LEN-16/B","Enseignant","Salle","LEN-16/B","LEN-16/C","Enseignant","Salle","LEN-16/C","LMF13-B","Enseignant","Salle","LMF13-B"]
["Dimanche","8h 00                     9h 30",null,null,null,null,"MOTEURS-COMB-INTE(TP)","OUALI","RC6","MOTEURS-COMB-INTE(TP) OUALI RC6","PROJET DE FIN DE CYCLE(TP)","GRINE","A22","PROJET DE FIN DE CYCLE(TP) GRINE A22"]
[null,"9h 40                 11h 10","MOTEURS A COMBUSTION-INT(TP)","OUALI","RC6","MOTEURS A COMBUSTION-INT(TP) OUALI RC6","TRANSFERT DE CHALEUR(TD)","HIMRANE","A14","TRANSFERT DE CHALEUR(TD) HIMRANE A14","PROJET DE FIN DE CYCLE(TP)","GRINE","A22","PROJET DE FIN DE CYCLE(TP) GRINE A22"]
[null,"11h20                 12h 50","CRYOGENIE©","DAHMANI","AP1","CRYOGENIE© DAHMANI AP1","CRYOGENIE©","DAHMANI","AP1","CRYOGENIE© DAHMANI AP1","CRYOGENIE©","DAHMANI","AP1","CRYOGENIE© DAHMANI AP1"]
[null,"13h 00              14h 30","MOTEURS A COMBUSTION-INT©","OUALI","AP1","MOTEURS A COMBUSTION-INT© OUALI AP1","MOTEURS A COMBUSTION-INT©","OUALI","AP1","MOTEURS A COMBUSTION-INT© OUALI AP1","MOTEURS A COMBUSTION-INT©","OUALI","AP1","MOTEURS A COMBUSTION-INT© OUALI AP1","THERMODYNAMIQUE©","XX","XX","THERMODYNAMIQUE© XX XX"]
[null,"14h 40              16h 10","PROJET PROFESSIONNEL ET PEDAGOGIQUE©","GUERRACHE","AP1","PROJET PROFESSIONNEL ET PEDAGOGIQUE© GUERRACHE AP1","PROJET PROFESSIONNEL ET PEDAGOGIQUE©","GUERRACHE","AP1","PROJET PROFESSIONNEL ET PEDAGOGIQUE© GUERRACHE AP1","PROJET PROFESSIONNEL ET PEDAGOGIQUE©","GUERRACHE","AP1","PROJET PROFESSIONNEL ET PEDAGOGIQUE© GUERRACHE AP1","MDF©","XX","XX","MDF© XX XX"]
[null,"16h 20              17h 50"]
["Lundi","8h 00                    9h 30","TURBOMACHINESII©","BRACHEMI","AP1","TURBOMACHINESII© BRACHEMI AP1","TURBOMACHINESII©","BRACHEMI","AP1","TURBOMACHINESII© BRACHEMI AP1","TURBOMACHINESII©","BRACHEMI","AP1","TURBOMACHINESII© BRACHEMI AP1","THERMIQUE©","XX","XX","THERMIQUE© XX XX"]
[null,"9h 40                  11h 10","ENERGIES RENOUVELABLES©","DOUMANE","AP1","ENERGIES RENOUVELABLES© DOUMANE AP1","ENERGIES RENOUVELABLES©","DOUMANE","AP1","ENERGIES RENOUVELABLES© DOUMANE AP1","ENERGIES RENOUVELABLES©","DOUMANE","AP1","ENERGIES RENOUVELABLES© DOUMANE AP1","DESSIN-TECH(TP)","XX","XX","DESSIN-TECH(TP) XX XX"]
[null,"11h20                12h 50",null,null,null,null,null,null,null,null,"MACH-FRIG-POMP-CHALI(TD)","MANSOURI-L","A23","MACH-FRIG-POMP-CHALI(TD) MANSOURI-L A23"]
[null,"13h 00              14h 30","PROJET FIN DE CYCLE(TP)","LOUNICI","B32","PROJET FIN DE CYCLE(TP) LOUNICI B32","MACH-FRIGO-POMP-CHALEUR(TP)","MANSOURI-L","RC5","MACH-FRIGO-POMP-CHALEUR(TP) MANSOURI-L RC5",null,null,null,null,"THERMIQUE(TP)","XX","XX","THERMIQUE(TP) XX XX"]
[null,"14h 40              16h 10","PROJET FIN DE CYCLE(TP)","LOUNICI","B32","PROJET FIN DE CYCLE(TP) LOUNICI B32","MACH-FRIGO-POMP-CHALEUR(TP)","MANSOURI-L","RC5","MACH-FRIGO-POMP-CHALEUR(TP) MANSOURI-L RC5",null,null,null,null,"THERMIQUE(TP)","XX","XX","THERMIQUE(TP) XX XX"]
[null,"16h 20              17h 50"]
["Mardi","8h 00                    9h 30",null,null,null,null,null,null,null,null,null,null,null,null,"THERMIQUE©","XX","XX","THERMIQUE© XX XX"]
[null,"9h 40                 11h 10",null,null,null,null,null,null,null,null,null,null,null,null,"THERMIQUE(TD)","XX","XX","THERMIQUE(TD) XX XX"]
[null,"11h20                12h 50"]
[null,"13h 00              14h 30",null,null,null,null,null,null,null,null,"MACHINES FRIGORIFIQUE ET POMPES A CHALEUR(TP)","LADJANI","RC5","MACHINES FRIGORIFIQUE ET POMPES A CHALEUR(TP) LADJANI RC5","THERMODYNAMIQUE(TP)","XX","XX","THERMODYNAMIQUE(TP) XX XX"]
[null,"14h 40              16h 10",null,null,null,null,null,null,null,null,"MACHINES FRIGORIFIQUE ET POMPES A CHALEUR(TP)","LADJANI","RC5","MACHINES FRIGORIFIQUE ET POMPES A CHALEUR(TP) LADJANI RC5","THERMODYNAMIQUE(TP)","XX","XX","THERMODYNAMIQUE(TP) XX XX"]
[null,"16h 20              17h 50"]
["Mercredi","8h 00                    9h 30","TURBOMACHINESII©","BRACHEMI","AP1","TURBOMACHINESII© BRACHEMI AP1","TURBOMACHINESII©","BRACHEMI","AP1","TURBOMACHINESII© BRACHEMI AP1","TURBOMACHINESII©","BRACHEMI","AP1","TURBOMACHINESII© BRACHEMI AP1","MANAGEMENT©","XX","XX","MANAGEMENT© XX XX"]
[null,"9h 40                 11h 10","TRANSFERT DE CHALEURII©","HIMRANE","AP1","TRANSFERT DE CHALEURII© HIMRANE AP1","TRANSFERT DE CHALEURII©","HIMRANE","AP1","TRANSFERT DE CHALEURII© HIMRANE AP1","TRANSFERT DE CHALEURII©","HIMRANE","AP1","TRANSFERT DE CHALEURII© HIMRANE AP1","THERMODYNAMIQUE©","XX","XX","THERMODYNAMIQUE© XX XX"]
[null,"11h20                12h 50",null,null,null,null,null,null,null,null,null,null,null,null,"THERMODYNAMIQUE(TD)","XX","XX","THERMODYNAMIQUE(TD) XX XX"]
[null,"13h 00              14h 30","MOTEURS-COMB-INT(TD)","OUALI","B39","MOTEURS-COMB-INT(TD) OUALI B39","PROJET FIN DE CYCLE(TP)","DAIMALLAH","RC14","PROJET FIN DE CYCLE(TP) DAIMALLAH RC14","TRANSFERT DE CHALEUR(TD)","HIMRANE","B35","TRANSFERT DE CHALEUR(TD) HIMRANE B35"]
[null,"14h 40              16h 10","TRANSFERT DE CHALEURII(TD)","HIMRANE","B39","TRANSFERT DE CHALEURII(TD) HIMRANE B39","PROJET FIN DE CYCLE(TP)","DAIMALLAH","RC14","PROJET FIN DE CYCLE(TP) DAIMALLAH RC14","MOTEUR COMB INTERN(TD) ","OUALI","B35","MOTEUR COMB INTERN(TD)  OUALI B35","RDM(TD)","XX","XX","RDM(TD) XX XX"]
[null,"16h 20              17h 50"]
["Jeudi","8h 00                     9h 30",null,null,null,null,"ASSERV-REGUL(TP)","OUHIB","A26","ASSERV-REGUL(TP) OUHIB A26","TURBOMACHINESII(TD) ","DAHMANI","B35","TURBOMACHINESII(TD)  DAHMANI B35","RDM©","XX","XX","RDM© XX XX"]
[null,"9h 40                  11h 10","TURBOMACHINESII(TD)","DAHMANI","B310","TURBOMACHINESII(TD) DAHMANI B310","MOTEURS-COMB(TD)","OUALI","A25","MOTEURS-COMB(TD) OUALI A25","ASSERV-REGUL(TP)","OUHIB","A26","ASSERV-REGUL(TP) OUHIB A26","MDF©","XX","XX","MDF© XX XX"]
[null,"11h20                 12h 50","ASSERV-REGUL(TP)","OUHIB","A26","ASSERV-REGUL(TP) OUHIB A26",null,null,null,null,"MOTEURS-COMB(TP)","OUALI","RC6","MOTEURS-COMB(TP) OUALI RC6"]
[null,"13h 00              14h 30","MACH-FRIGO-POMP-CHALEUR(TP)","NADIR","RC5","MACH-FRIGO-POMP-CHALEUR(TP) NADIR RC5","TURBOMACHINESII(TD)","DAHMANI","A14","TURBOMACHINESII(TD) DAHMANI A14",null,null,null,null,"MDF(TD)","XX","XX","MDF(TD) XX XX"]
[null,"14h 40              16h 10","MACH-FRIGO-POMP-CHALEUR(TP)","NADIR","RC5","MACH-FRIGO-POMP-CHALEUR(TP) NADIR RC5"]
[null,"16h 20              17h 50"]
["Samedi","8h 00                     9h 30","MACHINES FRIGORIFIQUE ET POMPES A CHALEUR©","MANSOURI-L","AP1","MACHINES FRIGORIFIQUE ET POMPES A CHALEUR© MANSOURI-L AP1","MACHINES FRIGORIFIQUE ET POMPES A CHALEUR©","MANSOURI-L","AP1","MACHINES FRIGORIFIQUE ET POMPES A CHALEUR© MANSOURI-L AP1","MACHINES FRIGORIFIQUE ET POMPES A CHALEUR©","MANSOURI-L","AP1","MACHINES FRIGORIFIQUE ET POMPES A CHALEUR© MANSOURI-L AP1"]
[null,"9h 40                  11h 10","MACHINES FRIGORIFIQUE ET POMPES A CHALEUR(TD)","MANSOURI-L","A22","MACHINES FRIGORIFIQUE ET POMPES A CHALEUR(TD) MANSOURI-L A22",null,null,null,null,null,null,null,null,"MANAGEMENT©","XX","XX","MANAGEMENT© XX XX"]
[null,"11h20                 12h 50",null,null,null,null,"MACHINES FRIGORIFIQUE ET POMPES A CHALEUR(TD)","MANSOURI-L","A22","MACHINES FRIGORIFIQUE ET POMPES A CHALEUR(TD) MANSOURI-L A22",null,null,null,null,"THERMODYNAMIQUE©","XX","XX","THERMODYNAMIQUE© XX XX"]

{"sheet":"EN MASTER12","index":15,"n_rows":36,"n_cols":18,"rows_kept":36,"cut":false,"hidden":false,"merged":[[33,0,35,0],[0,0,0,1],[3,0,8,0],[9,0,14,0],[15,0,20,0],[21,0,26,0],[27,0,32,0]]}
["Filère:G Mécanique",null,null,null,null,"Spécialitè:Enérgie renouvlable en mec",null,null,null,"Instalation énergétique et turbomachine",null,null,null,"énergétique"]
[null,"Section:",null,null,null,"master 1ère année",null,null,null,null,null,null,null,{"$f":"NOW()","v":"2019-05-21T11:37:17.090"}]
["Jour","SEANCES","MER18","Enseignant","Salle","MER18","MIE18","Enseignant","Salle","MIE18","MEN18","Enseignant","Salle","MEN18","MTC16","Enseignant","Salle","MTC16"]
["Dimanche","8h 00                     9h 30","METROLOGIE-THERMIQUE-ASSERV-REGUL©","AKOUCHE","A13","METROLOGIE-THERMIQUE-ASSERV-REGUL© AKOUCHE A13","TURBOMACHINES APP (TD) ","BRAHIMI","B38","TURBOMACHINES APP (TD)  BRAHIMI B38","COMBUSTION© (TD)","LOUNICI","B39","COMBUSTION© (TD) LOUNICI B39","THERMIQUE(TD)","XX","XX","THERMIQUE(TD) XX XX"]
[null,"9h 40                 11h 10","METROLOGIE-THERMIQUE-ASSERV-REGUL(TP)","AKOUCHE","A13","METROLOGIE-THERMIQUE-ASSERV-REGUL(TP) AKOUCHE A13","COMBUSTION©","LOUNICI","B416","COMBUSTION© LOUNICI B416","COMBUSTION©  ","LOUNICI","B416","COMBUSTION©   LOUNICI B416","METHODES NUMERIQUE©","XX","XX","METHODES NUMERIQUE© XX XX"]
[null,"11h20                 12h 50","ELECTROTECHNIQUE APPLIQUEE©","RAHMOUNE","RC13","ELECTROTECHNIQUE APPLIQUEE© RAHMOUNE RC13","TECH ET CALCUL DES ECHANGEUR DE CHALEUR©","HIMRANE","B417","TECH ET CALCUL DES ECHANGEUR DE CHALEUR© HIMRANE B417","SECHAGE THERMIQUE©","MANSOURI-K","B31","SECHAGE THERMIQUE© MANSOURI-K B31"]
[null,"13h 00              14h 30","MONTAG ET DIM DES PROJETS ER(TP)","AKOUCHE","A26","MONTAG ET DIM DES PROJETS ER(TP) AKOUCHE A26","MAINT-INST-ENERG©","HEDEILI-F","A16","MAINT-INST-ENERG© HEDEILI-F A16","CHAUFFAG-CLIM©","KHALDI","B32","CHAUFFAG-CLIM© KHALDI B32","PROGRAMMATION(TP)","XX","XX","PROGRAMMATION(TP) XX XX"]
[null,"14h 40              16h 10","MONTAG ET DIM DES PROJETS ER(TP)","AKOUCHE","A26","MONTAG ET DIM DES PROJETS ER(TP) AKOUCHE A26","MAIN-INST-ENERG(TP)","HEDEILI-F","A16","MAIN-INST-ENERG(TP) HEDEILI-F A16","CHAUFFAGE ET CLIMATISATION(TD)","KHALDI","B32","CHAUFFAGE ET CLIMATISATION(TD) KHALDI B32","PROGRAMMATION(TP)","XX","XX","PROGRAMMATION(TP) XX XX"]
[null,"16h 20              17h 50"]
["Lundi","8h 00                    9h 30","RAYONNEMENT SOLAIRE©","GRINE","A21","RAYONNEMENT SOLAIRE© GRINE A21","DYNAMIQUE DES GAZ©","DOUMANE","A22","DYNAMIQUE DES GAZ© DOUMANE A22","DYNAMIQUE DES GAZ©","DOUMANE","A22","DYNAMIQUE DES GAZ© DOUMANE A22"]
[null,"9h 40                  11h 10","RAYONNEMENT SOLAIRE (TD) ","GRINE","A21","RAYONNEMENT SOLAIRE (TD)  GRINE A21","ASSERVISSEMENT ET REGULATION©","DOUDAH","A22","ASSERVISSEMENT ET REGULATION© DOUDAH A22","ASSERVISSEMENT ET REGULATION©","DOUDAH","A22","ASSERVISSEMENT ET REGULATION© DOUDAH A22","M-D-F©","XX","XX","M-D-F© XX XX"]
[null,"11h20                12h 50","CONVERSIONS D'ENERGIE(TP)","BOUSHAKI","RC5","CONVERSIONS D'ENERGIE(TP) BOUSHAKI RC5","COMBUSTION (TD) ","LOUNICI","A16","COMBUSTION (TD)  LOUNICI A16"]
[null,"13h 00              14h 30","ENERGIE HYDRO-ELECTRIQUE ET EOLIENNE (TD) ","BRACHEMI","A15","ENERGIE HYDRO-ELECTRIQUE ET EOLIENNE (TD)  BRACHEMI A15","INSTALLATIONS ENERGETIQUEII©","BRAHIMI","B418","INSTALLATIONS ENERGETIQUEII© BRAHIMI B418","METHODES DES VOLUMES FINIS©","HACHEMI","A16","METHODES DES VOLUMES FINIS© HACHEMI A16","AEROTHERMOCHIMIE-COMBUTION(TD)","XX","XX","AEROTHERMOCHIMIE-COMBUTION(TD) XX XX"]
[null,"14h 40              16h 10",null,null,null,null,"INSTALLATION D'ENERGIE (TD) ","BRAHIMI","B418","INSTALLATION D'ENERGIE (TD)  BRAHIMI B418","METHODES DES VOLUMES FINIS(TP) ","HACHEMI","RC1","METHODES DES VOLUMES FINIS(TP)  HACHEMI RC1","AEROTHERMOCHIMIE-COMBUTION©","XX","XX","AEROTHERMOCHIMIE-COMBUTION© XX XX"]
[null,"16h 20              17h 50"]
["Mardi","8h 00                    9h 30",null,null,null,null,null,null,null,null,"TURBOMACHINES(TP)","LADJANI","RC5","TURBOMACHINES(TP) LADJANI RC5","M-D-F(TD)","XX","XX","M-D-F(TD) XX XX"]
[null,"9h 40                 11h 10",null,null,null,null,null,null,null,null,"TURBOMACHINES(TP)","LADJANI","RC5","TURBOMACHINES(TP) LADJANI RC5","THERMIQUE©","XX","XX","THERMIQUE© XX XX"]
[null,"11h20                12h 50",null,null,null,null,null,null,null,null,null,null,null,null,"ANGLAIS E-E-O(TD)","XX","XX","ANGLAIS E-E-O(TD) XX XX"]
[null,"13h 00              14h 30"]
[null,"14h 40              16h 10"]
[null,"16h 20              17h 50"]
["Mercredi","8h 00                    9h 30","TRANSFER-THER-APP©","MAAMIR","A23","TRANSFER-THER-APP© MAAMIR A23","TURBOMACHINES APP©","BRAHIMI","A22","TURBOMACHINES APP© BRAHIMI A22","TURBOMACHINES-APPRO©","BRAHIMI","A22","TURBOMACHINES-APPRO© BRAHIMI A22"]
[null,"9h 40                 11h 10","ENERGIE HYDRO-ELECTRIQUE ET EOLIENNE©","BRACHEMI","A23","ENERGIE HYDRO-ELECTRIQUE ET EOLIENNE© BRACHEMI A23","INSTALLATION D'ENNERGIESII©","BRAHIMI","A22","INSTALLATION D'ENNERGIESII© BRAHIMI A22","DYNAMIQUE DES GAZ (TD) ","DOUMANE","A16","DYNAMIQUE DES GAZ (TD)  DOUMANE A16","THERMODYNAMIQUE©","XX","XX","THERMODYNAMIQUE© XX XX"]
[null,"11h20                12h 50","ELECTRONIQUE APPLIQUEE©","AHRICHE","A23","ELECTRONIQUE APPLIQUEE© AHRICHE A23","DYNAMIQUE DES GAZ (TD) ","DOUMANE","A16","DYNAMIQUE DES GAZ (TD)  DOUMANE A16",null,null,null,null,"ANGLAIS E-E-O©","XX","XX","ANGLAIS E-E-O© XX XX"]
[null,"13h 00              14h 30","TRANSFER-THER-APP(TD) ","MAAMIR","A11","TRANSFER-THER-APP(TD)  MAAMIR A11",null,null,null,null,"ASSERVISSEMENT ET REGULATION(TP)","OUHIB","A27","ASSERVISSEMENT ET REGULATION(TP) OUHIB A27"]
[null,"14h 40              16h 10",null,null,null,null,"ASSERVI -REGULA(TP)","OUHIB","A27","ASSERVI -REGULA(TP) OUHIB A27","TURBOMACHINES APP (TD) ","BRAHIMI","B313","TURBOMACHINES APP (TD)  BRAHIMI B313","THERMODYNAMIQUE(TD)","XX","XX","THERMODYNAMIQUE(TD) XX XX"]
[null,"16h 20              17h 50"]
["Jeudi","8h 00                     9h 30","SOLAIRE THERMIQUE ET APPLICATION©","HACHEMI","A13","SOLAIRE THERMIQUE ET APPLICATION© HACHEMI A13","TURBOMACHINES(TP)","LADJANI","RC5","TURBOMACHINES(TP) LADJANI RC5",null,null,null,null,"METHODES NUMERIQUE(TD)","XX","XX","METHODES NUMERIQUE(TD) XX XX"]
[null,"9h 40                  11h 10","SOLAIRE THERMIQUE ET APPLICATION(TD) ","HACHEMI","A13","SOLAIRE THERMIQUE ET APPLICATION(TD)  HACHEMI A13","TURBOMACHINES(TP)","LADJANI","RC5","TURBOMACHINES(TP) LADJANI RC5","ENNERGIES RENOUVELABLES©","DOUMANE","B36","ENNERGIES RENOUVELABLES© DOUMANE B36","ENERGIES RENOUVLABLES©","XX","XX","ENERGIES RENOUVLABLES© XX XX"]
[null,"11h20                 12h 50","ETHIQUE-DEO-PROP©","ALEM","AP2","ETHIQUE-DEO-PROP© ALEM AP2","ETHIQUE-DEO-PROP©","ALEM","AP2","ETHIQUE-DEO-PROP© ALEM AP2","ETHIQUE-DEO-PROP©","ALEM","AP2","ETHIQUE-DEO-PROP© ALEM AP2"]
[null,"13h 00              14h 30","TRANSFER-THER-APP©","MAAMIR","A11","TRANSFER-THER-APP© MAAMIR A11","SYST-DISP-HYD-PNE©","LADJANI","A12","SYST-DISP-HYD-PNE© LADJANI A12","SYST-DISP-HYD-PNE©","LADJANI","A12","SYST-DISP-HYD-PNE© LADJANI A12","ENERGIES RENOUVLABLES(TD)","XX","A15","ENERGIES RENOUVLABLES(TD) XX A15"]
[null,"14h 40              16h 10"]
[null,"16h 20              17h 50"]
["Samedi","8h 00                     9h 30"]
[null,"9h 40                  11h 10"]
[null,"11h20                 12h 50"]

{"sheet":"TC S31","index":16,"n_rows":36,"n_cols":18,"rows_kept":36,"cut":false,"hidden":false,"merged":[[27,0,32,0],[33,0,35,0],[0,0,0,1],[1,0,1,1],[3,0,8,0],[9,0,14,0],[15,0,20,0],[21,0,26,0]]}
["Filière:",null,null,null,null,"electronique",null,null,null,"automatique",null,null,null,"electrotechnique"]
["Section:",null,null,null,null,"Licence 2ème année",null,null,null,null,null,null,null,null,null,null,null,{"$f":"NOW()","v":"2019-05-21T11:37:17.090"}]
["Jour","SEANCES","LELN-17","Enseignant","Salle","LELN-17","LAUTO-17","Enseignant","Salle","LAUTO-17","LELET-17/A","Enseignant","Salle","LELET-17/A","LELET-17/B","Enseignant","Salle","LELET-17/B"]
["Dimanche","8h 00                     9h 30","METHODE-NUM(TP)","NEKKAA","A26","METHODE-NUM(TP) NEKKAA A26","MESURES ELCTR ET ELECTRO(TP);SYST-ASSERV-LINEAIRE(TP)","LARABI;IKHLEF","C315;B210","MESURES ELCTR ET ELECTRO(TP) LARABI C315\nSYST-ASSERV-LINEAIRE(TP) IKHLEF B210",null,null,null,null,"METHODE-NUM(TP)","YAHIAOUI","AB12","METHODE-NUM(TP) YAHIAOUI AB12"]
[null,"9h 40                 11h 10",null,null,null,null,"MESURES ELCTR ET ELECTRO(TP);SYST-ASSERV-LINEAIRE(TP)","LARABI;IKHLEF","C315;B210","MESURES ELCTR ET ELECTRO(TP) LARABI C315\nSYST-ASSERV-LINEAIRE(TP) IKHLEF B210","METHODE-NUM(TP)","YAHIAOUI","A26","METHODE-NUM(TP) YAHIAOUI A26"]
[null,"11h20                 12h 50","MESURES LECTRIQUE ET ELECTRONOIQUE©  ","AOUZELAG","AP6","MESURES LECTRIQUE ET ELECTRONOIQUE©   AOUZELAG AP6","MESURES LECTRIQUE ET ELECTRONOIQUE©  ","AOUZELAG","AP6","MESURES LECTRIQUE ET ELECTRONOIQUE©   AOUZELAG AP6","MESURES LECTRIQUE ET ELECTRONOIQUE©  ","AOUZELAG","AP6","MESURES LECTRIQUE ET ELECTRONOIQUE©   AOUZELAG AP6","MESURES LECTRIQUE ET ELECTRONOIQUE©  ","AOUZELAG","AP6","MESURES LECTRIQUE ET ELECTRONOIQUE©   AOUZELAG AP6"]
[null,"13h 00              14h 30","LOGIQUE-SEQ(TP);MESURES-ELECTRO(TP)","HAMDANI;LARABI","B211;C315","LOGIQUE-SEQ(TP) HAMDANI B211\nMESURES-ELECTRO(TP) LARABI C315","ARCHIT-SYS-AUTO©","HARFOUCHI","C48","ARCHIT-SYS-AUTO© HARFOUCHI C48"]
[null,"14h 40              16h 10","LOGIQUE-SEQ(TP);MESURES-ELECTRO(TP)","HAMDANI;LARABI","B211;C315","LOGIQUE-SEQ(TP) HAMDANI B211\nMESURES-ELECTRO(TP) LARABI C315"]
[null,"16h 20              17h 50"]
["Lundi","8h 00                    9h 30","METHODES NUM© ","YAHIAOUI","AP4","METHODES NUM©  YAHIAOUI AP4","METHODES NUM© ","YAHIAOUI","AP4","METHODES NUM©  YAHIAOUI AP4","METHODES NUM© ","YAHIAOUI","AP4","METHODES NUM©  YAHIAOUI AP4","METHODES NUM© ","YAHIAOUI","AP4","METHODES NUM©  YAHIAOUI AP4"]
[null,"9h 40                  11h 10","METHODES NUM(TD) ","YAHIAOUI","B37","METHODES NUM(TD)  YAHIAOUI B37","SYSTEMES-ASSERV©","IKHLEF","B313","SYSTEMES-ASSERV© IKHLEF B313","ELECTROTECHNIQUEII©","MZIOU","AP6","ELECTROTECHNIQUEII© MZIOU AP6","ELECTROTECHNIQUEII©","MZIOU","AP6","ELECTROTECHNIQUEII© MZIOU AP6"]
[null,"11h20                12h 50","THEORIE DE SIGNAL(TD) ","MASSOUT","C49","THEORIE DE SIGNAL(TD)  MASSOUT C49","SYSTEMES- ASSERV(TD)","IKHLEF","B313","SYSTEMES- ASSERV(TD) IKHLEF B313","PRODUCTION-ENERGIE©","BOUZIDA","C43","PRODUCTION-ENERGIE© BOUZIDA C43","PRODUCTION-ENERGIE©","BOUZIDA","C43","PRODUCTION-ENERGIE© BOUZIDA C43"]
[null,"13h 00              14h 30","ELECTRO-FONDII(TP)","HAMDANI","B211","ELECTRO-FONDII(TP) HAMDANI B211","SYSTEMES- ASSERV©","IKHLEF","B312","SYSTEMES- ASSERV© IKHLEF B312","ELECTROTECHNIQUE-FONDII(TD)","MZIOU","C43","ELECTROTECHNIQUE-FONDII(TD) MZIOU C43","THEORIE DE SIGNAL(TD)","MASSOUT","C412","THEORIE DE SIGNAL(TD) MASSOUT C412"]
[null,"14h 40              16h 10","ELECTRO-FONDII(TP)","HAMDANI","B211","ELECTRO-FONDII(TP) HAMDANI B211",null,null,null,null,null,null,null,null,"ELECTROTECHNIQUE-FONDII(TD)","MZIOU","C43","ELECTROTECHNIQUE-FONDII(TD) MZIOU C43"]
[null,"16h 20              17h 50"]
["Mardi","8h 00                    9h 30","SECURITE-ELCTRIQUE©","LARBANI","AP4","SECURITE-ELCTRIQUE© LARBANI AP4","SECURITE-ELCTRIQUE©","LARBANI","AP4","SECURITE-ELCTRIQUE© LARBANI AP4","SECURITE-ELCTRIQUE©","LARBANI","AP4","SECURITE-ELCTRIQUE© LARBANI AP4","SECURITE-ELCTRIQUE©","LARBANI","AP4","SECURITE-ELCTRIQUE© LARBANI AP4"]
[null,"9h 40                 11h 10",null,null,null,null,null,null,null,null,"MESURES ELCTR-ELCTRO(TP)","AOUZELAG","C315","MESURES ELCTR-ELCTRO(TP) AOUZELAG C315"]
[null,"11h20                12h 50",null,null,null,null,"METHODE-NUM(TP)","YAHIAOUI","A27","METHODE-NUM(TP) YAHIAOUI A27","MESURES ELCTR-ELCTRO(TP)","AOUZELAG","C315","MESURES ELCTR-ELCTRO(TP) AOUZELAG C315"]
[null,"13h 00              14h 30",null,null,null,null,null,null,null,null,"METHO-NUM(TD)","YAHIAOUI","C412","METHO-NUM(TD) YAHIAOUI C412","MESURES ELCTR-ELCTRO(TP)","AOUZELAG","C315","MESURES ELCTR-ELCTRO(TP) AOUZELAG C315"]
[null,"14h 40              16h 10",null,null,null,null,"METHODES NUM(TD) ","YAHIAOUI","C412","METHODES NUM(TD)  YAHIAOUI C412",null,null,null,null,"MESURES ELCTR-ELCTRO(TP)","AOUZELAG","C315","MESURES ELCTR-ELCTRO(TP) AOUZELAG C315"]
[null,"16h 20              17h 50"]
["Mercredi","8h 00                    9h 30","ELECTRONIQUE-FONDII© ","BELKACEM","C43","ELECTRONIQUE-FONDII©  BELKACEM C43","LOGIQUE-SEQ(TP)","LARABI","B211","LOGIQUE-SEQ(TP) LARABI B211","ELECTROTECHNIQUE-FONDII© ","MZIOU","C49","ELECTROTECHNIQUE-FONDII©  MZIOU C49","ELECTROTECHNIQUE-FONDII© ","MZIOU","C49","ELECTROTECHNIQUE-FONDII©  MZIOU C49"]
[null,"9h 40                 11h 10","ELECTRONIQUE-FONDII©","BELKACEM","C43","ELECTRONIQUE-FONDII© BELKACEM C43","LOGIQUE-SEQ(TP)","LARABI","B211","LOGIQUE-SEQ(TP) LARABI B211",null,null,null,null,"LOG-COMB-SEQ(TD)","AKROUM","C49","LOG-COMB-SEQ(TD) AKROUM C49"]
[null,"11h20                12h 50","TECH-EXP-CIRC-INT© ","LANI","AP6","TECH-EXP-CIRC-INT©  LANI AP6","TECH-EXP-CIRC-INT© ","LANI","AP6","TECH-EXP-CIRC-INT©  LANI AP6","TECH-EXP-CIRC-INT© ","LANI","AP6","TECH-EXP-CIRC-INT©  LANI AP6","TECH-EXP-CIRC-INT© ","LANI","AP6","TECH-EXP-CIRC-INT©  LANI AP6"]
[null,"13h 00              14h 30",null,null,null,null,"LOGIQUE-COM-SEQ(TD)","AKROUM","C412","LOGIQUE-COM-SEQ(TD) AKROUM C412","ELECTRON-FONDII(TP);LOG-COM-SEQ(TP)","HAMEL;LARABI","EEA;B211","ELECTRON-FONDII(TP) HAMEL EEA\nLOG-COM-SEQ(TP) LARABI B211","METHO-NUM(TD)","YAHIAOUI","C45","METHO-NUM(TD) YAHIAOUI C45"]
[null,"14h 40              16h 10","LOGIQ-COM-SEQ(TD) ","AKROUM","C45","LOGIQ-COM-SEQ(TD)  AKROUM C45",null,null,null,null,"ELECTRON-FONDII(TP);LOG-COM-SEQ(TP)","HAMEL;LARABI","EEA;B211","ELECTRON-FONDII(TP) HAMEL EEA\nLOG-COM-SEQ(TP) LARABI B211"]
[null,"16h 20              17h 50"]
["Jeudi","8h 00                     9h 30","THEORIE DE SIGNAL© ","MASSOUT","AP2","THEORIE DE SIGNAL©  MASSOUT AP2","THEORIE DE SIGNAL© ","MASSOUT","AP2","THEORIE DE SIGNAL©  MASSOUT AP2","THEORIE DE SIGNAL© ","MASSOUT","AP2","THEORIE DE SIGNAL©  MASSOUT AP2","THEORIE DE SIGNAL© ","MASSOUT","AP2","THEORIE DE SIGNAL©  MASSOUT AP2"]
[null,"9h 40                  11h 10","LOGIQUE COMB ET SEQUENTIELLE© ","AKROUM","AP2","LOGIQUE COMB ET SEQUENTIELLE©  AKROUM AP2","LOGIQUE COMB ET SEQUENTIELLE© ","AKROUM","AP2","LOGIQUE COMB ET SEQUENTIELLE©  AKROUM AP2","LOGIQUE COMB ET SEQUENTIELLE© ","AKROUM","AP2","LOGIQUE COMB ET SEQUENTIELLE©  AKROUM AP2","LOGIQUE COMB ET SEQUENTIELLE© ","AKROUM","AP2","LOGIQUE COMB ET SEQUENTIELLE©  AKROUM AP2"]
[null,"11h20                 12h 50","TECHN-FAB-CIRC-INT© ","SMAANI","C45","TECHN-FAB-CIRC-INT©  SMAANI C45","THEORIE DE SIGNAL(TD)","MASSOUT","C412","THEORIE DE SIGNAL(TD) MASSOUT C412","LOG-COMB-SEQ(TD)","AKROUM","C43","LOG-COMB-SEQ(TD) AKROUM C43"]
[null,"13h 00              14h 30","TECH-COMP-ELECT© ","BELKACEM","C45","TECH-COMP-ELECT©  BELKACEM C45",null,null,null,null,"THEORIE DE SIGNAL(TD)","MASSOUT","C32","THEORIE DE SIGNAL(TD) MASSOUT C32","ELECTROTECH-FONDII(TP);LOG-COM-SEQ(TP)","HAMEL;LARABI","EEA;B211","ELECTROTECH-FONDII(TP) HAMEL EEA\nLOG-COM-SEQ(TP) LARABI B211"]
[null,"14h 40              16h 10","ELECTRONIQUE-FONDII(TD) ","BELKACEM","C48","ELECTRONIQUE-FONDII(TD)  BELKACEM C48",null,null,null,null,null,null,null,null,"ELECTROTECH-FONDII(TP);LOG-COM-SEQ(TP)","HAMEL;LARABI","EEA;B211","ELECTROTECH-FONDII(TP) HAMEL EEA\nLOG-COM-SEQ(TP) LARABI B211"]
[null,"16h 20              17h 50"]
["Samedi","8h 00                     9h 30"]
[null,"9h 40                  11h 10"]
[null,"11h20                 12h 50"]

{"sheet":"TC S32","index":17,"n_rows":36,"n_cols":18,"rows_kept":36,"cut":false,"hidden":false,"merged":[[27,0,32,0],[33,0,35,0],[0,0,0,1],[1,0,1,1],[3,0,8,0],[9,0,14,0],[15,0,20,0],[21,0,26,0]]}
["Filière:Génie civil"]
["Section:",null,null,null,null,"Licence 2ème année",null,null,null,null,null,null,null,null,null,null,null,{"$f":"NOW()","v":"2019-05-21T11:37:17.090"}]
["Jour","SEANCES","LGC-17/A","Enseignant","Salle","LGC-17/A","LGC-17/B","Enseignant","Salle","LGC-17/B","LGC-17/C","Enseignant","Salle","LGC-17/C","LGC-17/D","Enseignant","Salle","LGC-17/D"]
["Dimanche","8h 00                     9h 30","MATHS(TD)","MESSAOUDI","B312","MATHS(TD) MESSAOUDI B312","R-D-M(TD)","TOUKAL","B313","R-D-M(TD) TOUKAL B313","M-D-S(TP)","X+BERKANI","C05","M-D-S(TP) X+BERKANI C05","METHO-NUM(TD)","KAB","B414","METHO-NUM(TD) KAB B414"]
[null,"9h 40                 11h 10","R-D-M(TD)","TOUKAL","B312","R-D-M(TD) TOUKAL B312","MATHS(TD)","MESSAOUDI","B313","MATHS(TD) MESSAOUDI B313","M-D-S(TD)","SANDJAK","B311","M-D-S(TD) SANDJAK B311","M-D-S(TP)","X+BERKANI","C05","M-D-S(TP) X+BERKANI C05"]
[null,"11h20                 12h 50","TOPOGRAPHIE©","BELARBI-GC","AP5","TOPOGRAPHIE© BELARBI-GC AP5","TOPOGRAPHIE©","BELARBI-GC","AP5","TOPOGRAPHIE© BELARBI-GC AP5","TOPOGRAPHIE©","BELARBI-GC","AP5","TOPOGRAPHIE© BELARBI-GC AP5","TOPOGRAPHIE©","BELARBI-GC","AP5","TOPOGRAPHIE© BELARBI-GC AP5"]
[null,"13h 00              14h 30","RESISTANCES DES MATERIAUX©","MEZAZIGH","AP4","RESISTANCES DES MATERIAUX© MEZAZIGH AP4","RESISTANCES DES MATERIAUX©","MEZAZIGH","AP4","RESISTANCES DES MATERIAUX© MEZAZIGH AP4","RESISTANCES DES MATERIAUX©","MEZAZIGH","AP4","RESISTANCES DES MATERIAUX© MEZAZIGH AP4","RESISTANCES DES MATERIAUX©","MEZAZIGH","AP4","RESISTANCES DES MATERIAUX© MEZAZIGH AP4"]
[null,"14h 40              16h 10","METHO-NUM(TD)","KAB","B41","METHO-NUM(TD) KAB B41","M-D-S(TD)","SANDJAK","B38","M-D-S(TD) SANDJAK B38","R-D-M(TP)","MEZAZIGH","B28","R-D-M(TP) MEZAZIGH B28"]
[null,"16h 20              17h 50"]
["Lundi","8h 00                    9h 30","MATHEMATIQUE4©","MESSAOUDI","AP5","MATHEMATIQUE4© MESSAOUDI AP5","MATHEMATIQUE4©","MESSAOUDI","AP5","MATHEMATIQUE4© MESSAOUDI AP5","MATHEMATIQUE4©","MESSAOUDI","AP5","MATHEMATIQUE4© MESSAOUDI AP5","MATHEMATIQUE4©","MESSAOUDI","AP5","MATHEMATIQUE4© MESSAOUDI AP5"]
[null,"9h 40                  11h 10","MATERIAUX DE CONSTRUCTION©","CHAID","AP5","MATERIAUX DE CONSTRUCTION© CHAID AP5","MATERIAUX DE CONSTRUCTION©","CHAID","AP5","MATERIAUX DE CONSTRUCTION© CHAID AP5","MATERIAUX DE CONSTRUCTION©","CHAID","AP5","MATERIAUX DE CONSTRUCTION© CHAID AP5","MATERIAUX DE CONSTRUCTION©","CHAID","AP5","MATERIAUX DE CONSTRUCTION© CHAID AP5"]
[null,"11h20                12h 50",null,null,null,null,null,null,null,null,"MATHS(TD)","MESSAOUDI","B46","MATHS(TD) MESSAOUDI B46","R-D-M(TD)","CHEBBOUT","B39","R-D-M(TD) CHEBBOUT B39"]
[null,"13h 00              14h 30","M-D-C(TP)","GHERNOUTI-H+CHAID","C08","M-D-C(TP) GHERNOUTI-H+CHAID C08","M-D-S(TP)","BERKANI+MECHKARINI","C05","M-D-S(TP) BERKANI+MECHKARINI C05","R-D-M(TD)","CHEBBOUT","B415","R-D-M(TD) CHEBBOUT B415","MATHS(TD)","MESSAOUDI","B39","MATHS(TD) MESSAOUDI B39"]
[null,"14h 40              16h 10","M-D-S(TP)","BERKANI+MECHKARINI","C05","M-D-S(TP) BERKANI+MECHKARINI C05","M-D-C(TP)","GHERNOUTI-H+CHAID","C08","M-D-C(TP) GHERNOUTI-H+CHAID C08"]
[null,"16h 20              17h 50"]
["Mardi","8h 00                    9h 30"]
[null,"9h 40                 11h 10"]
[null,"11h20                12h 50"]
[null,"13h 00              14h 30"]
[null,"14h 40              16h 10"]
[null,"16h 20              17h 50"]
["Mercredi","8h 00                    9h 30",null,null,null,null,"METHO-NUM(TP)","CHELAOUAOU","RC9/A","METHO-NUM(TP) CHELAOUAOU RC9/A","METHO-NUM(TD)","KAB","C45","METHO-NUM(TD) KAB C45"]
[null,"9h 40                 11h 10","METHODES NUMERIQUES©","KAB","AP5","METHODES NUMERIQUES© KAB AP5","METHODES NUMERIQUES©","KAB","AP5","METHODES NUMERIQUES© KAB AP5","METHODES NUMERIQUES©","KAB","AP5","METHODES NUMERIQUES© KAB AP5","METHODES NUMERIQUES©","KAB","AP5","METHODES NUMERIQUES© KAB AP5"]
[null,"11h20                12h 50","GEOLOGIE©","RABEHI","AP4","GEOLOGIE© RABEHI AP4","GEOLOGIE©","RABEHI","AP4","GEOLOGIE© RABEHI AP4","GEOLOGIE©","RABEHI","AP4","GEOLOGIE© RABEHI AP4","GEOLOGIE©","RABEHI","AP4","GEOLOGIE© RABEHI AP4"]
[null,"13h 00              14h 30",null,null,null,null,"METHO-NUM(TD)","KAB","B47","METHO-NUM(TD) KAB B47",null,null,null,null,"D-A-O(TP)","MAHTOUT","AB12","D-A-O(TP) MAHTOUT AB12"]
[null,"14h 40              16h 10",null,null,null,null,"D-A-O(TP)","MAHTOUT","RC9/B","D-A-O(TP) MAHTOUT RC9/B",null,null,null,null,"R-D-M(TP)","MEZAZIGH","B28","R-D-M(TP) MEZAZIGH B28"]
[null,"16h 20              17h 50"]
["Jeudi","8h 00                     9h 30","D-A-O(TP)","MAHTOUT","B210","D-A-O(TP) MAHTOUT B210",null,null,null,null,"METHO-NUM(TP)","CHELAOUAOU","RC9/B","METHO-NUM(TP) CHELAOUAOU RC9/B","M-D-C(TP)","GHERNOUTI-H+CHAID","C08","M-D-C(TP) GHERNOUTI-H+CHAID C08"]
[null,"9h 40                  11h 10",null,null,null,null,"R-D-M(TP)","MAHTOUT","B28","R-D-M(TP) MAHTOUT B28","M-D-C(TP)","GHERNOUTI-H+CHAID","C08","M-D-C(TP) GHERNOUTI-H+CHAID C08","METHO-NUM(TP)","CHELAOUAOU","RC9/B","METHO-NUM(TP) CHELAOUAOU RC9/B"]
[null,"11h20                 12h 50","METHO-NUM(TP)","CHELAOUAOU","RC9/B","METHO-NUM(TP) CHELAOUAOU RC9/B",null,null,null,null,"D-A-O(TP)","MAHTOUT","AB12","D-A-O(TP) MAHTOUT AB12"]
[null,"13h 00              14h 30","TECH-EXP-CIRC-INT© ","X","AP3","TECH-EXP-CIRC-INT©  X AP3","TECH-EXP-CIRC-INT© ","X","AP3","TECH-EXP-CIRC-INT©  X AP3","TECH-EXP-CIRC-INT© ","X","AP3","TECH-EXP-CIRC-INT©  X AP3","TECH-EXP-CIRC-INT© ","X","AP3","TECH-EXP-CIRC-INT©  X AP3"]
[null,"14h 40              16h 10","R-D-M(TP)","MAHTOUT","B28","R-D-M(TP) MAHTOUT B28"]
[null,"16h 20              17h 50"]
["Samedi","8h 00                     9h 30","M-D-S(TD)","SANDJAK","B31","M-D-S(TD) SANDJAK B31"]
[null,"9h 40                  11h 10","MECANIQUE DES SOLS©","SANDJAK","B417","MECANIQUE DES SOLS© SANDJAK B417","MECANIQUE DES SOLS©","SANDJAK","B417","MECANIQUE DES SOLS© SANDJAK B417","MECANIQUE DES SOLS©","SANDJAK","B417","MECANIQUE DES SOLS© SANDJAK B417","MECANIQUE DES SOLS©","SANDJAK","B417","MECANIQUE DES SOLS© SANDJAK B417"]
[null,"11h20                 12h 50",null,null,null,null,null,null,null,null,null,null,null,null,"M-D-S(TD)","SANDJAK","B31","M-D-S(TD) SANDJAK B31"]

{"sheet":"TC S34","index":18,"n_rows":37,"n_cols":18,"rows_kept":37,"cut":false,"hidden":false,"merged":[[27,0,32,0],[33,0,36,0],[0,0,0,1],[1,0,1,1],[3,0,8,0],[9,0,14,0],[15,0,20,0],[21,0,26,0]]}
["Filière:",null,null,null,null,"G DES PROCEDES-HSI"]
["Section:",null,null,null,null,"Licence 2ème année",null,null,null,null,null,null,null,null,null,null,null,{"$f":"NOW()","v":"2019-05-21T11:37:17.090"}]
["Jour","SEANCES","LGP-17/A","Enseignant","Salle","LGP-17/A","LGP-17/B","Enseignant","Salle","LGP-17/B","LGP-17/C","Enseignant","Salle","LGP-17/C","LHSI-17","Enseignant","Salle","LHSI-17"]
["Dimanche","8h 00                     9h 30","THERMODYNAMIQUE CHIMIQUE© ","KHERIBET","AP1","THERMODYNAMIQUE CHIMIQUE©  KHERIBET AP1","THERMODYNAMIQUE CHIMIQUE© ","KHERIBET","AP1","THERMODYNAMIQUE CHIMIQUE©  KHERIBET AP1","THERMODYNAMIQUE CHIMIQUE© ","KHERIBET","AP1","THERMODYNAMIQUE CHIMIQUE©  KHERIBET AP1","FIABILITE HUMAINE-MAT©","TAZROUT","B31","FIABILITE HUMAINE-MAT© TAZROUT B31"]
[null,"9h 40                 11h 10","CHIMIE DES SOLUTIONS© ","AISSAT","AP1","CHIMIE DES SOLUTIONS©  AISSAT AP1","CHIMIE DES SOLUTIONS© ","AISSAT","AP1","CHIMIE DES SOLUTIONS©  AISSAT AP1","CHIMIE DES SOLUTIONS© ","AISSAT","AP1","CHIMIE DES SOLUTIONS©  AISSAT AP1","FIABILITE HUMAINE-MAT(TD)","TAZROUT","B31","FIABILITE HUMAINE-MAT(TD) TAZROUT B31"]
[null,"11h20                 12h 50","CINITIQUE-CHIMIQUE(TP)","MALEK","C22","CINITIQUE-CHIMIQUE(TP) MALEK C22","MDF(TP)","AMITOUCHE","RC7","MDF(TP) AMITOUCHE RC7","METHO-NUM(TP)","HARFOUCHE","RC9/A","METHO-NUM(TP) HARFOUCHE RC9/A","METHO-O-HSI(TP)","SOUAM","B35","METHO-O-HSI(TP) SOUAM B35"]
[null,"13h 00              14h 30","CINITIQUE-CHIMIQUE(TP)","MALEK","C22","CINITIQUE-CHIMIQUE(TP) MALEK C22","METHO-NUM(TP)","HARFOUCHE","RC9/A","METHO-NUM(TP) HARFOUCHE RC9/A","MDF(TP)","AMITOUCHE","RC7","MDF(TP) AMITOUCHE RC7","ENVIRON-HYGIENE©","MEDJEDOUB","B35","ENVIRON-HYGIENE© MEDJEDOUB B35"]
[null,"14h 40              16h 10","METHO-NUM© ","AZZOUNI","AP2","METHO-NUM©  AZZOUNI AP2","METHO-NUM© ","AZZOUNI","AP2","METHO-NUM©  AZZOUNI AP2","METHO-NUM© ","AZZOUNI","AP2","METHO-NUM©  AZZOUNI AP2","METHO-NUM© ","AZZOUNI","AP2","METHO-NUM©  AZZOUNI AP2"]
[null,"16h 20              17h 50"]
["Lundi","8h 00                    9h 30","CH-ORG(TP);CH-SOL(TP)","OUSLIMANI;MEDJEDOUB","B26;B17","CH-ORG(TP) OUSLIMANI B26\nCH-SOL(TP) MEDJEDOUB B17",null,null,null,null,null,null,null,null,"TYPOLOGIE-RISQUE©","ABDELLAOUI","B311","TYPOLOGIE-RISQUE© ABDELLAOUI B311"]
[null,"9h 40                  11h 10","CH-ORG(TP);CH-SOL(TP)","OUSLIMANI;MEDJEDOUB","B26;B17","CH-ORG(TP) OUSLIMANI B26\nCH-SOL(TP) MEDJEDOUB B17","CH-SOLUTIONS(TD)","BENBOUABDELLAH","B418","CH-SOLUTIONS(TD) BENBOUABDELLAH B418","METHO-NUM(TD)","AZZOUNI","B310","METHO-NUM(TD) AZZOUNI B310","TYPOLOGIE-RISQUE(TD)","ABDELLAOUI","B311","TYPOLOGIE-RISQUE(TD) ABDELLAOUI B311"]
[null,"11h20                12h 50","METHO-NUM(TD)","AZZOUNI","B37","METHO-NUM(TD) AZZOUNI B37","METHO-NUM(TD)","AZZOUNI","B37","METHO-NUM(TD) AZZOUNI B37","CH-SOLUTIONS(TD)","BENBOUABDELLAH","B416","CH-SOLUTIONS(TD) BENBOUABDELLAH B416","SYSTEMES -MANAG©","TIRECHE","B43","SYSTEMES -MANAG© TIRECHE B43"]
[null,"13h 00              14h 30","INRODUCTION RAFFI-PETROCHMIE© ","BOUFELLAH","AP1","INRODUCTION RAFFI-PETROCHMIE©  BOUFELLAH AP1","INRODUCTION RAFFI-PETROCHMIE© ","BOUFELLAH","AP1","INRODUCTION RAFFI-PETROCHMIE©  BOUFELLAH AP1","INRODUCTION RAFFI-PETROCHMIE© ","BOUFELLAH","AP1","INRODUCTION RAFFI-PETROCHMIE©  BOUFELLAH AP1","METHO-NUM(TD)","AZZOUNI","B311","METHO-NUM(TD) AZZOUNI B311"]
[null,"14h 40              16h 10","TECHNIQUE D'EXPRESSSION ET DE COMMUNICATION© ","SOUAM","AP3","TECHNIQUE D'EXPRESSSION ET DE COMMUNICATION©  SOUAM AP3","TECHNIQUE D'EXPRESSSION ET DE COMMUNICATION© ","SOUAM","AP3","TECHNIQUE D'EXPRESSSION ET DE COMMUNICATION©  SOUAM AP3","TECHNIQUE D'EXPRESSSION ET DE COMMUNICATION© ","SOUAM","AP3","TECHNIQUE D'EXPRESSSION ET DE COMMUNICATION©  SOUAM AP3","TECHNIQUE D'EXPRESSSION ET DE COMMUNICATION© ","SOUAM","AP3","TECHNIQUE D'EXPRESSSION ET DE COMMUNICATION©  SOUAM AP3"]
[null,"16h 20              17h 50"]
["Mardi","8h 00                    9h 30"]
[null,"9h 40                 11h 10"]
[null,"11h20                12h 50"]
[null,"13h 00              14h 30"]
[null,"14h 40              16h 10"]
[null,"16h 20              17h 50"]
["Mercredi","8h 00                    9h 30","THERMOD-CHIMIQUE(TD)","TRACHI","B35","THERMOD-CHIMIQUE(TD) TRACHI B35",null,null,null,null,null,null,null,null,"APPAR-CONTR-MES©","IDIR-TA","B312","APPAR-CONTR-MES© IDIR-TA B312"]
[null,"9h 40                 11h 10","CHIMIE ORGANIQUE© ","YELLES","AP4","CHIMIE ORGANIQUE©  YELLES AP4","CHIMIE ORGANIQUE© ","YELLES","AP4","CHIMIE ORGANIQUE©  YELLES AP4","CHIMIE ORGANIQUE© ","YELLES","AP4","CHIMIE ORGANIQUE©  YELLES AP4","APPAR-CONTR-MES(TD)","IDIR-TA","B312","APPAR-CONTR-MES(TD) IDIR-TA B312"]
[null,"11h20                12h 50","METHO-NUM(TP)","HARFOUCHE","RC9/B","METHO-NUM(TP) HARFOUCHE RC9/B","CH-ORG(TD)","YELLES","B313","CH-ORG(TD) YELLES B313"]
[null,"13h 00              14h 30","CH-SOLUTIONS(TD)","BENBOUABDELLAH","C49","CH-SOLUTIONS(TD) BENBOUABDELLAH C49","CINITIQUE-CHIMIQUE(TP)","MALEK","C22","CINITIQUE-CHIMIQUE(TP) MALEK C22","CH-ORG(TP);CH-SOL(TP)","SMAILI-TA;LARID","B26;B13","CH-ORG(TP) SMAILI-TA B26\nCH-SOL(TP) LARID B13"]
[null,"14h 40              16h 10",null,null,null,null,"CINITIQUE-CHIMIQUE(TP)","MALEK","C22","CINITIQUE-CHIMIQUE(TP) MALEK C22","CH-ORG(TP);CH-SOL(TP)","SMAILI-TA;LARID","B26;B13","CH-ORG(TP) SMAILI-TA B26\nCH-SOL(TP) LARID B13"]
[null,"16h 20              17h 50"]
["Jeudi","8h 00                     9h 30","MDF(TP)","AMITOUCHE","RC7","MDF(TP) AMITOUCHE RC7","THERMOD-CHIMIQUE(TD)","TRACHI","B39","THERMOD-CHIMIQUE(TD) TRACHI B39",null,null,null,null,"REGL-NORMES EN HSI©","MEGDOUD","B312","REGL-NORMES EN HSI© MEGDOUD B312"]
[null,"9h 40                  11h 10","CH-ORG(TD)","YELLES","B44","CH-ORG(TD) YELLES B44","CH-ORG(TP);CH-SOL(TP)","ZIDANI;LARID","B26;B13","CH-ORG(TP) ZIDANI B26\nCH-SOL(TP) LARID B13","THERMOD-CHIMIQUE(TD)","TRACHI","B39","THERMOD-CHIMIQUE(TD) TRACHI B39","REGL-NORMES EN HSI(TD)","MEGDOUD","B312","REGL-NORMES EN HSI(TD) MEGDOUD B312"]
[null,"11h20                 12h 50",null,null,null,null,"CH-ORG(TP);CH-SOL(TP)","ZIDANI;LARID","B26;B13","CH-ORG(TP) ZIDANI B26\nCH-SOL(TP) LARID B13","CH-ORG(TD)","YELLES","B310","CH-ORG(TD) YELLES B310","METHO-NUM(TP)","HARFOUCHE","A27","METHO-NUM(TP) HARFOUCHE A27"]
[null,"13h 00              14h 30",null,null,null,null,null,null,null,null,"CINITIQUE-CHIMIQUE(TP)","ANNOU","C22","CINITIQUE-CHIMIQUE(TP) ANNOU C22","APPAR-CONTR-MES(TP)","IDIR-TA","B23","APPAR-CONTR-MES(TP) IDIR-TA B23"]
[null,"14h 40              16h 10",null,null,null,null,null,null,null,null,"CINITIQUE-CHIMIQUE(TP)","ANNOU","C22","CINITIQUE-CHIMIQUE(TP) ANNOU C22"]
[null,"16h 20              17h 50"]
["Samedi","8h 00                     9h 30","NOTION DES PHENOMENES DE TRANSFERT© ","SAHMOUNE","AP3","NOTION DES PHENOMENES DE TRANSFERT©  SAHMOUNE AP3","NOTION DES PHENOMENES DE TRANSFERT© ","SAHMOUNE","AP3","NOTION DES PHENOMENES DE TRANSFERT©  SAHMOUNE AP3","NOTION DES PHENOMENES DE TRANSFERT© ","SAHMOUNE","AP3","NOTION DES PHENOMENES DE TRANSFERT©  SAHMOUNE AP3"]
[null,"9h 40                  11h 10","CINETIQUE CHIMIQUE© ","MALEK","AP4","CINETIQUE CHIMIQUE©  MALEK AP4","CINETIQUE CHIMIQUE© ","MALEK","AP4","CINETIQUE CHIMIQUE©  MALEK AP4","CINETIQUE CHIMIQUE© ","MALEK","AP4","CINETIQUE CHIMIQUE©  MALEK AP4"]
[null,"11h20                 12h 50"]
[null,"13h 00              14h 30"]

{"sheet":"TC S35","index":19,"n_rows":36,"n_cols":18,"rows_kept":36,"cut":false,"hidden":false,"merged":[[27,0,32,0],[33,0,35,0],[0,0,0,1],[1,0,1,1],[3,0,8,0],[9,0,14,0],[15,0,20,0],[21,0,26,0]]}
["Departement:",null,null,null,null,"sc technologie"]
["Section:",null,null,null,null,"Licence 2ème année",null,null,null,null,null,null,null,null,null,null,null,{"$f":"NOW()","v":"2019-05-21T11:37:17.090"}]
["Jour","SEANCES","LGP-17/D","Enseignant","Salle","LGP-17/D","LGP-17/E","Enseignant","Salle","LGP-17/E","LGP-17/F","Enseignant","Salle","LGP-17/F","LGP-17/G","Enseignant","Salle","LGP-17/G"]
["Dimanche","8h 00                     9h 30","CINETIQUE CHIMIQUE© ","MALEK","AP2","CINETIQUE CHIMIQUE©  MALEK AP2","CINETIQUE CHIMIQUE© ","MALEK","AP2","CINETIQUE CHIMIQUE©  MALEK AP2","CINETIQUE CHIMIQUE© ","MALEK","AP2","CINETIQUE CHIMIQUE©  MALEK AP2","CINETIQUE CHIMIQUE© ","MALEK","AP2","CINETIQUE CHIMIQUE©  MALEK AP2"]
[null,"9h 40                 11h 10","MDF(TP)","AMITOUCHE","RC7","MDF(TP) AMITOUCHE RC7","METHO-NUM(TP)","HARFOUCHE","RC9/A","METHO-NUM(TP) HARFOUCHE RC9/A","CINITIQUE-CHIMIQUE(TP)","OUADOU","B14","CINITIQUE-CHIMIQUE(TP) OUADOU B14","CH-ORG(TP);CH-SOL(TP)","ZIDANI;HADDADOU","B24;B18","CH-ORG(TP) ZIDANI B24\nCH-SOL(TP) HADDADOU B18"]
[null,"11h20                 12h 50",null,null,null,null,null,null,null,null,"CINITIQUE-CHIMIQUE(TP)","OUADOU","B14","CINITIQUE-CHIMIQUE(TP) OUADOU B14","CH-ORG(TP);CH-SOL(TP)","ZIDANI;HADDADOU","B24;B18","CH-ORG(TP) ZIDANI B24\nCH-SOL(TP) HADDADOU B18"]
[null,"13h 00              14h 30","CH-ORG(TP);CH-SOL(TP)","OUSLIMANI;HADDADOU","B26;B18","CH-ORG(TP) OUSLIMANI B26\nCH-SOL(TP) HADDADOU B18","METHO-NUM(TD)","ZIROUR","C43","METHO-NUM(TD) ZIROUR C43"]
[null,"14h 40              16h 10","CH-ORG(TP);CH-SOL(TP)","OUSLIMANI;HADDADOU","B26;B18","CH-ORG(TP) OUSLIMANI B26\nCH-SOL(TP) HADDADOU B18",null,null,null,null,"M-D-F(TP)","AMITOUCHE","RC7","M-D-F(TP) AMITOUCHE RC7","METHO-NUM(TD)","ZIROUR","C45","METHO-NUM(TD) ZIROUR C45"]
[null,"16h 20              17h 50"]
["Lundi","8h 00                    9h 30",null,null,null,null,"CINITIQUE-CHIMIQUE(TP)","BENOUADAH","B14","CINITIQUE-CHIMIQUE(TP) BENOUADAH B14","CH-ORG(TP);CH-SOL(TP)","ZIDANI;HADDADOU","B24;B18","CH-ORG(TP) ZIDANI B24\nCH-SOL(TP) HADDADOU B18","THERMOD-CHIMIQUE(TD)","KHERIBET","B35","THERMOD-CHIMIQUE(TD) KHERIBET B35"]
[null,"9h 40                  11h 10","THERMOD-CHIMIQUE(TD)","KHERIBET","B39","THERMOD-CHIMIQUE(TD) KHERIBET B39","CINITIQUE-CHIMIQUE(TP)","BENOUADAH","B14","CINITIQUE-CHIMIQUE(TP) BENOUADAH B14","CH-ORG(TP);CH-SOL(TP)","ZIDANI;HADDADOU","B24;B18","CH-ORG(TP) ZIDANI B24\nCH-SOL(TP) HADDADOU B18","CH-SOLUT(TD)","BENBOUABDELLAH","B418","CH-SOLUT(TD) BENBOUABDELLAH B418"]
[null,"11h20                12h 50","INTRODUCTION RAFFI-PETROCHMIE© ","BOUFELLAH","AP5","INTRODUCTION RAFFI-PETROCHMIE©  BOUFELLAH AP5","INTRODUCTION RAFFI-PETROCHMIE© ","BOUFELLAH","AP5","INTRODUCTION RAFFI-PETROCHMIE©  BOUFELLAH AP5","INTRODUCTION RAFFI-PETROCHMIE© ","BOUFELLAH","AP5","INTRODUCTION RAFFI-PETROCHMIE©  BOUFELLAH AP5","INTRODUCTION RAFFI-PETROCHMIE© ","BOUFELLAH","AP5","INTRODUCTION RAFFI-PETROCHMIE©  BOUFELLAH AP5"]
[null,"13h 00              14h 30","CHIMIE ORGANIQUE© ","GHEMATI","AP3","CHIMIE ORGANIQUE©  GHEMATI AP3","CHIMIE ORGANIQUE© ","GHEMATI","AP3","CHIMIE ORGANIQUE©  GHEMATI AP3","CHIMIE ORGANIQUE© ","GHEMATI","AP3","CHIMIE ORGANIQUE©  GHEMATI AP3","CHIMIE ORGANIQUE© ","GHEMATI","AP3","CHIMIE ORGANIQUE©  GHEMATI AP3"]
[null,"14h 40              16h 10","TECHNIQUE D'EXPRESSSION ET DE COMMUNICATION© ","SOUAM","AP3","TECHNIQUE D'EXPRESSSION ET DE COMMUNICATION©  SOUAM AP3","TECHNIQUE D'EXPRESSSION ET DE COMMUNICATION© ","SOUAM","AP3","TECHNIQUE D'EXPRESSSION ET DE COMMUNICATION©  SOUAM AP3","TECHNIQUE D'EXPRESSSION ET DE COMMUNICATION© ","SOUAM","AP3","TECHNIQUE D'EXPRESSSION ET DE COMMUNICATION©  SOUAM AP3","TECHNIQUE D'EXPRESSSION ET DE COMMUNICATION© ","SOUAM","AP3","TECHNIQUE D'EXPRESSSION ET DE COMMUNICATION©  SOUAM AP3"]
[null,"16h 20              17h 50"]
["Mardi","8h 00                    9h 30"]
[null,"9h 40                 11h 10"]
[null,"11h20                12h 50"]
[null,"13h 00              14h 30"]
[null,"14h 40              16h 10"]
[null,"16h 20              17h 50"]
["Mercredi","8h 00                    9h 30","METHODES NUMERIQUE© ","ZIROUR","AP4","METHODES NUMERIQUE©  ZIROUR AP4","METHODES NUMERIQUE© ","ZIROUR","AP4","METHODES NUMERIQUE©  ZIROUR AP4","METHODES NUMERIQUE© ","ZIROUR","AP4","METHODES NUMERIQUE©  ZIROUR AP4","METHODES NUMERIQUE© ","ZIROUR","AP4","METHODES NUMERIQUE©  ZIROUR AP4"]
[null,"9h 40                 11h 10","METHO-NUM(TD)","ZIROUR","B310","METHO-NUM(TD) ZIROUR B310","CH-ORG(TP);CH-SOL(TP)","SMAILI-TA;LARID","B24;B13","CH-ORG(TP) SMAILI-TA B24\nCH-SOL(TP) LARID B13","THERMOD-CHIMIQUE(TD)","TRACHI","B39","THERMOD-CHIMIQUE(TD) TRACHI B39","METHO-NUM(TP)","HARFOUCHE","RC9/A","METHO-NUM(TP) HARFOUCHE RC9/A"]
[null,"11h20                12h 50","CH-SOLUTIONS(TD)","BENBOUABDELLAH","B418","CH-SOLUTIONS(TD) BENBOUABDELLAH B418","CH-ORG(TP);CH-SOL(TP)","SMAILI-TA;LARID","B24;B13","CH-ORG(TP) SMAILI-TA B24\nCH-SOL(TP) LARID B13","CH-SOLUTIONS(TD)","BENBOUABDELLAH","B418","CH-SOLUTIONS(TD) BENBOUABDELLAH B418"]
[null,"13h 00              14h 30","METHO-NUM(TP)","HARFOUCHE","RC9/B","METHO-NUM(TP) HARFOUCHE RC9/B","CH-SOLUTIONS(TD)","BENBOUABDELLAH","C49","CH-SOLUTIONS(TD) BENBOUABDELLAH C49","METHO-NUM(TD)","ZIROUR","B31","METHO-NUM(TD) ZIROUR B31","CINITIQUE-CHIMIQUE(TP)","ANNOU","B14","CINITIQUE-CHIMIQUE(TP) ANNOU B14"]
[null,"14h 40              16h 10",null,null,null,null,null,null,null,null,null,null,null,null,"CINITIQUE-CHIMIQUE(TP)","ANNOU","B14","CINITIQUE-CHIMIQUE(TP) ANNOU B14"]
[null,"16h 20              17h 50"]
["Jeudi","8h 00                     9h 30","THERMODYNAMIQUE CHIMIQUE© ","KHERIBET","AP4","THERMODYNAMIQUE CHIMIQUE©  KHERIBET AP4","THERMODYNAMIQUE CHIMIQUE© ","KHERIBET","AP4","THERMODYNAMIQUE CHIMIQUE©  KHERIBET AP4","THERMODYNAMIQUE CHIMIQUE© ","KHERIBET","AP4","THERMODYNAMIQUE CHIMIQUE©  KHERIBET AP4","THERMODYNAMIQUE CHIMIQUE© ","KHERIBET","AP4","THERMODYNAMIQUE CHIMIQUE©  KHERIBET AP4"]
[null,"9h 40                  11h 10","CINITIQUE-CHIMIQUE(TP)","OUADOU","C22","CINITIQUE-CHIMIQUE(TP) OUADOU C22","THERMOD-CHIMIQUE(TD)","KHERIBRT","B38","THERMOD-CHIMIQUE(TD) KHERIBRT B38","CH-ORG(TD)","HALIFATI","B412","CH-ORG(TD) HALIFATI B412","CHIMIE ORGANIQUE(TD)","GHEMATI","B311","CHIMIE ORGANIQUE(TD) GHEMATI B311"]
[null,"11h20                 12h 50","CINITIQUE-CHIMIQUE(TP)","OUADOU","C22","CINITIQUE-CHIMIQUE(TP) OUADOU C22","CH-ORG(TD)","GHEMATI","B39","CH-ORG(TD) GHEMATI B39",null,null,null,null,"MDF(TP)","AMITOUCHE","RC7","MDF(TP) AMITOUCHE RC7"]
[null,"13h 00              14h 30","CH-ORG(TD)","GHEMATI","B310","CH-ORG(TD) GHEMATI B310","MDF(TP)","AMITOUCHE","RC7","MDF(TP) AMITOUCHE RC7","METHO-NUM(TP)","HARFOUCHE","A27","METHO-NUM(TP) HARFOUCHE A27"]
[null,"14h 40              16h 10"]
[null,"16h 20              17h 50"]
["Samedi","8h 00                     9h 30","NOTION DES PHENOMENES DE TRANSFERT© ","SAHMOUNE","AP3","NOTION DES PHENOMENES DE TRANSFERT©  SAHMOUNE AP3","NOTION DES PHENOMENES DE TRANSFERT© ","SAHMOUNE","AP3","NOTION DES PHENOMENES DE TRANSFERT©  SAHMOUNE AP3","NOTION DES PHENOMENES DE TRANSFERT© ","SAHMOUNE","AP3","NOTION DES PHENOMENES DE TRANSFERT©  SAHMOUNE AP3","NOTION DES PHENOMENES DE TRANSFERT© ","SAHMOUNE","AP3","NOTION DES PHENOMENES DE TRANSFERT©  SAHMOUNE AP3"]
[null,"9h 40                  11h 10","CHIMIE DES SOLUTIONS© ","AISSAT","AP3","CHIMIE DES SOLUTIONS©  AISSAT AP3","CHIMIE DES SOLUTIONS© ","AISSAT","AP3","CHIMIE DES SOLUTIONS©  AISSAT AP3","CHIMIE DES SOLUTIONS© ","AISSAT","AP3","CHIMIE DES SOLUTIONS©  AISSAT AP3","CHIMIE DES SOLUTIONS© ","AISSAT","AP3","CHIMIE DES SOLUTIONS©  AISSAT AP3"]
[null,"11h20                 12h 50"]

{"sheet":"TC S33","index":20,"n_rows":36,"n_cols":18,"rows_kept":36,"cut":false,"hidden":false,"merged":[[27,0,32,0],[33,0,35,0],[0,0,0,1],[1,0,1,1],[3,0,8,0],[9,0,14,0],[15,0,20,0],[21,0,26,0]]}
["Departement:",null,null,null,null,"sc technologie"]
["Section:",null,null,null,null,"Licence 2ème année",null,null,null,null,null,null,null,{"$f":"NOW()","v":"2019-05-21T11:37:17.090"}]
["Jour","SEANCES","LGI-17/A","Enseignant","Salle","LGI-17/A","LGI-17/B","Enseignant","Salle","LGI-17/B",null,null,null,null,"ST14","Enseignant","Salle","ST14"]
["Dimanche","8h 00                     9h 30","GESTION-IND(TD)","OURARI","B47","GESTION-IND(TD) OURARI B47"]
[null,"9h 40                 11h 10","GESTION-IND©","OURARI","B47","GESTION-IND© OURARI B47","GESTION-IND©","OURARI","B47","GESTION-IND© OURARI B47"]
[null,"11h20                 12h 50","METHO-NUM(TP)","DJIDA","RC9/B","METHO-NUM(TP) DJIDA RC9/B","GESTION-IND(TD)","OURARI","B46","GESTION-IND(TD) OURARI B46"]
[null,"13h 00              14h 30","MANAG-PROJET©","GUERRACHE","A24","MANAG-PROJET© GUERRACHE A24","MANAG-PROJET©","GUERRACHE","A24","MANAG-PROJET© GUERRACHE A24"]
[null,"14h 40              16h 10","DROIT DE L'ENTREPRISE©","HASSAINE","A24","DROIT DE L'ENTREPRISE© HASSAINE A24","DROIT DE L'ENTREPRISE©","HASSAINE","A24","DROIT DE L'ENTREPRISE© HASSAINE A24"]
[null,"16h 20              17h 50"]
["Lundi","8h 00                    9h 30","ECONOMIE ENT©","HASSAINE","A16","ECONOMIE ENT© HASSAINE A16","ECONOMIE ENT©","HASSAINE","A16","ECONOMIE ENT© HASSAINE A16"]
[null,"9h 40                  11h 10","ELECTRONIQUE -FONDII(TP)","LARBANI","C315","ELECTRONIQUE -FONDII(TP) LARBANI C315"]
[null,"11h20                12h 50","ELECTRONIQUE -FONDII(TP)","LARBANI","C315","ELECTRONIQUE -FONDII(TP) LARBANI C315","METHO-NUM(TP)","DJIDA","RC9/B","METHO-NUM(TP) DJIDA RC9/B"]
[null,"13h 00              14h 30","GESTION-IND©","OURARI","B37","GESTION-IND© OURARI B37","GESTION-IND©","OURARI","B37","GESTION-IND© OURARI B37"]
[null,"14h 40              16h 10"]
[null,"16h 20              17h 50"]
["Mardi","8h 00                    9h 30"]
[null,"9h 40                 11h 10",null,null,null,null,"RECH-OPERA(TD)","SMAILI","A15","RECH-OPERA(TD) SMAILI A15"]
[null,"11h20                12h 50"]
[null,"13h 00              14h 30"]
[null,"14h 40              16h 10"]
[null,"16h 20              17h 50"]
["Mercredi","8h 00                    9h 30","RECH-OPERA©","SMAILI","B37","RECH-OPERA© SMAILI B37","RECH-OPERA©","SMAILI","B37","RECH-OPERA© SMAILI B37"]
[null,"9h 40                 11h 10","RECH-OPERA(TD)","SMAILI","B32","RECH-OPERA(TD) SMAILI B32","MANAG-PROJET(TD)","GUERRACHE","B49","MANAG-PROJET(TD) GUERRACHE B49"]
[null,"11h20                12h 50","MANAG-PROJET(TD)","GUERRACHE","B32","MANAG-PROJET(TD) GUERRACHE B32","TECHNIQUE D'EXPRESSION©","HAMADI","AP1","TECHNIQUE D'EXPRESSION© HAMADI AP1"]
[null,"13h 00              14h 30","TECHNIQUE D'EXPRESSION©","HAMADI","AP1","TECHNIQUE D'EXPRESSION© HAMADI AP1","ELECTRONIQUE -FONDII(TP)","LARBANI","C315","ELECTRONIQUE -FONDII(TP) LARBANI C315"]
[null,"14h 40              16h 10",null,null,null,null,"ELECTRONIQUE -FONDII(TP)","LARBANI","C315","ELECTRONIQUE -FONDII(TP) LARBANI C315"]
[null,"16h 20              17h 50"]
["Jeudi","8h 00                     9h 30","METHODES NUMERIQUES©","ADICHE","AP1","METHODES NUMERIQUES© ADICHE AP1","METHODES NUMERIQUES©","ADICHE","AP1","METHODES NUMERIQUES© ADICHE AP1"]
[null,"9h 40                  11h 10"]
[null,"11h20                 12h 50","METH-NUM(TD)","AZZAL","B416","METH-NUM(TD) AZZAL B416","METH-NUM(TD)","AZZAL","B416","METH-NUM(TD) AZZAL B416"]
[null,"13h 00              14h 30"]
[null,"14h 40              16h 10"]
[null,"16h 20              17h 50"]
["Samedi","8h 00                     9h 30","LOGIQUE COMBINATOIRE ET SEQUENTIELLE©","TSBIA","AP2","LOGIQUE COMBINATOIRE ET SEQUENTIELLE© TSBIA AP2","LOGIQUE COMBINATOIRE ET SEQUENTIELLE©","TSBIA","AP2","LOGIQUE COMBINATOIRE ET SEQUENTIELLE© TSBIA AP2"]
[null,"9h 40                  11h 10","RECH-OPERA(TP)","CHEBBOUBA","B210","RECH-OPERA(TP) CHEBBOUBA B210","LOGIQUE-COMB-SEQ(TD)","GHEZAL","A16","LOGIQUE-COMB-SEQ(TD) GHEZAL A16"]
[null,"11h20                 12h 50","LOGIQUE-COMB-SEQ(TD)","GHEZAL","A16","LOGIQUE-COMB-SEQ(TD) GHEZAL A16","RECH-OPERA(TP)","CHEBBOUBA","B210","RECH-OPERA(TP) CHEBBOUBA B210"]

{"sheet":"TC S36","index":21,"n_rows":36,"n_cols":22,"rows_kept":36,"cut":false,"hidden":false,"merged":[[27,0,32,0],[33,0,35,0],[0,0,0,1],[1,0,1,1],[3,0,8,0],[9,0,14,0],[15,0,20,0],[21,0,26,0]]}
["Filière:",null,null,null,null,"ELECTROMECANIQUE",null,null,null,"G INDUSTRIELLE"]
["Section:",null,null,null,null,"Licence 2ème année",null,null,null,null,null,null,null,null,null,null,null,{"$f":"NOW()","v":"2019-05-21T11:37:17.090"}]
["Jour","SEANCES","LEMEC-17/A","Enseignant","Salle","LEMEC-17/A","LEMEC-17/B","Enseignant","Salle","LEMEC-17/B","LEMEC-17/C","Enseignant","Salle","LEMEC-17/C","LEMEC-17/D","Enseignant","Salle","LEMEC-17/D","X","Enseignant","Salle","X"]
["Dimanche","8h 00                     9h 30","LOGIQUE-COMB-SEQ(TD)","TOUZOUT","A16","LOGIQUE-COMB-SEQ(TD) TOUZOUT A16"]
[null,"9h 40                 11h 10","HYDRAULIQUE ET PNEUMATIQUE©","BAHLOUL","AP2","HYDRAULIQUE ET PNEUMATIQUE© BAHLOUL AP2","HYDRAULIQUE ET PNEUMATIQUE©","BAHLOUL","AP2","HYDRAULIQUE ET PNEUMATIQUE© BAHLOUL AP2","HYDRAULIQUE ET PNEUMATIQUE©","BAHLOUL","AP2","HYDRAULIQUE ET PNEUMATIQUE© BAHLOUL AP2","HYDRAULIQUE ET PNEUMATIQUE©","BAHLOUL","AP2","HYDRAULIQUE ET PNEUMATIQUE© BAHLOUL AP2"]
[null,"11h20                 12h 50","SYST-CONVERSION DE L'ENERGIE©","BAHLOUL","AP2","SYST-CONVERSION DE L'ENERGIE© BAHLOUL AP2","SYST-CONVERSION DE L'ENERGIE©","BAHLOUL","AP2","SYST-CONVERSION DE L'ENERGIE© BAHLOUL AP2","SYST-CONVERSION DE L'ENERGIE©","BAHLOUL","AP2","SYST-CONVERSION DE L'ENERGIE© BAHLOUL AP2","SYST-CONVERSION DE L'ENERGIE©","BAHLOUL","AP2","SYST-CONVERSION DE L'ENERGIE© BAHLOUL AP2"]
[null,"13h 00              14h 30","HYDR ET PNEUM(TD)","BAHLOUL","B313","HYDR ET PNEUM(TD) BAHLOUL B313",null,null,null,null,"LOGIQUE-COMB-SEQ(TD)","TOUZOUT","A12","LOGIQUE-COMB-SEQ(TD) TOUZOUT A12"]
[null,"14h 40              16h 10",null,null,null,null,"HYDRAULIQUE ET PNEUMATIQUE(TD)","BAHLOUL","A12","HYDRAULIQUE ET PNEUMATIQUE(TD) BAHLOUL A12"]
[null,"16h 20              17h 50"]
["Lundi","8h 00                    9h 30","RESISTANCES DES MATERIAUX©","AGUIB","AP6","RESISTANCES DES MATERIAUX© AGUIB AP6","RESISTANCES DES MATERIAUX©","AGUIB","AP6","RESISTANCES DES MATERIAUX© AGUIB AP6","RESISTANCES DES MATERIAUX©","AGUIB","AP6","RESISTANCES DES MATERIAUX© AGUIB AP6","RESISTANCES DES MATERIAUX©","AGUIB","AP6","RESISTANCES DES MATERIAUX© AGUIB AP6"]
[null,"9h 40                  11h 10","LOGIQUE-COMB-SEQ(TP)","AMARBOUZIDE","AT11","LOGIQUE-COMB-SEQ(TP) AMARBOUZIDE AT11","LOGIQUE-COMB-SEQ(TD)","AFIA","A14","LOGIQUE-COMB-SEQ(TD) AFIA A14","METH-NUM(TD)","AZZAL","A11","METH-NUM(TD) AZZAL A11","R-D-M(TD)","AGUIB","C32","R-D-M(TD) AGUIB C32"]
[null,"11h20                12h 50",null,null,null,null,"METH-NUM(TD)","AZZAL","B310","METH-NUM(TD) AZZAL B310",null,null,null,null,"LOGIQUE-COMB-SEQ(TD)","AFIA","A21","LOGIQUE-COMB-SEQ(TD) AFIA A21"]
[null,"13h 00              14h 30","METH-NUM(TD)","AZZAL","B414","METH-NUM(TD) AZZAL B414","HYDRAULIQUE ET PNEUMATIQUE(TP)","TABLIT","AT15","HYDRAULIQUE ET PNEUMATIQUE(TP) TABLIT AT15","R-D-M(TD)","AGUIB","B35","R-D-M(TD) AGUIB B35","LOGIQUE-COMB-SEQ(TP)","AMARBOUZIDE","AT11","LOGIQUE-COMB-SEQ(TP) AMARBOUZIDE AT11"]
[null,"14h 40              16h 10",null,null,null,null,null,null,null,null,"HYDRAULIQUE ET PNEUMATIQUE(TP)","TABLIT","AT15","HYDRAULIQUE ET PNEUMATIQUE(TP) TABLIT AT15"]
[null,"16h 20              17h 50"]
["Mardi","8h 00                    9h 30"]
[null,"9h 40                 11h 10",null,null,null,null,"R-D-M(TD)","AGUIB","C49","R-D-M(TD) AGUIB C49"]
[null,"11h20                12h 50"]
[null,"13h 00              14h 30"]
[null,"14h 40              16h 10","R-D-M(TD)","AGUIB","A13","R-D-M(TD) AGUIB A13"]
[null,"16h 20              17h 50"]
["Mercredi","8h 00                    9h 30","HYDRAULIQUE ET PNEUMATIQUE©","BAHLOUL","AP2","HYDRAULIQUE ET PNEUMATIQUE© BAHLOUL AP2","HYDRAULIQUE ET PNEUMATIQUE©","BAHLOUL","AP2","HYDRAULIQUE ET PNEUMATIQUE© BAHLOUL AP2","HYDRAULIQUE ET PNEUMATIQUE©","BAHLOUL","AP2","HYDRAULIQUE ET PNEUMATIQUE© BAHLOUL AP2","HYDRAULIQUE ET PNEUMATIQUE©","BAHLOUL","AP2","HYDRAULIQUE ET PNEUMATIQUE© BAHLOUL AP2"]
[null,"9h 40                 11h 10","NOTIONS DE MESURES ELECTRIQUES ET ELECTRONIQUE©","TESBIA","AP2","NOTIONS DE MESURES ELECTRIQUES ET ELECTRONIQUE© TESBIA AP2","NOTIONS DE MESURES ELECTRIQUES ET ELECTRONIQUE©","TESBIA","AP2","NOTIONS DE MESURES ELECTRIQUES ET ELECTRONIQUE© TESBIA AP2","NOTIONS DE MESURES ELECTRIQUES ET ELECTRONIQUE©","TESBIA","AP2","NOTIONS DE MESURES ELECTRIQUES ET ELECTRONIQUE© TESBIA AP2","NOTIONS DE MESURES ELECTRIQUES ET ELECTRONIQUE©","TESBIA","AP2","NOTIONS DE MESURES ELECTRIQUES ET ELECTRONIQUE© TESBIA AP2"]
[null,"11h20                12h 50","MESURE ELECTRIQUE(TP)","TESBIA","AT11","MESURE ELECTRIQUE(TP) TESBIA AT11","TECHNIQUE D'EXPRESSION©","HAMADI","AP1","TECHNIQUE D'EXPRESSION© HAMADI AP1","LOGIQUE-COMB-SEQ(TP)","ANGAR","AT12","LOGIQUE-COMB-SEQ(TP) ANGAR AT12","HYDRAULIQUE ET PNEUMATIQUE(TD)","BAHLOUL","B312","HYDRAULIQUE ET PNEUMATIQUE(TD) BAHLOUL B312"]
[null,"13h 00              14h 30","TECHNIQUE D'EXPRESSION©","HAMADI","AP1","TECHNIQUE D'EXPRESSION© HAMADI AP1","MESURE ELECTRIQUE(TP)","TESBIA","AT11","MESURE ELECTRIQUE(TP) TESBIA AT11","HYDRAULIQUE ET PNEUMATIQUE(TD)","BAHLOUL","B313","HYDRAULIQUE ET PNEUMATIQUE(TD) BAHLOUL B313","TECHNIQUE D'EXPRESSION©","HAMADI","AP1","TECHNIQUE D'EXPRESSION© HAMADI AP1"]
[null,"14h 40              16h 10",null,null,null,null,"LOGIQUE-COMB-SEQ(TP)","ANGAR","AT11","LOGIQUE-COMB-SEQ(TP) ANGAR AT11","TECHNIQUE D'EXPRESSION©","HAMADI","AP1","TECHNIQUE D'EXPRESSION© HAMADI AP1"]
[null,"16h 20              17h 50"]
["Jeudi","8h 00                     9h 30","METHODES NUMERIQUES©","ADICHE","AP1","METHODES NUMERIQUES© ADICHE AP1","METHODES NUMERIQUES©","ADICHE","AP1","METHODES NUMERIQUES© ADICHE AP1","METHODES NUMERIQUES©","ADICHE","AP1","METHODES NUMERIQUES© ADICHE AP1","METHODES NUMERIQUES©","ADICHE","AP1","METHODES NUMERIQUES© ADICHE AP1"]
[null,"9h 40                  11h 10",null,null,null,null,null,null,null,null,null,null,null,null,"METH-NUM(TP)","AZZAL","B210","METH-NUM(TP) AZZAL B210"]
[null,"11h20                 12h 50"]
[null,"13h 00              14h 30",null,null,null,null,null,null,null,null,null,null,null,null,"METH-NUM(TD)","AZZAL","B415","METH-NUM(TD) AZZAL B415"]
[null,"14h 40              16h 10"]
[null,"16h 20              17h 50"]
["Samedi","8h 00                     9h 30","LOGIQUE COMBINATOIRE ET SEQUENTIELLE©","TESBIA","AP2","LOGIQUE COMBINATOIRE ET SEQUENTIELLE© TESBIA AP2","LOGIQUE COMBINATOIRE ET SEQUENTIELLE©","TESBIA","AP2","LOGIQUE COMBINATOIRE ET SEQUENTIELLE© TESBIA AP2","LOGIQUE COMBINATOIRE ET SEQUENTIELLE©","TESBIA","AP2","LOGIQUE COMBINATOIRE ET SEQUENTIELLE© TESBIA AP2","LOGIQUE COMBINATOIRE ET SEQUENTIELLE©","TESBIA","AP2","LOGIQUE COMBINATOIRE ET SEQUENTIELLE© TESBIA AP2"]
[null,"9h 40                  11h 10","HYDRAULIQUE ET PNEUMATIQUE(TP)","BENSNOUSSI","AT15","HYDRAULIQUE ET PNEUMATIQUE(TP) BENSNOUSSI AT15","METH-NUM(TP)","AGGAD","A26","METH-NUM(TP) AGGAD A26","METH-NUM(TP)","DJIDA","A27","METH-NUM(TP) DJIDA A27","MESURE ELECTRIQUE(TP)","TESBIA","AT11","MESURE ELECTRIQUE(TP) TESBIA AT11"]
[null,"11h20                 12h 50","METH-NUM(TP)","AGGAD","RC9/A","METH-NUM(TP) AGGAD RC9/A",null,null,null,null,"MESURE ELECTRIQUE(TP)","TESBIA","AT11","MESURE ELECTRIQUE(TP) TESBIA AT11","HYDRAULIQUE ET PNEUMATIQUE(TP)","BENSNOUSSI","AT15","HYDRAULIQUE ET PNEUMATIQUE(TP) BENSNOUSSI AT15"]

{"sheet":"TC S38","index":22,"n_rows":36,"n_cols":18,"rows_kept":36,"cut":false,"hidden":false,"merged":[[27,0,32,0],[33,0,35,0],[0,0,0,1],[1,0,1,1],[3,0,8,0],[9,0,14,0],[15,0,20,0],[21,0,26,0]]}
["Filière:",null,null,null,null,"G.Mécanique"]
["Section:",null,null,null,null,"Licence 2ème année",null,null,null,null,null,null,null,null,null,null,null,{"$f":"NOW()","v":"2019-05-21T11:37:17.090"}]
["Jour","SEANCES","LGM-17/1","Enseignant","Salle","LGM-17/1","LGM-17/2","Enseignant","Salle","LGM-17/2","LGM-17/3","Enseignant","Salle","LGM-17/3","LGM-17/4","Enseignant","Salle","LGM-17/4"]
["Dimanche","8h 00                     9h 30","MATH4©","MESSAOUDI-H","AP4","MATH4© MESSAOUDI-H AP4","MATH4©","MESSAOUDI-H","AP4","MATH4© MESSAOUDI-H AP4","MATH4©","MESSAOUDI-H","AP4","MATH4© MESSAOUDI-H AP4","MATH4©","MESSAOUDI-H","AP4","MATH4© MESSAOUDI-H AP4"]
[null,"9h 40                 11h 10","S-D-M©","TOURAB","AP5","S-D-M© TOURAB AP5","S-D-M©","TOURAB","AP5","S-D-M© TOURAB AP5","S-D-M©","TOURAB","AP5","S-D-M© TOURAB AP5","S-D-M©","TOURAB","AP5","S-D-M© TOURAB AP5"]
[null,"11h20                 12h 50",null,null,null,null,"MATH4(TD)","MESSAOUDI-H","B311","MATH4(TD) MESSAOUDI-H B311","METHO NUM(TP)","RACHEDI","AB12","METHO NUM(TP) RACHEDI AB12","METHO NUM(TP)","GUEMMADI","A27","METHO NUM(TP) GUEMMADI A27"]
[null,"13h 00              14h 30","MATH4(TD)","MESSAOUDI-H","B311","MATH4(TD) MESSAOUDI-H B311","R-D-M(TP)","BELHADEF","AT13","R-D-M(TP) BELHADEF AT13","THERMODYNAMIQUE(TD)","DAHMANI","B38","THERMODYNAMIQUE(TD) DAHMANI B38"]
[null,"14h 40              16h 10","METHO NUM(TD)","GUEMMADI","B311","METHO NUM(TD) GUEMMADI B311","R-D-M(TP)","BELHADEF","AT13","R-D-M(TP) BELHADEF AT13","ELECTRICITE INDUST©","TOUZOUT","AP4","ELECTRICITE INDUST© TOUZOUT AP4","ELECTRICITE INDUST©","TOUZOUT","AP4","ELECTRICITE INDUST© TOUZOUT AP4"]
[null,"16h 20              17h 50"]
["Lundi","8h 00                    9h 30","FABRICATION MEC©","HALFAOUI","AP2","FABRICATION MEC© HALFAOUI AP2","FABRICATION MEC©","HALFAOUI","AP2","FABRICATION MEC© HALFAOUI AP2","FABRICATION MEC©","HALFAOUI","AP2","FABRICATION MEC© HALFAOUI AP2","FABRICATION MEC©","HALFAOUI","AP2","FABRICATION MEC© HALFAOUI AP2"]
[null,"9h 40                  11h 10","THERMODYNAMIQUEII©","BOUSHAKI","AP4","THERMODYNAMIQUEII© BOUSHAKI AP4","THERMODYNAMIQUEII©","BOUSHAKI","AP4","THERMODYNAMIQUEII© BOUSHAKI AP4","THERMODYNAMIQUEII©","BOUSHAKI","AP4","THERMODYNAMIQUEII© BOUSHAKI AP4","THERMODYNAMIQUEII©","BOUSHAKI","AP4","THERMODYNAMIQUEII© BOUSHAKI AP4"]
[null,"11h20                12h 50",null,null,null,null,"METHO NUM(TP)","RACHEDI","B210","METHO NUM(TP) RACHEDI B210",null,null,null,null,"MATH4(TD)","MESSAOUDI-H","B31","MATH4(TD) MESSAOUDI-H B31"]
[null,"13h 00              14h 30","METHO NUM(TP)","GUEMMADI","RC9/A","METHO NUM(TP) GUEMMADI RC9/A","M-D-F(TP)","AITCHIKH","RC7","M-D-F(TP) AITCHIKH RC7","MATH4(TD)","MESSAOUDI-H","B31","MATH4(TD) MESSAOUDI-H B31","DAO(TP);RDM(TP)","SEMMOUD;BELHADEF","RC9/B;AT13","DAO(TP) SEMMOUD RC9/B\nRDM(TP) BELHADEF AT13"]
[null,"14h 40              16h 10","M-D-F(TP)","AITCHIKH","RC7","M-D-F(TP) AITCHIKH RC7","METHO NUM(TD)","GUEMMADI","A25","METHO NUM(TD) GUEMMADI A25",null,null,null,null,"DAO(TP);RDM(TP)","SEMMOUD;BELHADEF","RC9/B;AT13","DAO(TP) SEMMOUD RC9/B\nRDM(TP) BELHADEF AT13"]
[null,"16h 20              17h 50"]
["Mardi","8h 00                    9h 30"]
[null,"9h 40                 11h 10"]
[null,"11h20                12h 50",null,null,null,null,"DAO(TP)","CHALLALI","RC9/A","DAO(TP) CHALLALI RC9/A"]
[null,"13h 00              14h 30",null,null,null,null,"DAO(TP)","CHALLALI","RC9/A","DAO(TP) CHALLALI RC9/A"]
[null,"14h 40              16h 10"]
[null,"16h 20              17h 50"]
["Mercredi","8h 00                    9h 30","METHO NUM©","NADIR","AP5","METHO NUM© NADIR AP5","METHO NUM©","NADIR","AP5","METHO NUM© NADIR AP5","METHO NUM©","NADIR","AP5","METHO NUM© NADIR AP5","METHO NUM©","NADIR","AP5","METHO NUM© NADIR AP5"]
[null,"9h 40                 11h 10","THERMODYNAMIQUE(TD)","BOUSHAKI","C45","THERMODYNAMIQUE(TD) BOUSHAKI C45","R-D-M(TD)","BENSAFIA","C412","R-D-M(TD) BENSAFIA C412","DAO(TP);RDM(TP)","SEMMOUD;AITSAADA","B210;AT13","DAO(TP) SEMMOUD B210\nRDM(TP) AITSAADA AT13"]
[null,"11h20                12h 50","R-M-D(TD)","BENSAFIA","C45","R-M-D(TD) BENSAFIA C45",null,null,null,null,"DAO(TP);RDM(TP)","SEMMOUD;AITSAADA","B210;AT13","DAO(TP) SEMMOUD B210\nRDM(TP) AITSAADA AT13","THERMODYNAMIQUE(TD)","BOUSHAKI","B31","THERMODYNAMIQUE(TD) BOUSHAKI B31"]
[null,"13h 00              14h 30",null,null,null,null,"THERMODYNAMIQUE(TD)","BOUSHAKI","C43","THERMODYNAMIQUE(TD) BOUSHAKI C43","TECH D'EXPRESSION©","HAMADI","AP1","TECH D'EXPRESSION© HAMADI AP1","METHO NUM(TD)","NADIR","B32","METHO NUM(TD) NADIR B32"]
[null,"14h 40              16h 10","TECH D'EXPRESSION©","HAMADI","AP1","TECH D'EXPRESSION© HAMADI AP1","TECH D'EXPRESSION©","HAMADI","AP1","TECH D'EXPRESSION© HAMADI AP1","METHO NUM(TD)","NADIR","B32","METHO NUM(TD) NADIR B32","TECH D'EXPRESSION©","HAMADI","AP1","TECH D'EXPRESSION© HAMADI AP1"]
[null,"16h 20              17h 50"]
["Jeudi","8h 00                     9h 30","FAB-MEC(TP)","CHALLA+BELLAL+BOUZIANE","ATFM","FAB-MEC(TP) CHALLA+BELLAL+BOUZIANE ATFM","FAB-MEC(TP)","CHALLA+BELLAL+BOUZIANE","ATFM","FAB-MEC(TP) CHALLA+BELLAL+BOUZIANE ATFM","RDM(TD)","BENSAFIA","A11","RDM(TD) BENSAFIA A11"]
[null,"9h 40                  11h 10","FAB-MEC(TP)","CHALLA+BELLAL+BOUZIANE","ATFM","FAB-MEC(TP) CHALLA+BELLAL+BOUZIANE ATFM","FAB-MEC(TP)","CHALLA+BELLAL+BOUZIANE","ATFM","FAB-MEC(TP) CHALLA+BELLAL+BOUZIANE ATFM","MDF(TP)","AITCHIKH","RC7","MDF(TP) AITCHIKH RC7","RDM(TD)","BENSAFIA","A11","RDM(TD) BENSAFIA A11"]
[null,"11h20                 12h 50"]
[null,"13h 00              14h 30","DAO(TP);R-D-M(TP)","CHALLALI;SIGUERDJIDJENE","RC9/B;AT13","DAO(TP) CHALLALI RC9/B\nR-D-M(TP) SIGUERDJIDJENE AT13",null,null,null,null,"FAB MEC(TP)","CHALLA+BELLAL+BOUZIANE","ATFM","FAB MEC(TP) CHALLA+BELLAL+BOUZIANE ATFM","FAB-MEC(TP)","CHALLA+BELLAL+BOUZIANE","ATFM","FAB-MEC(TP) CHALLA+BELLAL+BOUZIANE ATFM"]
[null,"14h 40              16h 10","DAO(TP);R-D-M(TP)","CHALLALI;SIGUERDJIDJENE","RC9/B;AT13","DAO(TP) CHALLALI RC9/B\nR-D-M(TP) SIGUERDJIDJENE AT13",null,null,null,null,"FAB MEC(TP)","CHALLA+BELLAL+BOUZIANE","ATFM","FAB MEC(TP) CHALLA+BELLAL+BOUZIANE ATFM","FAB-MEC(TP)","CHALLA+BELLAL+BOUZIANE","ATFM","FAB-MEC(TP) CHALLA+BELLAL+BOUZIANE ATFM"]
[null,"16h 20              17h 50"]
["Samedi","8h 00                     9h 30","R-DM©","BENSAFIA","AP5","R-DM© BENSAFIA AP5","R-DM©","BENSAFIA","AP5","R-DM© BENSAFIA AP5","R-DM©","BENSAFIA","AP5","R-DM© BENSAFIA AP5","R-DM©","BENSAFIA","AP5","R-DM© BENSAFIA AP5"]
[null,"9h 40                  11h 10"]
[null,"11h20                 12h 50","ELECTRICITE INDUST©","TOUZOUT","AP5","ELECTRICITE INDUST© TOUZOUT AP5","ELECTRICITE INDUST©","TOUZOUT","AP5","ELECTRICITE INDUST© TOUZOUT AP5",null,null,null,null,"MDF(TP)","AITCHIKH","RC7","MDF(TP) AITCHIKH RC7"]

{"sheet":"TC S310","index":23,"n_rows":36,"n_cols":17,"rows_kept":36,"cut":false,"hidden":false,"merged":[[27,0,32,0],[33,0,35,0],[0,0,0,1],[1,0,1,1],[3,0,8,0],[9,0,14,0],[15,0,20,0],[21,0,26,0]]}
["Filière:",null,null,null,null,"G.Mécanique",null,null,null,null,null,null,null,{"$f":"TODAY()","v":"2019-05-21"}]
["Section:",null,null,null,null,"Licence 2ème année",null,null,null,{"$f":"NOW()","v":"2019-05-21T11:37:17.090"}]
["Jour","SEANCES","LGM-17/5","Enseignant","Salle","LGM-17/5","LGM-17/10","Enseignant","Salle","LGM-17/10","LGM-15/","Enseignant","Salle","LGM-15/","ST32","Enseignant","Salle"]
["Dimanche","8h 00                     9h 30","DAO(TP)","RAHMAOUI","RC9/B","DAO(TP) RAHMAOUI RC9/B","MATH4©","MESSAOUDI-H","AP4","MATH4© MESSAOUDI-H AP4"]
[null,"9h 40                 11h 10","DAO(TP)","RAHMAOUI","RC9/B","DAO(TP) RAHMAOUI RC9/B","S-D-M©","TOURAB","AP5","S-D-M© TOURAB AP5"]
[null,"11h20                 12h 50","THERMODYNAMIQUEII©","BOUARAB","AP4","THERMODYNAMIQUEII© BOUARAB AP4"]
[null,"13h 00              14h 30","SDM©","TOURAB","AP5","SDM© TOURAB AP5","METHO NUM(TD)","GUEMMADI","B31","METHO NUM(TD) GUEMMADI B31"]
[null,"14h 40              16h 10","ELECTRICITE INDUST©","TOUZOUT","AP4","ELECTRICITE INDUST© TOUZOUT AP4","ELECTRICITE INDUST©","TOUZOUT","AP4","ELECTRICITE INDUST© TOUZOUT AP4"]
[null,"16h 20              17h 50"]
["Lundi","8h 00                    9h 30","RDM(TP)","BELHADEF","AT13","RDM(TP) BELHADEF AT13","FABRICATION MEC©","HALFAOUI","AP2","FABRICATION MEC© HALFAOUI AP2"]
[null,"9h 40                  11h 10","RDM(TP)","BELHADEF","AT13","RDM(TP) BELHADEF AT13","THERMODYNAMIQUE©","BOUSHAKI","AP4","THERMODYNAMIQUE© BOUSHAKI AP4"]
[null,"11h20                12h 50","TECH D'EXPRESSION©","HAMADI","B32","TECH D'EXPRESSION© HAMADI B32","METHO NUM(TP)","GUEMMADI","RC9/A","METHO NUM(TP) GUEMMADI RC9/A"]
[null,"13h 00              14h 30","THERMODY(TD)","BOUARAB","B44","THERMODY(TD) BOUARAB B44","MATH4(TD)","BOUHDJAR","B31","MATH4(TD) BOUHDJAR B31"]
[null,"14h 40              16h 10","METH-NUM(TD)","DJOUAD","B44","METH-NUM(TD) DJOUAD B44"]
[null,"16h 20              17h 50"]
["Mardi","8h 00                    9h 30"]
[null,"9h 40                 11h 10"]
[null,"11h20                12h 50"]
[null,"13h 00              14h 30"]
[null,"14h 40              16h 10"]
[null,"16h 20              17h 50"]
["Mercredi","8h 00                    9h 30","METHO-NUM©","DJOUAD","AP6","METHO-NUM© DJOUAD AP6","METHO NUM©","NADIR","AP5","METHO NUM© NADIR AP5"]
[null,"9h 40                 11h 10","FAB-MEC©","TALHI","AP6","FAB-MEC© TALHI AP6","M-D-F(TP)","KEBABSA","RC7","M-D-F(TP) KEBABSA RC7"]
[null,"11h20                12h 50","MDF(TP)","KEBABSA","RC7","MDF(TP) KEBABSA RC7","TECH D'EXPRESSION©","HAMADI","AP1","TECH D'EXPRESSION© HAMADI AP1"]
[null,null,"FAB-MEC(TP)","BELLAL+CHALLA+BOUZIANE","ATFM","FAB-MEC(TP) BELLAL+CHALLA+BOUZIANE ATFM","FAB-MEC(TP)","BELLAL+CHALLA+BOUZIANE","ATFM","FAB-MEC(TP) BELLAL+CHALLA+BOUZIANE ATFM"]
[null,"14h 40              16h 10","FAB-MEC(TP)","BELLAL+CHALLA+BOUZIANE","ATFM","FAB-MEC(TP) BELLAL+CHALLA+BOUZIANE ATFM","FAB-MEC(TP)","BELLAL+CHALLA+BOUZIANE","ATFM","FAB-MEC(TP) BELLAL+CHALLA+BOUZIANE ATFM"]
[null,"16h 20              17h 50"]
["Jeudi","8h 00                     9h 30","RDM(TD)","HEDEILI-N","B48","RDM(TD) HEDEILI-N B48","R-D-M(TP)","SIGUERDJIDJENE","AT13","R-D-M(TP) SIGUERDJIDJENE AT13"]
[null,"9h 40                  11h 10","MATH4©","KHALFAOUI","AP6","MATH4© KHALFAOUI AP6","R-D-M(TP)","SIGUERDJIDJENE","AT13","R-D-M(TP) SIGUERDJIDJENE AT13"]
[null,"11h20                 12h 50","RDM©","HEDEILI-N","AP6","RDM© HEDEILI-N AP6","THERMODYNAMIQUE(TD)","DAHMANI","A25","THERMODYNAMIQUE(TD) DAHMANI A25"]
[null,"13h 00              14h 30",null,null,null,null,"DAO(TP)","MAIZA","RC9/A","DAO(TP) MAIZA RC9/A"]
[null,"14h 40              16h 10",null,null,null,null,"DAO(TP)","MAIZA","RC9/A","DAO(TP) MAIZA RC9/A"]
[null,"16h 20              17h 50"]
["Samedi","8h 00                     9h 30","METHO-NUM(TP)","DJIDA","B210","METHO-NUM(TP) DJIDA B210","R-DM©","BENSAFIA","AP5","R-DM© BENSAFIA AP5"]
[null,"9h 40                  11h 10","MATH4(TD)","KHALFAOUI","B31","MATH4(TD) KHALFAOUI B31","RDM(TD)","BENSAFIA","C32","RDM(TD) BENSAFIA C32"]
[null,"11h20                 12h 50"]

{"sheet":"TC S39","index":24,"n_rows":36,"n_cols":18,"rows_kept":36,"cut":false,"hidden":false,"merged":[[27,0,32,0],[33,0,35,0],[0,0,0,1],[1,0,1,1],[3,0,8,0],[9,0,14,0],[15,0,20,0],[21,0,26,0]]}
["Filière:",null,null,null,null,"G.Mécanique",null,null,null,null,null,null,null,{"$f":"TODAY()","v":"2019-05-21"}]
["Section:",null,null,null,null,"Licence 2ème année"]
["Jour","SEANCES","LGM-17/6","Enseignant","Salle","LGM-17/6","LGM-17/7","Enseignant","Salle","LGM-17/7","LGM-17/8","Enseignant","Salle","LGM-17/8","LGM-17/9","Enseignant","Salle","LGM-17/9"]
["Dimanche","8h 00                     9h 30","METHO-NUM(TP)","RACHEDI","A27","METHO-NUM(TP) RACHEDI A27","RDM(TD)","HEDEILI-N","A25","RDM(TD) HEDEILI-N A25",null,null,null,null,"RDM(TP)","BELHADEF","AT13","RDM(TP) BELHADEF AT13"]
[null,"9h 40                 11h 10","RDM(TD)","HEDEILI-N","A25","RDM(TD) HEDEILI-N A25","METHO-NUM(TP)","RACHEDI","A27","METHO-NUM(TP) RACHEDI A27","THERMODY(TD)","BOUARAB","B413","THERMODY(TD) BOUARAB B413","RDM(TP)","BELHADEF","AT13","RDM(TP) BELHADEF AT13"]
[null,"11h20                 12h 50","THERMODYNAMIQUEII©","BOUARAB","AP4","THERMODYNAMIQUEII© BOUARAB AP4","THERMODYNAMIQUEII©","BOUARAB","AP4","THERMODYNAMIQUEII© BOUARAB AP4","THERMODYNAMIQUEII©","BOUARAB","AP4","THERMODYNAMIQUEII© BOUARAB AP4","THERMODYNAMIQUEII©","BOUARAB","AP4","THERMODYNAMIQUEII© BOUARAB AP4"]
[null,"13h 00              14h 30","SDM©","TOURAB","AP5","SDM© TOURAB AP5","SDM©","TOURAB","AP5","SDM© TOURAB AP5","SDM©","TOURAB","AP5","SDM© TOURAB AP5","SDM©","TOURAB","AP5","SDM© TOURAB AP5"]
[null,"14h 40              16h 10","ELECTRICITE INDUST©","TOUZOUT","AP4","ELECTRICITE INDUST© TOUZOUT AP4","ELECTRICITE INDUST©","TOUZOUT","AP4","ELECTRICITE INDUST© TOUZOUT AP4","ELECTRICITE INDUST©","TOUZOUT","AP4","ELECTRICITE INDUST© TOUZOUT AP4","THERMODY(TD)","BOUARAB","C42","THERMODY(TD) BOUARAB C42"]
[null,"16h 20              17h 50"]
["Lundi","8h 00                    9h 30","FAB-MEC(TP)","TOURAB+TALHI+FERHAT","ATFM","FAB-MEC(TP) TOURAB+TALHI+FERHAT ATFM","FAB-MEC(TP)","TOURAB+TALHI+FERHAT","ATFM","FAB-MEC(TP) TOURAB+TALHI+FERHAT ATFM","METHO-NUM(TP)","RACHEDI","A26","METHO-NUM(TP) RACHEDI A26","MDF(TP)","KHALDI","RC7","MDF(TP) KHALDI RC7"]
[null,"9h 40                  11h 10","FAB-MEC(TP)","TOURAB+TALHI+FERHAT","ATFM","FAB-MEC(TP) TOURAB+TALHI+FERHAT ATFM","FAB-MEC(TP)","TOURAB+TALHI+FERHAT","ATFM","FAB-MEC(TP) TOURAB+TALHI+FERHAT ATFM","MDF(TP)","KHALDI","RC7","MDF(TP) KHALDI RC7","METHO-NUM(TP)","RACHEDI","A26","METHO-NUM(TP) RACHEDI A26"]
[null,"11h20                12h 50",null,null,null,null,null,null,null,null,null,null,null,null,"METH-NUM(TD)","DJOUAD","A11","METH-NUM(TD) DJOUAD A11"]
[null,"13h 00              14h 30","METH-NUM(TD)","DJOUAD","A13","METH-NUM(TD) DJOUAD A13","THERMODY(TD)","BOUARAB","B44","THERMODY(TD) BOUARAB B44","[SI]FAB-MEC(TP)","TOURAB+TALHI+FERHAT","ATFM","[SI]FAB-MEC(TP) TOURAB+TALHI+FERHAT ATFM","[SP]FAB-MEC(TP)","TOURAB+TALHI+FERHAT","ATFM","[SP]FAB-MEC(TP) TOURAB+TALHI+FERHAT ATFM"]
[null,"14h 40              16h 10","THERMODY(TD)","BOUARAB","A13","THERMODY(TD) BOUARAB A13",null,null,null,null,"[SI]FAB-MEC(TP)","TOURAB+TALHI+FERHAT","ATFM","[SI]FAB-MEC(TP) TOURAB+TALHI+FERHAT ATFM","[SP]FAB-MEC(TP)","TOURAB+TALHI+FERHAT","ATFM","[SP]FAB-MEC(TP) TOURAB+TALHI+FERHAT ATFM"]
[null,"16h 20              17h 50"]
["Mardi","8h 00                    9h 30","MATH4(TD)","KHALFAOUI","B31","MATH4(TD) KHALFAOUI B31",null,null,null,null,"DAO(TP);RDM(TP)","SEMMOUD;ABED-ZIANE","B210;AT13","DAO(TP) SEMMOUD B210\nRDM(TP) ABED-ZIANE AT13"]
[null,"9h 40                 11h 10",null,null,null,null,"MATH4(TD)","KHALFAOUI","B31","MATH4(TD) KHALFAOUI B31","DAO(TP);RDM(TP)","SEMMOUD;ABED-ZIANE","B210;AT13","DAO(TP) SEMMOUD B210\nRDM(TP) ABED-ZIANE AT13"]
[null,"11h20                12h 50",null,null,null,null,null,null,null,null,"MATH4(TD)","KHALFAOUI","B31","MATH4(TD) KHALFAOUI B31"]
[null,"13h 00              14h 30"]
[null,"14h 40              16h 10"]
[null,"16h 20              17h 50"]
["Mercredi","8h 00                    9h 30","METHO-NUM©","DJOUAD","AP6","METHO-NUM© DJOUAD AP6","METHO-NUM©","DJOUAD","AP6","METHO-NUM© DJOUAD AP6","METHO-NUM©","DJOUAD","AP6","METHO-NUM© DJOUAD AP6","METHO-NUM©","DJOUAD","AP6","METHO-NUM© DJOUAD AP6"]
[null,"9h 40                 11h 10","FAB-MEC©","TALHI","AP6","FAB-MEC© TALHI AP6","FAB-MEC©","TALHI","AP6","FAB-MEC© TALHI AP6","FAB-MEC©","TALHI","AP6","FAB-MEC© TALHI AP6","FAB-MEC©","TALHI","AP6","FAB-MEC© TALHI AP6"]
[null,"11h20                12h 50","TECH D'EXPRESSION©","HAMADI","AP1","TECH D'EXPRESSION© HAMADI AP1","METH-NUM(TD)","DJOUAD","A25","METH-NUM(TD) DJOUAD A25","TECH D'EXPRESSION©","HAMADI","AP1","TECH D'EXPRESSION© HAMADI AP1"]
[null,"13h 00              14h 30","DAO(TP);RDM(TP)","RAHMAOUI;ABED-ZIANE","B210;AT13","DAO(TP) RAHMAOUI B210\nRDM(TP) ABED-ZIANE AT13",null,null,null,null,"METH-NUM(TD)","DJOUAD","A13","METH-NUM(TD) DJOUAD A13","RDM(TD)","HEDEILI-N","A25","RDM(TD) HEDEILI-N A25"]
[null,"14h 40              16h 10","DAO(TP);RDM(TP)","RAHMAOUI;ABED-ZIANE","B210;AT13","DAO(TP) RAHMAOUI B210\nRDM(TP) ABED-ZIANE AT13","TECH D'EXPRESSION©","HAMADI","AP1","TECH D'EXPRESSION© HAMADI AP1","RDM(TD)","HEDEILI-N","A13","RDM(TD) HEDEILI-N A13","TECH D'EXPRESSION©","HAMADI","AP1","TECH D'EXPRESSION© HAMADI AP1"]
[null,"16h 20              17h 50"]
["Jeudi","8h 00                     9h 30"]
[null,"9h 40                  11h 10","MATH4©","KHALFAOUI","AP6","MATH4© KHALFAOUI AP6","MATH4©","KHALFAOUI","AP6","MATH4© KHALFAOUI AP6","MATH4©","KHALFAOUI","AP6","MATH4© KHALFAOUI AP6","MATH4©","KHALFAOUI","AP6","MATH4© KHALFAOUI AP6"]
[null,"11h20                 12h 50","RDM©","HEDEILI-N","AP6","RDM© HEDEILI-N AP6","RDM©","HEDEILI-N","AP6","RDM© HEDEILI-N AP6","RDM©","HEDEILI-N","AP6","RDM© HEDEILI-N AP6","RDM©","HEDEILI-N","AP6","RDM© HEDEILI-N AP6"]
[null,"13h 00              14h 30",null,null,null,null,null,null,null,null,null,null,null,null,"MATH4(TD)","KHALFAOUI","B31","MATH4(TD) KHALFAOUI B31"]
[null,"14h 40              16h 10"]
[null,"16h 20              17h 50"]
["Samedi","8h 00                     9h 30",null,null,null,null,"MDF(TP)","KHALDI","RC7","MDF(TP) KHALDI RC7",null,null,null,null,"DAO(TP)","MAIZA","RC9/A","DAO(TP) MAIZA RC9/A"]
[null,"9h 40                  11h 10","MDF(TP)","KHALDI","RC7","MDF(TP) KHALDI RC7","DAO(TP);RDM(TP)","RAHMAOUI;SIGUERDJIDJENE","RC9/B;AT13","DAO(TP) RAHMAOUI RC9/B\nRDM(TP) SIGUERDJIDJENE AT13",null,null,null,null,"DAO(TP)","MAIZA","RC9/A","DAO(TP) MAIZA RC9/A"]
[null,"11h20                 12h 50",null,null,null,null,"DAO(TP);RDM(TP)","RAHMAOUI;SIGUERDJIDJENE","RC9/B;AT13","DAO(TP) RAHMAOUI RC9/B\nRDM(TP) SIGUERDJIDJENE AT13",null,null,null,null,"ELECTRICITE INDUST©","TOUZOUT","AP5","ELECTRICITE INDUST© TOUZOUT AP5"]